Body Name,Date Paid,Transaction Number,Amount,Supplier Name,Supplier Type,Expense Area,Cost Centre Description,Expense Type
Cambridgeshire County Council,01-Mar-23,51301912947,"-15,166.66",Cambian Childcare Ltd / Home Tree School,EDUCATION,SEN Placements,SEND - Independent Placements - Education,Independent School Placements
Cambridgeshire County Council,01-Mar-23,51301929333,"-14,100.00",LaingBuisson Ltd,COMPANY,Adults Central Holding,Adults Central Holding,Consultancy
Cambridgeshire County Council,01-Mar-23,51301673778,"-7,239.00",CRANWELL COURT (BROOKDALE CARE),CARE ESTABLISHMENT,LD - Young Adults Team,LD - Young Adults - Care,Residential Care
Cambridgeshire County Council,01-Mar-23,51301673778,"-7,239.00",CRANWELL COURT (BROOKDALE CARE),CARE ESTABLISHMENT,LD - Young Adults Team,LD - Young Adults - Care,Residential Care
Cambridgeshire County Council,01-Mar-23,51301673778,"-7,239.00",CRANWELL COURT (BROOKDALE CARE),CARE ESTABLISHMENT,LD - Young Adults Team,LD - Young Adults - Care,Residential Care
Cambridgeshire County Council,01-Mar-23,51301673778,"-7,239.00",CRANWELL COURT (BROOKDALE CARE),CARE ESTABLISHMENT,LD - Young Adults Team,LD - Young Adults - Care,Residential Care
Cambridgeshire County Council,01-Mar-23,51301673778,"-7,239.00",CRANWELL COURT (BROOKDALE CARE),CARE ESTABLISHMENT,LD - Young Adults Team,LD - Young Adults - Care,Residential Care
Cambridgeshire County Council,01-Mar-23,51301673778,"-7,239.00",CRANWELL COURT (BROOKDALE CARE),CARE ESTABLISHMENT,LD - Young Adults Team,LD - Young Adults - Care,Residential Care
Cambridgeshire County Council,01-Mar-23,51301673778,"-7,239.00",CRANWELL COURT (BROOKDALE CARE),CARE ESTABLISHMENT,LD - Young Adults Team,LD - Young Adults - Care,Residential Care
Cambridgeshire County Council,01-Mar-23,51301673778,"-5,909.00",CRANWELL COURT (BROOKDALE CARE),CARE ESTABLISHMENT,LD - Young Adults Team,LD - Young Adults - Care,Residential Care
Cambridgeshire County Council,01-Mar-23,51301673778,"-5,909.00",CRANWELL COURT (BROOKDALE CARE),CARE ESTABLISHMENT,LD - Young Adults Team,LD - Young Adults - Care,Residential Care
Cambridgeshire County Council,01-Mar-23,51301673778,"-5,909.00",CRANWELL COURT (BROOKDALE CARE),CARE ESTABLISHMENT,LD - Young Adults Team,LD - Young Adults - Care,Residential Care
Cambridgeshire County Council,01-Mar-23,51301673778,"-5,909.00",CRANWELL COURT (BROOKDALE CARE),CARE ESTABLISHMENT,LD - Young Adults Team,LD - Young Adults - Care,Residential Care
Cambridgeshire County Council,01-Mar-23,51301673778,"-5,909.00",CRANWELL COURT (BROOKDALE CARE),CARE ESTABLISHMENT,LD - Young Adults Team,LD - Young Adults - Care,Residential Care
Cambridgeshire County Council,01-Mar-23,51301673778,"-5,909.00",CRANWELL COURT (BROOKDALE CARE),CARE ESTABLISHMENT,LD - Young Adults Team,LD - Young Adults - Care,Residential Care
Cambridgeshire County Council,01-Mar-23,51301673778,"-5,909.00",CRANWELL COURT (BROOKDALE CARE),CARE ESTABLISHMENT,LD - Young Adults Team,LD - Young Adults - Care,Residential Care
Cambridgeshire County Council,01-Mar-23,51301673778,"-5,909.00",CRANWELL COURT (BROOKDALE CARE),CARE ESTABLISHMENT,LD - Young Adults Team,LD - Young Adults - Care,Residential Care
Cambridgeshire County Council,01-Mar-23,51301943068,"-4,731.43",Transforming Lives Company,CARE ESTABLISHMENT,Unaccompanied Asylum Seeking Children,Separated Migrant Children < 18,Asylum Seekers
Cambridgeshire County Council,01-Mar-23,51301673778,"-4,136.57",CRANWELL COURT (BROOKDALE CARE),CARE ESTABLISHMENT,LD - Young Adults Team,LD - Young Adults - Care,Residential Care
Cambridgeshire County Council,01-Mar-23,51301942792,"-3,857.10",Key Living Project,CARE ESTABLISHMENT,LAC Placements,Placements - residential homes,Agency Placements - Out of  County
Cambridgeshire County Council,01-Mar-23,51301673778,"-3,376.57",CRANWELL COURT (BROOKDALE CARE),CARE ESTABLISHMENT,LD - Young Adults Team,LD - Young Adults - Care,Residential Care
Cambridgeshire County Council,01-Mar-23,51301673778,"-3,376.57",CRANWELL COURT (BROOKDALE CARE),CARE ESTABLISHMENT,LD - Young Adults Team,LD - Young Adults - Care,Residential Care
Cambridgeshire County Council,01-Mar-23,51301673778,"-3,102.43",CRANWELL COURT (BROOKDALE CARE),CARE ESTABLISHMENT,LD - Young Adults Team,LD - Young Adults - Care,Residential Care
Cambridgeshire County Council,01-Mar-23,51301943268,"-2,389.25",Accomplish Group Support Limited,CARE ESTABLISHMENT,LD - Young Adults Team,LD - Young Adults - Care,Residential Care
Cambridgeshire County Council,01-Mar-23,51301943268,"-2,389.25",Accomplish Group Support Limited,CARE ESTABLISHMENT,LD - Young Adults Team,LD - Young Adults - Care,Residential Care
Cambridgeshire County Council,01-Mar-23,51301943268,"-2,389.25",Accomplish Group Support Limited,CARE ESTABLISHMENT,LD - Young Adults Team,LD - Young Adults - Care,Residential Care
Cambridgeshire County Council,01-Mar-23,51301943268,"-2,389.25",Accomplish Group Support Limited,CARE ESTABLISHMENT,LD - Young Adults Team,LD - Young Adults - Care,Residential Care
Cambridgeshire County Council,01-Mar-23,51301943268,"-2,389.25",Accomplish Group Support Limited,CARE ESTABLISHMENT,LD - Young Adults Team,LD - Young Adults - Care,Residential Care
Cambridgeshire County Council,01-Mar-23,51301943268,"-2,389.25",Accomplish Group Support Limited,CARE ESTABLISHMENT,LD - Young Adults Team,LD - Young Adults - Care,Residential Care
Cambridgeshire County Council,01-Mar-23,51301943268,"-2,389.25",Accomplish Group Support Limited,CARE ESTABLISHMENT,LD - Young Adults Team,LD - Young Adults - Care,Residential Care
Cambridgeshire County Council,01-Mar-23,51301943268,"-2,389.25",Accomplish Group Support Limited,CARE ESTABLISHMENT,LD - Young Adults Team,LD - Young Adults - Care,Residential Care
Cambridgeshire County Council,01-Mar-23,51301943268,"-2,389.25",Accomplish Group Support Limited,CARE ESTABLISHMENT,LD - Young Adults Team,LD - Young Adults - Care,Residential Care
Cambridgeshire County Council,01-Mar-23,51301943268,"-2,389.25",Accomplish Group Support Limited,CARE ESTABLISHMENT,LD - Young Adults Team,LD - Young Adults - Care,Residential Care
Cambridgeshire County Council,01-Mar-23,51301943268,"-2,389.25",Accomplish Group Support Limited,CARE ESTABLISHMENT,LD - Young Adults Team,LD - Young Adults - Care,Residential Care
Cambridgeshire County Council,01-Mar-23,51301943268,"-2,389.25",Accomplish Group Support Limited,CARE ESTABLISHMENT,LD - Young Adults Team,LD - Young Adults - Care,Residential Care
Cambridgeshire County Council,01-Mar-23,51301943268,"-2,389.25",Accomplish Group Support Limited,CARE ESTABLISHMENT,LD - Young Adults Team,LD - Young Adults - Care,Residential Care
Cambridgeshire County Council,01-Mar-23,51301943268,"-2,389.25",Accomplish Group Support Limited,CARE ESTABLISHMENT,LD - Young Adults Team,LD - Young Adults - Care,Residential Care
Cambridgeshire County Council,01-Mar-23,51301943268,"-2,389.25",Accomplish Group Support Limited,CARE ESTABLISHMENT,LD - Young Adults Team,LD - Young Adults - Care,Residential Care
Cambridgeshire County Council,01-Mar-23,51301943268,"-2,389.25",Accomplish Group Support Limited,CARE ESTABLISHMENT,LD - Young Adults Team,LD - Young Adults - Care,Residential Care
Cambridgeshire County Council,01-Mar-23,51301943268,"-2,389.25",Accomplish Group Support Limited,CARE ESTABLISHMENT,LD - Young Adults Team,LD - Young Adults - Care,Residential Care
Cambridgeshire County Council,01-Mar-23,51301943287,"-2,317.47",AN DARACH HOUSE ( KISIMUL GROUP LTD),CARE ESTABLISHMENT,LD - City Locality - Cost of Care,LD - City - Special Needs,Residential Care
Cambridgeshire County Council,01-Mar-23,51301943287,"-2,317.47",AN DARACH HOUSE ( KISIMUL GROUP LTD),CARE ESTABLISHMENT,LD - City Locality - Cost of Care,LD - City - Special Needs,Residential Care
Cambridgeshire County Council,01-Mar-23,51301943287,"-2,317.47",AN DARACH HOUSE ( KISIMUL GROUP LTD),CARE ESTABLISHMENT,LD - City Locality - Cost of Care,LD - City - Special Needs,Residential Care
Cambridgeshire County Council,01-Mar-23,51301943287,"-2,317.47",AN DARACH HOUSE ( KISIMUL GROUP LTD),CARE ESTABLISHMENT,LD - City Locality - Cost of Care,LD - City - Special Needs,Residential Care
Cambridgeshire County Council,01-Mar-23,51301943287,"-2,317.47",AN DARACH HOUSE ( KISIMUL GROUP LTD),CARE ESTABLISHMENT,LD - City Locality - Cost of Care,LD - City - Special Needs,Residential Care
Cambridgeshire County Council,01-Mar-23,51301943287,"-2,317.47",AN DARACH HOUSE ( KISIMUL GROUP LTD),CARE ESTABLISHMENT,LD - City Locality - Cost of Care,LD - City - Special Needs,Residential Care
Cambridgeshire County Council,01-Mar-23,51301943287,"-2,317.47",AN DARACH HOUSE ( KISIMUL GROUP LTD),CARE ESTABLISHMENT,LD - City Locality - Cost of Care,LD - City - Special Needs,Residential Care
Cambridgeshire County Council,01-Mar-23,51301943287,"-2,317.47",AN DARACH HOUSE ( KISIMUL GROUP LTD),CARE ESTABLISHMENT,LD - City Locality - Cost of Care,LD - City - Special Needs,Residential Care
Cambridgeshire County Council,01-Mar-23,51301943287,"-2,317.47",AN DARACH HOUSE ( KISIMUL GROUP LTD),CARE ESTABLISHMENT,LD - City Locality - Cost of Care,LD - City - Special Needs,Residential Care
Cambridgeshire County Council,01-Mar-23,51301943287,"-2,317.47",AN DARACH HOUSE ( KISIMUL GROUP LTD),CARE ESTABLISHMENT,LD - City Locality - Cost of Care,LD - City - Special Needs,Residential Care
Cambridgeshire County Council,01-Mar-23,51301943287,"-2,317.47",AN DARACH HOUSE ( KISIMUL GROUP LTD),CARE ESTABLISHMENT,LD - City Locality - Cost of Care,LD - City - Special Needs,Residential Care
Cambridgeshire County Council,01-Mar-23,51301943287,"-2,317.47",AN DARACH HOUSE ( KISIMUL GROUP LTD),CARE ESTABLISHMENT,LD - City Locality - Cost of Care,LD - City - Special Needs,Residential Care
Cambridgeshire County Council,01-Mar-23,51301943287,"-2,317.47",AN DARACH HOUSE ( KISIMUL GROUP LTD),CARE ESTABLISHMENT,LD - City Locality - Cost of Care,LD - City - Special Needs,Residential Care
Cambridgeshire County Council,01-Mar-23,51301943287,"-2,317.47",AN DARACH HOUSE ( KISIMUL GROUP LTD),CARE ESTABLISHMENT,LD - City Locality - Cost of Care,LD - City - Special Needs,Residential Care
Cambridgeshire County Council,01-Mar-23,51301943287,"-2,317.47",AN DARACH HOUSE ( KISIMUL GROUP LTD),CARE ESTABLISHMENT,LD - City Locality - Cost of Care,LD - City - Special Needs,Residential Care
Cambridgeshire County Council,01-Mar-23,51301943287,"-2,317.47",AN DARACH HOUSE ( KISIMUL GROUP LTD),CARE ESTABLISHMENT,LD - City Locality - Cost of Care,LD - City - Special Needs,Residential Care
Cambridgeshire County Council,01-Mar-23,51301943287,"-2,317.47",AN DARACH HOUSE ( KISIMUL GROUP LTD),CARE ESTABLISHMENT,LD - City Locality - Cost of Care,LD - City - Special Needs,Residential Care
Cambridgeshire County Council,01-Mar-23,51301943287,"-2,317.47",AN DARACH HOUSE ( KISIMUL GROUP LTD),CARE ESTABLISHMENT,LD - City Locality - Cost of Care,LD - City - Special Needs,Residential Care
Cambridgeshire County Council,01-Mar-23,51301943287,"-2,317.47",AN DARACH HOUSE ( KISIMUL GROUP LTD),CARE ESTABLISHMENT,LD - City Locality - Cost of Care,LD - City - Special Needs,Residential Care
Cambridgeshire County Council,01-Mar-23,51301943287,"-2,317.47",AN DARACH HOUSE ( KISIMUL GROUP LTD),CARE ESTABLISHMENT,LD - City Locality - Cost of Care,LD - City - Special Needs,Residential Care
Cambridgeshire County Council,01-Mar-23,51301943287,"-2,317.47",AN DARACH HOUSE ( KISIMUL GROUP LTD),CARE ESTABLISHMENT,LD - City Locality - Cost of Care,LD - City - Special Needs,Residential Care
Cambridgeshire County Council,01-Mar-23,51301943287,"-2,317.47",AN DARACH HOUSE ( KISIMUL GROUP LTD),CARE ESTABLISHMENT,LD - City Locality - Cost of Care,LD - City - Special Needs,Residential Care
Cambridgeshire County Council,01-Mar-23,51301943287,"-2,317.47",AN DARACH HOUSE ( KISIMUL GROUP LTD),CARE ESTABLISHMENT,LD - City Locality - Cost of Care,LD - City - Special Needs,Residential Care
Cambridgeshire County Council,01-Mar-23,51301943287,"-2,317.47",AN DARACH HOUSE ( KISIMUL GROUP LTD),CARE ESTABLISHMENT,LD - City Locality - Cost of Care,LD - City - Special Needs,Residential Care
Cambridgeshire County Council,01-Mar-23,51301943287,"-2,317.47",AN DARACH HOUSE ( KISIMUL GROUP LTD),CARE ESTABLISHMENT,LD - City Locality - Cost of Care,LD - City - Special Needs,Residential Care
Cambridgeshire County Council,01-Mar-23,51301943287,"-2,317.47",AN DARACH HOUSE ( KISIMUL GROUP LTD),CARE ESTABLISHMENT,LD - City Locality - Cost of Care,LD - City - Special Needs,Residential Care
Cambridgeshire County Council,01-Mar-23,51301943287,"-2,317.47",AN DARACH HOUSE ( KISIMUL GROUP LTD),CARE ESTABLISHMENT,LD - City Locality - Cost of Care,LD - City - Special Needs,Residential Care
Cambridgeshire County Council,01-Mar-23,51301943287,"-2,317.47",AN DARACH HOUSE ( KISIMUL GROUP LTD),CARE ESTABLISHMENT,LD - City Locality - Cost of Care,LD - City - Special Needs,Residential Care
Cambridgeshire County Council,01-Mar-23,51301943287,"-2,317.47",AN DARACH HOUSE ( KISIMUL GROUP LTD),CARE ESTABLISHMENT,LD - City Locality - Cost of Care,LD - City - Special Needs,Residential Care
Cambridgeshire County Council,01-Mar-23,51301943287,"-2,317.47",AN DARACH HOUSE ( KISIMUL GROUP LTD),CARE ESTABLISHMENT,LD - City Locality - Cost of Care,LD - City - Special Needs,Residential Care
Cambridgeshire County Council,01-Mar-23,51301943287,"-2,317.47",AN DARACH HOUSE ( KISIMUL GROUP LTD),CARE ESTABLISHMENT,LD - City Locality - Cost of Care,LD - City - Special Needs,Residential Care
Cambridgeshire County Council,01-Mar-23,51301943287,"-2,317.47",AN DARACH HOUSE ( KISIMUL GROUP LTD),CARE ESTABLISHMENT,LD - City Locality - Cost of Care,LD - City - Special Needs,Residential Care
Cambridgeshire County Council,01-Mar-23,51301943287,"-2,317.47",AN DARACH HOUSE ( KISIMUL GROUP LTD),CARE ESTABLISHMENT,LD - City Locality - Cost of Care,LD - City - Special Needs,Residential Care
Cambridgeshire County Council,01-Mar-23,51301943287,"-2,317.47",AN DARACH HOUSE ( KISIMUL GROUP LTD),CARE ESTABLISHMENT,LD - City Locality - Cost of Care,LD - City - Special Needs,Residential Care
Cambridgeshire County Council,01-Mar-23,51301943287,"-2,317.47",AN DARACH HOUSE ( KISIMUL GROUP LTD),CARE ESTABLISHMENT,LD - City Locality - Cost of Care,LD - City - Special Needs,Residential Care
Cambridgeshire County Council,01-Mar-23,51301943287,"-2,317.47",AN DARACH HOUSE ( KISIMUL GROUP LTD),CARE ESTABLISHMENT,LD - City Locality - Cost of Care,LD - City - Special Needs,Residential Care
Cambridgeshire County Council,01-Mar-23,51301943287,"-2,317.47",AN DARACH HOUSE ( KISIMUL GROUP LTD),CARE ESTABLISHMENT,LD - City Locality - Cost of Care,LD - City - Special Needs,Residential Care
Cambridgeshire County Council,01-Mar-23,51301943287,"-2,317.47",AN DARACH HOUSE ( KISIMUL GROUP LTD),CARE ESTABLISHMENT,LD - City Locality - Cost of Care,LD - City - Special Needs,Residential Care
Cambridgeshire County Council,01-Mar-23,51301943287,"-2,317.47",AN DARACH HOUSE ( KISIMUL GROUP LTD),CARE ESTABLISHMENT,LD - City Locality - Cost of Care,LD - City - Special Needs,Residential Care
Cambridgeshire County Council,01-Mar-23,51301943287,"-2,317.47",AN DARACH HOUSE ( KISIMUL GROUP LTD),CARE ESTABLISHMENT,LD - City Locality - Cost of Care,LD - City - Special Needs,Residential Care
Cambridgeshire County Council,01-Mar-23,51301943287,"-2,317.47",AN DARACH HOUSE ( KISIMUL GROUP LTD),CARE ESTABLISHMENT,LD - City Locality - Cost of Care,LD - City - Special Needs,Residential Care
Cambridgeshire County Council,01-Mar-23,51301943287,"-2,317.47",AN DARACH HOUSE ( KISIMUL GROUP LTD),CARE ESTABLISHMENT,LD - City Locality - Cost of Care,LD - City - Special Needs,Residential Care
Cambridgeshire County Council,01-Mar-23,51301943287,"-2,317.47",AN DARACH HOUSE ( KISIMUL GROUP LTD),CARE ESTABLISHMENT,LD - City Locality - Cost of Care,LD - City - Special Needs,Residential Care
Cambridgeshire County Council,01-Mar-23,51301943287,"-2,317.47",AN DARACH HOUSE ( KISIMUL GROUP LTD),CARE ESTABLISHMENT,LD - City Locality - Cost of Care,LD - City - Special Needs,Residential Care
Cambridgeshire County Council,01-Mar-23,51301943287,"-2,317.47",AN DARACH HOUSE ( KISIMUL GROUP LTD),CARE ESTABLISHMENT,LD - City Locality - Cost of Care,LD - City - Special Needs,Residential Care
Cambridgeshire County Council,01-Mar-23,51301943287,"-2,317.47",AN DARACH HOUSE ( KISIMUL GROUP LTD),CARE ESTABLISHMENT,LD - City Locality - Cost of Care,LD - City - Special Needs,Residential Care
Cambridgeshire County Council,01-Mar-23,51301943287,"-2,317.47",AN DARACH HOUSE ( KISIMUL GROUP LTD),CARE ESTABLISHMENT,LD - City Locality - Cost of Care,LD - City - Special Needs,Residential Care
Cambridgeshire County Council,01-Mar-23,51301943287,"-2,317.47",AN DARACH HOUSE ( KISIMUL GROUP LTD),CARE ESTABLISHMENT,LD - City Locality - Cost of Care,LD - City - Special Needs,Residential Care
Cambridgeshire County Council,01-Mar-23,51301943287,"-2,317.47",AN DARACH HOUSE ( KISIMUL GROUP LTD),CARE ESTABLISHMENT,LD - City Locality - Cost of Care,LD - City - Special Needs,Residential Care
Cambridgeshire County Council,01-Mar-23,51301943287,"-2,317.47",AN DARACH HOUSE ( KISIMUL GROUP LTD),CARE ESTABLISHMENT,LD - City Locality - Cost of Care,LD - City - Special Needs,Residential Care
Cambridgeshire County Council,01-Mar-23,51301943287,"-2,317.47",AN DARACH HOUSE ( KISIMUL GROUP LTD),CARE ESTABLISHMENT,LD - City Locality - Cost of Care,LD - City - Special Needs,Residential Care
Cambridgeshire County Council,01-Mar-23,51301943287,"-2,317.47",AN DARACH HOUSE ( KISIMUL GROUP LTD),CARE ESTABLISHMENT,LD - City Locality - Cost of Care,LD - City - Special Needs,Residential Care
Cambridgeshire County Council,01-Mar-23,51301943293,"-2,074.47",REDMOND HOUSE (VOYAGE),CARE ESTABLISHMENT,LD - South Locality - Cost of Care,LD - South Cambs - Care,Residential Care
Cambridgeshire County Council,01-Mar-23,51301943293,"-2,074.47",REDMOND HOUSE (VOYAGE),CARE ESTABLISHMENT,LD - South Locality - Cost of Care,LD - South Cambs - Care,Residential Care
Cambridgeshire County Council,01-Mar-23,51301943293,"-2,074.47",REDMOND HOUSE (VOYAGE),CARE ESTABLISHMENT,LD - South Locality - Cost of Care,LD - South Cambs - Care,Residential Care
Cambridgeshire County Council,01-Mar-23,51301943293,"-2,074.47",REDMOND HOUSE (VOYAGE),CARE ESTABLISHMENT,LD - South Locality - Cost of Care,LD - South Cambs - Care,Residential Care
Cambridgeshire County Council,01-Mar-23,51301943293,"-2,074.47",REDMOND HOUSE (VOYAGE),CARE ESTABLISHMENT,LD - South Locality - Cost of Care,LD - South Cambs - Care,Residential Care
Cambridgeshire County Council,01-Mar-23,51301943293,"-2,074.47",REDMOND HOUSE (VOYAGE),CARE ESTABLISHMENT,LD - South Locality - Cost of Care,LD - South Cambs - Care,Residential Care
Cambridgeshire County Council,01-Mar-23,51301943293,"-2,074.47",REDMOND HOUSE (VOYAGE),CARE ESTABLISHMENT,LD - South Locality - Cost of Care,LD - South Cambs - Care,Residential Care
Cambridgeshire County Council,01-Mar-23,51301943293,"-2,074.47",REDMOND HOUSE (VOYAGE),CARE ESTABLISHMENT,LD - South Locality - Cost of Care,LD - South Cambs - Care,Residential Care
Cambridgeshire County Council,01-Mar-23,51301943293,"-2,074.47",REDMOND HOUSE (VOYAGE),CARE ESTABLISHMENT,LD - South Locality - Cost of Care,LD - South Cambs - Care,Residential Care
Cambridgeshire County Council,01-Mar-23,51301943293,"-2,074.47",REDMOND HOUSE (VOYAGE),CARE ESTABLISHMENT,LD - South Locality - Cost of Care,LD - South Cambs - Care,Residential Care
Cambridgeshire County Council,01-Mar-23,51301943293,"-2,074.47",REDMOND HOUSE (VOYAGE),CARE ESTABLISHMENT,LD - South Locality - Cost of Care,LD - South Cambs - Care,Residential Care
Cambridgeshire County Council,01-Mar-23,51301943293,"-2,074.47",REDMOND HOUSE (VOYAGE),CARE ESTABLISHMENT,LD - South Locality - Cost of Care,LD - South Cambs - Care,Residential Care
Cambridgeshire County Council,01-Mar-23,51301943293,"-2,074.47",REDMOND HOUSE (VOYAGE),CARE ESTABLISHMENT,LD - South Locality - Cost of Care,LD - South Cambs - Care,Residential Care
Cambridgeshire County Council,01-Mar-23,51301943293,"-2,074.47",REDMOND HOUSE (VOYAGE),CARE ESTABLISHMENT,LD - South Locality - Cost of Care,LD - South Cambs - Care,Residential Care
Cambridgeshire County Council,01-Mar-23,51301943293,"-2,074.47",REDMOND HOUSE (VOYAGE),CARE ESTABLISHMENT,LD - South Locality - Cost of Care,LD - South Cambs - Care,Residential Care
Cambridgeshire County Council,01-Mar-23,51301943293,"-2,074.47",REDMOND HOUSE (VOYAGE),CARE ESTABLISHMENT,LD - South Locality - Cost of Care,LD - South Cambs - Care,Residential Care
Cambridgeshire County Council,01-Mar-23,51301943293,"-2,074.47",REDMOND HOUSE (VOYAGE),CARE ESTABLISHMENT,LD - South Locality - Cost of Care,LD - South Cambs - Care,Residential Care
Cambridgeshire County Council,01-Mar-23,51301943293,"-2,074.47",REDMOND HOUSE (VOYAGE),CARE ESTABLISHMENT,LD - South Locality - Cost of Care,LD - South Cambs - Care,Residential Care
Cambridgeshire County Council,01-Mar-23,51301943293,"-2,074.47",REDMOND HOUSE (VOYAGE),CARE ESTABLISHMENT,LD - South Locality - Cost of Care,LD - South Cambs - Care,Residential Care
Cambridgeshire County Council,01-Mar-23,51301943293,"-2,074.47",REDMOND HOUSE (VOYAGE),CARE ESTABLISHMENT,LD - South Locality - Cost of Care,LD - South Cambs - Care,Residential Care
Cambridgeshire County Council,01-Mar-23,51301943293,"-2,074.47",REDMOND HOUSE (VOYAGE),CARE ESTABLISHMENT,LD - South Locality - Cost of Care,LD - South Cambs - Care,Residential Care
Cambridgeshire County Council,01-Mar-23,51301943293,"-2,074.47",REDMOND HOUSE (VOYAGE),CARE ESTABLISHMENT,LD - South Locality - Cost of Care,LD - South Cambs - Care,Residential Care
Cambridgeshire County Council,01-Mar-23,51301943293,"-2,074.47",REDMOND HOUSE (VOYAGE),CARE ESTABLISHMENT,LD - South Locality - Cost of Care,LD - South Cambs - Care,Residential Care
Cambridgeshire County Council,01-Mar-23,51301943293,"-2,074.47",REDMOND HOUSE (VOYAGE),CARE ESTABLISHMENT,LD - South Locality - Cost of Care,LD - South Cambs - Care,Residential Care
Cambridgeshire County Council,01-Mar-23,51301943293,"-2,074.47",REDMOND HOUSE (VOYAGE),CARE ESTABLISHMENT,LD - South Locality - Cost of Care,LD - South Cambs - Care,Residential Care
Cambridgeshire County Council,01-Mar-23,51301943293,"-2,074.47",REDMOND HOUSE (VOYAGE),CARE ESTABLISHMENT,LD - South Locality - Cost of Care,LD - South Cambs - Care,Residential Care
Cambridgeshire County Council,01-Mar-23,51301943293,"-2,074.47",REDMOND HOUSE (VOYAGE),CARE ESTABLISHMENT,LD - South Locality - Cost of Care,LD - South Cambs - Care,Residential Care
Cambridgeshire County Council,01-Mar-23,51301943293,"-2,074.47",REDMOND HOUSE (VOYAGE),CARE ESTABLISHMENT,LD - South Locality - Cost of Care,LD - South Cambs - Care,Residential Care
Cambridgeshire County Council,01-Mar-23,51301943293,"-2,074.47",REDMOND HOUSE (VOYAGE),CARE ESTABLISHMENT,LD - South Locality - Cost of Care,LD - South Cambs - Care,Residential Care
Cambridgeshire County Council,01-Mar-23,51301943293,"-2,074.47",REDMOND HOUSE (VOYAGE),CARE ESTABLISHMENT,LD - South Locality - Cost of Care,LD - South Cambs - Care,Residential Care
Cambridgeshire County Council,01-Mar-23,51301943293,"-2,074.47",REDMOND HOUSE (VOYAGE),CARE ESTABLISHMENT,LD - South Locality - Cost of Care,LD - South Cambs - Care,Residential Care
Cambridgeshire County Council,01-Mar-23,51301943293,"-2,074.47",REDMOND HOUSE (VOYAGE),CARE ESTABLISHMENT,LD - South Locality - Cost of Care,LD - South Cambs - Care,Residential Care
Cambridgeshire County Council,01-Mar-23,51301943293,"-2,074.47",REDMOND HOUSE (VOYAGE),CARE ESTABLISHMENT,LD - South Locality - Cost of Care,LD - South Cambs - Care,Residential Care
Cambridgeshire County Council,01-Mar-23,51301943293,"-2,074.47",REDMOND HOUSE (VOYAGE),CARE ESTABLISHMENT,LD - South Locality - Cost of Care,LD - South Cambs - Care,Residential Care
Cambridgeshire County Council,01-Mar-23,51301943293,"-2,074.47",REDMOND HOUSE (VOYAGE),CARE ESTABLISHMENT,LD - South Locality - Cost of Care,LD - South Cambs - Care,Residential Care
Cambridgeshire County Council,01-Mar-23,51301943293,"-2,074.47",REDMOND HOUSE (VOYAGE),CARE ESTABLISHMENT,LD - South Locality - Cost of Care,LD - South Cambs - Care,Residential Care
Cambridgeshire County Council,01-Mar-23,51301943293,"-2,074.47",REDMOND HOUSE (VOYAGE),CARE ESTABLISHMENT,LD - South Locality - Cost of Care,LD - South Cambs - Care,Residential Care
Cambridgeshire County Council,01-Mar-23,51301943293,"-2,074.47",REDMOND HOUSE (VOYAGE),CARE ESTABLISHMENT,LD - South Locality - Cost of Care,LD - South Cambs - Care,Residential Care
Cambridgeshire County Council,01-Mar-23,51301943293,"-2,074.47",REDMOND HOUSE (VOYAGE),CARE ESTABLISHMENT,LD - South Locality - Cost of Care,LD - South Cambs - Care,Residential Care
Cambridgeshire County Council,01-Mar-23,51301943293,"-2,074.47",REDMOND HOUSE (VOYAGE),CARE ESTABLISHMENT,LD - South Locality - Cost of Care,LD - South Cambs - Care,Residential Care
Cambridgeshire County Council,01-Mar-23,51301943293,"-2,074.47",REDMOND HOUSE (VOYAGE),CARE ESTABLISHMENT,LD - South Locality - Cost of Care,LD - South Cambs - Care,Residential Care
Cambridgeshire County Council,01-Mar-23,51301943293,"-2,074.47",REDMOND HOUSE (VOYAGE),CARE ESTABLISHMENT,LD - South Locality - Cost of Care,LD - South Cambs - Care,Residential Care
Cambridgeshire County Council,01-Mar-23,51301943293,"-2,074.47",REDMOND HOUSE (VOYAGE),CARE ESTABLISHMENT,LD - South Locality - Cost of Care,LD - South Cambs - Care,Residential Care
Cambridgeshire County Council,01-Mar-23,51301943293,"-2,074.47",REDMOND HOUSE (VOYAGE),CARE ESTABLISHMENT,LD - South Locality - Cost of Care,LD - South Cambs - Care,Residential Care
Cambridgeshire County Council,01-Mar-23,51301943293,"-2,074.47",REDMOND HOUSE (VOYAGE),CARE ESTABLISHMENT,LD - South Locality - Cost of Care,LD - South Cambs - Care,Residential Care
Cambridgeshire County Council,01-Mar-23,51301943293,"-2,074.47",REDMOND HOUSE (VOYAGE),CARE ESTABLISHMENT,LD - South Locality - Cost of Care,LD - South Cambs - Care,Residential Care
Cambridgeshire County Council,01-Mar-23,51301943293,"-2,074.47",REDMOND HOUSE (VOYAGE),CARE ESTABLISHMENT,LD - South Locality - Cost of Care,LD - South Cambs - Care,Residential Care
Cambridgeshire County Council,01-Mar-23,51301943293,"-2,074.47",REDMOND HOUSE (VOYAGE),CARE ESTABLISHMENT,LD - South Locality - Cost of Care,LD - South Cambs - Care,Residential Care
Cambridgeshire County Council,01-Mar-23,51301943293,"-2,074.47",REDMOND HOUSE (VOYAGE),CARE ESTABLISHMENT,LD - South Locality - Cost of Care,LD - South Cambs - Care,Residential Care
Cambridgeshire County Council,01-Mar-23,51301943293,"-2,074.47",REDMOND HOUSE (VOYAGE),CARE ESTABLISHMENT,LD - South Locality - Cost of Care,LD - South Cambs - Care,Residential Care
Cambridgeshire County Council,01-Mar-23,51301943293,"-2,074.47",REDMOND HOUSE (VOYAGE),CARE ESTABLISHMENT,LD - South Locality - Cost of Care,LD - South Cambs - Care,Residential Care
Cambridgeshire County Council,01-Mar-23,51301943293,"-2,074.47",REDMOND HOUSE (VOYAGE),CARE ESTABLISHMENT,LD - South Locality - Cost of Care,LD - South Cambs - Care,Residential Care
Cambridgeshire County Council,01-Mar-23,51301943267,"-2,064.68",VOYAGE,CARE ESTABLISHMENT,LD - East Locality - Cost of Care,LD - East Cambs - Care,Residential Care
Cambridgeshire County Council,01-Mar-23,51301943267,"-2,064.68",VOYAGE,CARE ESTABLISHMENT,LD - East Locality - Cost of Care,LD - East Cambs - Care,Residential Care
Cambridgeshire County Council,01-Mar-23,51301943267,"-2,064.68",VOYAGE,CARE ESTABLISHMENT,LD - East Locality - Cost of Care,LD - East Cambs - Care,Residential Care
Cambridgeshire County Council,01-Mar-23,51301943267,"-2,064.68",VOYAGE,CARE ESTABLISHMENT,LD - East Locality - Cost of Care,LD - East Cambs - Care,Residential Care
Cambridgeshire County Council,01-Mar-23,51301943267,"-2,064.68",VOYAGE,CARE ESTABLISHMENT,LD - East Locality - Cost of Care,LD - East Cambs - Care,Residential Care
Cambridgeshire County Council,01-Mar-23,51301943267,"-2,064.68",VOYAGE,CARE ESTABLISHMENT,LD - East Locality - Cost of Care,LD - East Cambs - Care,Residential Care
Cambridgeshire County Council,01-Mar-23,51301943267,"-2,064.68",VOYAGE,CARE ESTABLISHMENT,LD - East Locality - Cost of Care,LD - East Cambs - Care,Residential Care
Cambridgeshire County Council,01-Mar-23,51301943267,"-2,064.68",VOYAGE,CARE ESTABLISHMENT,LD - East Locality - Cost of Care,LD - East Cambs - Care,Residential Care
Cambridgeshire County Council,01-Mar-23,51301943267,"-2,064.68",VOYAGE,CARE ESTABLISHMENT,LD - East Locality - Cost of Care,LD - East Cambs - Care,Residential Care
Cambridgeshire County Council,01-Mar-23,51301943267,"-2,064.68",VOYAGE,CARE ESTABLISHMENT,LD - East Locality - Cost of Care,LD - East Cambs - Care,Residential Care
Cambridgeshire County Council,01-Mar-23,51301943267,"-2,064.68",VOYAGE,CARE ESTABLISHMENT,LD - East Locality - Cost of Care,LD - East Cambs - Care,Residential Care
Cambridgeshire County Council,01-Mar-23,51301943267,"-2,064.68",VOYAGE,CARE ESTABLISHMENT,LD - East Locality - Cost of Care,LD - East Cambs - Care,Residential Care
Cambridgeshire County Council,01-Mar-23,51301943267,"-2,064.68",VOYAGE,CARE ESTABLISHMENT,LD - East Locality - Cost of Care,LD - East Cambs - Care,Residential Care
Cambridgeshire County Council,01-Mar-23,51301943267,"-2,064.68",VOYAGE,CARE ESTABLISHMENT,LD - East Locality - Cost of Care,LD - East Cambs - Care,Residential Care
Cambridgeshire County Council,01-Mar-23,51301943267,"-2,064.68",VOYAGE,CARE ESTABLISHMENT,LD - East Locality - Cost of Care,LD - East Cambs - Care,Residential Care
Cambridgeshire County Council,01-Mar-23,51301943267,"-2,064.68",VOYAGE,CARE ESTABLISHMENT,LD - East Locality - Cost of Care,LD - East Cambs - Care,Residential Care
Cambridgeshire County Council,01-Mar-23,51301943267,"-2,064.68",VOYAGE,CARE ESTABLISHMENT,LD - East Locality - Cost of Care,LD - East Cambs - Care,Residential Care
Cambridgeshire County Council,01-Mar-23,51301943267,"-2,064.68",VOYAGE,CARE ESTABLISHMENT,LD - East Locality - Cost of Care,LD - East Cambs - Care,Residential Care
Cambridgeshire County Council,01-Mar-23,51301943267,"-2,064.68",VOYAGE,CARE ESTABLISHMENT,LD - East Locality - Cost of Care,LD - East Cambs - Care,Residential Care
Cambridgeshire County Council,01-Mar-23,51301943267,"-2,064.68",VOYAGE,CARE ESTABLISHMENT,LD - East Locality - Cost of Care,LD - East Cambs - Care,Residential Care
Cambridgeshire County Council,01-Mar-23,51301943267,"-2,064.68",VOYAGE,CARE ESTABLISHMENT,LD - East Locality - Cost of Care,LD - East Cambs - Care,Residential Care
Cambridgeshire County Council,01-Mar-23,51301943267,"-2,064.68",VOYAGE,CARE ESTABLISHMENT,LD - East Locality - Cost of Care,LD - East Cambs - Care,Residential Care
Cambridgeshire County Council,01-Mar-23,51301943267,"-2,064.68",VOYAGE,CARE ESTABLISHMENT,LD - East Locality - Cost of Care,LD - East Cambs - Care,Residential Care
Cambridgeshire County Council,01-Mar-23,51301943267,"-2,064.68",VOYAGE,CARE ESTABLISHMENT,LD - East Locality - Cost of Care,LD - East Cambs - Care,Residential Care
Cambridgeshire County Council,01-Mar-23,51301943267,"-2,064.68",VOYAGE,CARE ESTABLISHMENT,LD - East Locality - Cost of Care,LD - East Cambs - Care,Residential Care
Cambridgeshire County Council,01-Mar-23,51301943267,"-2,064.68",VOYAGE,CARE ESTABLISHMENT,LD - East Locality - Cost of Care,LD - East Cambs - Care,Residential Care
Cambridgeshire County Council,01-Mar-23,51301943267,"-2,064.68",VOYAGE,CARE ESTABLISHMENT,LD - East Locality - Cost of Care,LD - East Cambs - Care,Residential Care
Cambridgeshire County Council,01-Mar-23,51301943267,"-2,064.68",VOYAGE,CARE ESTABLISHMENT,LD - East Locality - Cost of Care,LD - East Cambs - Care,Residential Care
Cambridgeshire County Council,01-Mar-23,51301943267,"-2,064.68",VOYAGE,CARE ESTABLISHMENT,LD - East Locality - Cost of Care,LD - East Cambs - Care,Residential Care
Cambridgeshire County Council,01-Mar-23,51301943267,"-2,064.68",VOYAGE,CARE ESTABLISHMENT,LD - East Locality - Cost of Care,LD - East Cambs - Care,Residential Care
Cambridgeshire County Council,01-Mar-23,51301943267,"-2,064.68",VOYAGE,CARE ESTABLISHMENT,LD - East Locality - Cost of Care,LD - East Cambs - Care,Residential Care
Cambridgeshire County Council,01-Mar-23,51301943267,"-2,064.68",VOYAGE,CARE ESTABLISHMENT,LD - East Locality - Cost of Care,LD - East Cambs - Care,Residential Care
Cambridgeshire County Council,01-Mar-23,51301943267,"-2,064.68",VOYAGE,CARE ESTABLISHMENT,LD - East Locality - Cost of Care,LD - East Cambs - Care,Residential Care
Cambridgeshire County Council,01-Mar-23,51301943267,"-2,064.68",VOYAGE,CARE ESTABLISHMENT,LD - East Locality - Cost of Care,LD - East Cambs - Care,Residential Care
Cambridgeshire County Council,01-Mar-23,51301943267,"-2,064.68",VOYAGE,CARE ESTABLISHMENT,LD - East Locality - Cost of Care,LD - East Cambs - Care,Residential Care
Cambridgeshire County Council,01-Mar-23,51301943267,"-2,064.68",VOYAGE,CARE ESTABLISHMENT,LD - East Locality - Cost of Care,LD - East Cambs - Care,Residential Care
Cambridgeshire County Council,01-Mar-23,51301943267,"-2,064.68",VOYAGE,CARE ESTABLISHMENT,LD - East Locality - Cost of Care,LD - East Cambs - Care,Residential Care
Cambridgeshire County Council,01-Mar-23,51301943267,"-2,064.68",VOYAGE,CARE ESTABLISHMENT,LD - East Locality - Cost of Care,LD - East Cambs - Care,Residential Care
Cambridgeshire County Council,01-Mar-23,51301943267,"-2,064.68",VOYAGE,CARE ESTABLISHMENT,LD - East Locality - Cost of Care,LD - East Cambs - Care,Residential Care
Cambridgeshire County Council,01-Mar-23,51301943267,"-2,064.68",VOYAGE,CARE ESTABLISHMENT,LD - East Locality - Cost of Care,LD - East Cambs - Care,Residential Care
Cambridgeshire County Council,01-Mar-23,51301943267,"-2,064.68",VOYAGE,CARE ESTABLISHMENT,LD - East Locality - Cost of Care,LD - East Cambs - Care,Residential Care
Cambridgeshire County Council,01-Mar-23,51301943267,"-2,064.68",VOYAGE,CARE ESTABLISHMENT,LD - East Locality - Cost of Care,LD - East Cambs - Care,Residential Care
Cambridgeshire County Council,01-Mar-23,51301943267,"-2,064.68",VOYAGE,CARE ESTABLISHMENT,LD - East Locality - Cost of Care,LD - East Cambs - Care,Residential Care
Cambridgeshire County Council,01-Mar-23,51301943267,"-2,064.68",VOYAGE,CARE ESTABLISHMENT,LD - East Locality - Cost of Care,LD - East Cambs - Care,Residential Care
Cambridgeshire County Council,01-Mar-23,51301943267,"-2,064.68",VOYAGE,CARE ESTABLISHMENT,LD - East Locality - Cost of Care,LD - East Cambs - Care,Residential Care
Cambridgeshire County Council,01-Mar-23,51301943267,"-2,064.68",VOYAGE,CARE ESTABLISHMENT,LD - East Locality - Cost of Care,LD - East Cambs - Care,Residential Care
Cambridgeshire County Council,01-Mar-23,51301943267,"-2,064.68",VOYAGE,CARE ESTABLISHMENT,LD - East Locality - Cost of Care,LD - East Cambs - Care,Residential Care
Cambridgeshire County Council,01-Mar-23,51301943249,"-1,971.70",VOYAGE,CARE ESTABLISHMENT,LD - East Locality - Cost of Care,LD - East Cambs - Care,Residential Care
Cambridgeshire County Council,01-Mar-23,51301943249,"-1,971.70",VOYAGE,CARE ESTABLISHMENT,LD - East Locality - Cost of Care,LD - East Cambs - Care,Residential Care
Cambridgeshire County Council,01-Mar-23,51301943249,"-1,971.70",VOYAGE,CARE ESTABLISHMENT,LD - East Locality - Cost of Care,LD - East Cambs - Care,Residential Care
Cambridgeshire County Council,01-Mar-23,51301943249,"-1,971.70",VOYAGE,CARE ESTABLISHMENT,LD - East Locality - Cost of Care,LD - East Cambs - Care,Residential Care
Cambridgeshire County Council,01-Mar-23,51301943249,"-1,971.70",VOYAGE,CARE ESTABLISHMENT,LD - East Locality - Cost of Care,LD - East Cambs - Care,Residential Care
Cambridgeshire County Council,01-Mar-23,51301943249,"-1,971.70",VOYAGE,CARE ESTABLISHMENT,LD - East Locality - Cost of Care,LD - East Cambs - Care,Residential Care
Cambridgeshire County Council,01-Mar-23,51301943249,"-1,971.70",VOYAGE,CARE ESTABLISHMENT,LD - East Locality - Cost of Care,LD - East Cambs - Care,Residential Care
Cambridgeshire County Council,01-Mar-23,51301943249,"-1,971.70",VOYAGE,CARE ESTABLISHMENT,LD - East Locality - Cost of Care,LD - East Cambs - Care,Residential Care
Cambridgeshire County Council,01-Mar-23,51301943249,"-1,971.70",VOYAGE,CARE ESTABLISHMENT,LD - East Locality - Cost of Care,LD - East Cambs - Care,Residential Care
Cambridgeshire County Council,01-Mar-23,51301943249,"-1,971.70",VOYAGE,CARE ESTABLISHMENT,LD - East Locality - Cost of Care,LD - East Cambs - Care,Residential Care
Cambridgeshire County Council,01-Mar-23,51301943249,"-1,971.70",VOYAGE,CARE ESTABLISHMENT,LD - East Locality - Cost of Care,LD - East Cambs - Care,Residential Care
Cambridgeshire County Council,01-Mar-23,51301943249,"-1,971.70",VOYAGE,CARE ESTABLISHMENT,LD - East Locality - Cost of Care,LD - East Cambs - Care,Residential Care
Cambridgeshire County Council,01-Mar-23,51301943249,"-1,971.70",VOYAGE,CARE ESTABLISHMENT,LD - East Locality - Cost of Care,LD - East Cambs - Care,Residential Care
Cambridgeshire County Council,01-Mar-23,51301943249,"-1,971.70",VOYAGE,CARE ESTABLISHMENT,LD - East Locality - Cost of Care,LD - East Cambs - Care,Residential Care
Cambridgeshire County Council,01-Mar-23,51301943249,"-1,971.70",VOYAGE,CARE ESTABLISHMENT,LD - East Locality - Cost of Care,LD - East Cambs - Care,Residential Care
Cambridgeshire County Council,01-Mar-23,51301943249,"-1,971.70",VOYAGE,CARE ESTABLISHMENT,LD - East Locality - Cost of Care,LD - East Cambs - Care,Residential Care
Cambridgeshire County Council,01-Mar-23,51301943249,"-1,971.70",VOYAGE,CARE ESTABLISHMENT,LD - East Locality - Cost of Care,LD - East Cambs - Care,Residential Care
Cambridgeshire County Council,01-Mar-23,51301943249,"-1,971.70",VOYAGE,CARE ESTABLISHMENT,LD - East Locality - Cost of Care,LD - East Cambs - Care,Residential Care
Cambridgeshire County Council,01-Mar-23,51301943249,"-1,971.70",VOYAGE,CARE ESTABLISHMENT,LD - East Locality - Cost of Care,LD - East Cambs - Care,Residential Care
Cambridgeshire County Council,01-Mar-23,51301943249,"-1,971.70",VOYAGE,CARE ESTABLISHMENT,LD - East Locality - Cost of Care,LD - East Cambs - Care,Residential Care
Cambridgeshire County Council,01-Mar-23,51301943249,"-1,971.70",VOYAGE,CARE ESTABLISHMENT,LD - East Locality - Cost of Care,LD - East Cambs - Care,Residential Care
Cambridgeshire County Council,01-Mar-23,51301943249,"-1,971.70",VOYAGE,CARE ESTABLISHMENT,LD - East Locality - Cost of Care,LD - East Cambs - Care,Residential Care
Cambridgeshire County Council,01-Mar-23,51301943249,"-1,971.70",VOYAGE,CARE ESTABLISHMENT,LD - East Locality - Cost of Care,LD - East Cambs - Care,Residential Care
Cambridgeshire County Council,01-Mar-23,51301943249,"-1,971.70",VOYAGE,CARE ESTABLISHMENT,LD - East Locality - Cost of Care,LD - East Cambs - Care,Residential Care
Cambridgeshire County Council,01-Mar-23,51301943249,"-1,971.70",VOYAGE,CARE ESTABLISHMENT,LD - East Locality - Cost of Care,LD - East Cambs - Care,Residential Care
Cambridgeshire County Council,01-Mar-23,51301943249,"-1,971.70",VOYAGE,CARE ESTABLISHMENT,LD - East Locality - Cost of Care,LD - East Cambs - Care,Residential Care
Cambridgeshire County Council,01-Mar-23,51301943249,"-1,971.70",VOYAGE,CARE ESTABLISHMENT,LD - East Locality - Cost of Care,LD - East Cambs - Care,Residential Care
Cambridgeshire County Council,01-Mar-23,51301943249,"-1,971.70",VOYAGE,CARE ESTABLISHMENT,LD - East Locality - Cost of Care,LD - East Cambs - Care,Residential Care
Cambridgeshire County Council,01-Mar-23,51301943249,"-1,971.70",VOYAGE,CARE ESTABLISHMENT,LD - East Locality - Cost of Care,LD - East Cambs - Care,Residential Care
Cambridgeshire County Council,01-Mar-23,51301943249,"-1,971.70",VOYAGE,CARE ESTABLISHMENT,LD - East Locality - Cost of Care,LD - East Cambs - Care,Residential Care
Cambridgeshire County Council,01-Mar-23,51301943249,"-1,971.70",VOYAGE,CARE ESTABLISHMENT,LD - East Locality - Cost of Care,LD - East Cambs - Care,Residential Care
Cambridgeshire County Council,01-Mar-23,51301943249,"-1,971.70",VOYAGE,CARE ESTABLISHMENT,LD - East Locality - Cost of Care,LD - East Cambs - Care,Residential Care
Cambridgeshire County Council,01-Mar-23,51301943249,"-1,971.70",VOYAGE,CARE ESTABLISHMENT,LD - East Locality - Cost of Care,LD - East Cambs - Care,Residential Care
Cambridgeshire County Council,01-Mar-23,51301943249,"-1,971.70",VOYAGE,CARE ESTABLISHMENT,LD - East Locality - Cost of Care,LD - East Cambs - Care,Residential Care
Cambridgeshire County Council,01-Mar-23,51301943249,"-1,971.70",VOYAGE,CARE ESTABLISHMENT,LD - East Locality - Cost of Care,LD - East Cambs - Care,Residential Care
Cambridgeshire County Council,01-Mar-23,51301943249,"-1,971.70",VOYAGE,CARE ESTABLISHMENT,LD - East Locality - Cost of Care,LD - East Cambs - Care,Residential Care
Cambridgeshire County Council,01-Mar-23,51301943249,"-1,971.70",VOYAGE,CARE ESTABLISHMENT,LD - East Locality - Cost of Care,LD - East Cambs - Care,Residential Care
Cambridgeshire County Council,01-Mar-23,51301943249,"-1,971.70",VOYAGE,CARE ESTABLISHMENT,LD - East Locality - Cost of Care,LD - East Cambs - Care,Residential Care
Cambridgeshire County Council,01-Mar-23,51301943249,"-1,971.70",VOYAGE,CARE ESTABLISHMENT,LD - East Locality - Cost of Care,LD - East Cambs - Care,Residential Care
Cambridgeshire County Council,01-Mar-23,51301943249,"-1,971.70",VOYAGE,CARE ESTABLISHMENT,LD - East Locality - Cost of Care,LD - East Cambs - Care,Residential Care
Cambridgeshire County Council,01-Mar-23,51301943249,"-1,971.70",VOYAGE,CARE ESTABLISHMENT,LD - East Locality - Cost of Care,LD - East Cambs - Care,Residential Care
Cambridgeshire County Council,01-Mar-23,51301943249,"-1,971.70",VOYAGE,CARE ESTABLISHMENT,LD - East Locality - Cost of Care,LD - East Cambs - Care,Residential Care
Cambridgeshire County Council,01-Mar-23,51301943249,"-1,971.70",VOYAGE,CARE ESTABLISHMENT,LD - East Locality - Cost of Care,LD - East Cambs - Care,Residential Care
Cambridgeshire County Council,01-Mar-23,51301943249,"-1,971.70",VOYAGE,CARE ESTABLISHMENT,LD - East Locality - Cost of Care,LD - East Cambs - Care,Residential Care
Cambridgeshire County Council,01-Mar-23,51301943249,"-1,971.70",VOYAGE,CARE ESTABLISHMENT,LD - East Locality - Cost of Care,LD - East Cambs - Care,Residential Care
Cambridgeshire County Council,01-Mar-23,51301943249,"-1,971.70",VOYAGE,CARE ESTABLISHMENT,LD - East Locality - Cost of Care,LD - East Cambs - Care,Residential Care
Cambridgeshire County Council,01-Mar-23,51301943249,"-1,971.70",VOYAGE,CARE ESTABLISHMENT,LD - East Locality - Cost of Care,LD - East Cambs - Care,Residential Care
Cambridgeshire County Council,01-Mar-23,51301943296,"-1,897.53",DONEC (ELIZABETH FITROY SUPPORT),CARE ESTABLISHMENT,LD - South Locality - Cost of Care,LD - South Cambs - Care,Residential Care
Cambridgeshire County Council,01-Mar-23,51301943296,"-1,897.53",DONEC (ELIZABETH FITROY SUPPORT),CARE ESTABLISHMENT,LD - South Locality - Cost of Care,LD - South Cambs - Care,Residential Care
Cambridgeshire County Council,01-Mar-23,51301943296,"-1,897.53",DONEC (ELIZABETH FITROY SUPPORT),CARE ESTABLISHMENT,LD - South Locality - Cost of Care,LD - South Cambs - Care,Residential Care
Cambridgeshire County Council,01-Mar-23,51301943296,"-1,897.53",DONEC (ELIZABETH FITROY SUPPORT),CARE ESTABLISHMENT,LD - South Locality - Cost of Care,LD - South Cambs - Care,Residential Care
Cambridgeshire County Council,01-Mar-23,51301943296,"-1,897.53",DONEC (ELIZABETH FITROY SUPPORT),CARE ESTABLISHMENT,LD - South Locality - Cost of Care,LD - South Cambs - Care,Residential Care
Cambridgeshire County Council,01-Mar-23,51301943296,"-1,897.53",DONEC (ELIZABETH FITROY SUPPORT),CARE ESTABLISHMENT,LD - South Locality - Cost of Care,LD - South Cambs - Care,Residential Care
Cambridgeshire County Council,01-Mar-23,51301943296,"-1,897.53",DONEC (ELIZABETH FITROY SUPPORT),CARE ESTABLISHMENT,LD - South Locality - Cost of Care,LD - South Cambs - Care,Residential Care
Cambridgeshire County Council,01-Mar-23,51301943296,"-1,897.53",DONEC (ELIZABETH FITROY SUPPORT),CARE ESTABLISHMENT,LD - South Locality - Cost of Care,LD - South Cambs - Care,Residential Care
Cambridgeshire County Council,01-Mar-23,51301943296,"-1,897.53",DONEC (ELIZABETH FITROY SUPPORT),CARE ESTABLISHMENT,LD - South Locality - Cost of Care,LD - South Cambs - Care,Residential Care
Cambridgeshire County Council,01-Mar-23,51301943296,"-1,897.53",DONEC (ELIZABETH FITROY SUPPORT),CARE ESTABLISHMENT,LD - South Locality - Cost of Care,LD - South Cambs - Care,Residential Care
Cambridgeshire County Council,01-Mar-23,51301943296,"-1,897.53",DONEC (ELIZABETH FITROY SUPPORT),CARE ESTABLISHMENT,LD - South Locality - Cost of Care,LD - South Cambs - Care,Residential Care
Cambridgeshire County Council,01-Mar-23,51301943296,"-1,897.53",DONEC (ELIZABETH FITROY SUPPORT),CARE ESTABLISHMENT,LD - South Locality - Cost of Care,LD - South Cambs - Care,Residential Care
Cambridgeshire County Council,01-Mar-23,51301943296,"-1,897.53",DONEC (ELIZABETH FITROY SUPPORT),CARE ESTABLISHMENT,LD - South Locality - Cost of Care,LD - South Cambs - Care,Residential Care
Cambridgeshire County Council,01-Mar-23,51301943296,"-1,897.53",DONEC (ELIZABETH FITROY SUPPORT),CARE ESTABLISHMENT,LD - South Locality - Cost of Care,LD - South Cambs - Care,Residential Care
Cambridgeshire County Council,01-Mar-23,51301943296,"-1,897.53",DONEC (ELIZABETH FITROY SUPPORT),CARE ESTABLISHMENT,LD - South Locality - Cost of Care,LD - South Cambs - Care,Residential Care
Cambridgeshire County Council,01-Mar-23,51301943296,"-1,897.53",DONEC (ELIZABETH FITROY SUPPORT),CARE ESTABLISHMENT,LD - South Locality - Cost of Care,LD - South Cambs - Care,Residential Care
Cambridgeshire County Council,01-Mar-23,51301943296,"-1,897.53",DONEC (ELIZABETH FITROY SUPPORT),CARE ESTABLISHMENT,LD - South Locality - Cost of Care,LD - South Cambs - Care,Residential Care
Cambridgeshire County Council,01-Mar-23,51301943296,"-1,897.53",DONEC (ELIZABETH FITROY SUPPORT),CARE ESTABLISHMENT,LD - South Locality - Cost of Care,LD - South Cambs - Care,Residential Care
Cambridgeshire County Council,01-Mar-23,51301943296,"-1,897.53",DONEC (ELIZABETH FITROY SUPPORT),CARE ESTABLISHMENT,LD - South Locality - Cost of Care,LD - South Cambs - Care,Residential Care
Cambridgeshire County Council,01-Mar-23,51301943296,"-1,897.53",DONEC (ELIZABETH FITROY SUPPORT),CARE ESTABLISHMENT,LD - South Locality - Cost of Care,LD - South Cambs - Care,Residential Care
Cambridgeshire County Council,01-Mar-23,51301943296,"-1,897.53",DONEC (ELIZABETH FITROY SUPPORT),CARE ESTABLISHMENT,LD - South Locality - Cost of Care,LD - South Cambs - Care,Residential Care
Cambridgeshire County Council,01-Mar-23,51301943296,"-1,897.53",DONEC (ELIZABETH FITROY SUPPORT),CARE ESTABLISHMENT,LD - South Locality - Cost of Care,LD - South Cambs - Care,Residential Care
Cambridgeshire County Council,01-Mar-23,51301943296,"-1,897.53",DONEC (ELIZABETH FITROY SUPPORT),CARE ESTABLISHMENT,LD - South Locality - Cost of Care,LD - South Cambs - Care,Residential Care
Cambridgeshire County Council,01-Mar-23,51301943296,"-1,897.53",DONEC (ELIZABETH FITROY SUPPORT),CARE ESTABLISHMENT,LD - South Locality - Cost of Care,LD - South Cambs - Care,Residential Care
Cambridgeshire County Council,01-Mar-23,51301943296,"-1,897.53",DONEC (ELIZABETH FITROY SUPPORT),CARE ESTABLISHMENT,LD - South Locality - Cost of Care,LD - South Cambs - Care,Residential Care
Cambridgeshire County Council,01-Mar-23,51301943296,"-1,897.53",DONEC (ELIZABETH FITROY SUPPORT),CARE ESTABLISHMENT,LD - South Locality - Cost of Care,LD - South Cambs - Care,Residential Care
Cambridgeshire County Council,01-Mar-23,51301943296,"-1,897.53",DONEC (ELIZABETH FITROY SUPPORT),CARE ESTABLISHMENT,LD - South Locality - Cost of Care,LD - South Cambs - Care,Residential Care
Cambridgeshire County Council,01-Mar-23,51301943296,"-1,897.53",DONEC (ELIZABETH FITROY SUPPORT),CARE ESTABLISHMENT,LD - South Locality - Cost of Care,LD - South Cambs - Care,Residential Care
Cambridgeshire County Council,01-Mar-23,51301943296,"-1,897.53",DONEC (ELIZABETH FITROY SUPPORT),CARE ESTABLISHMENT,LD - South Locality - Cost of Care,LD - South Cambs - Care,Residential Care
Cambridgeshire County Council,01-Mar-23,51301943296,"-1,897.53",DONEC (ELIZABETH FITROY SUPPORT),CARE ESTABLISHMENT,LD - South Locality - Cost of Care,LD - South Cambs - Care,Residential Care
Cambridgeshire County Council,01-Mar-23,51301943296,"-1,897.53",DONEC (ELIZABETH FITROY SUPPORT),CARE ESTABLISHMENT,LD - South Locality - Cost of Care,LD - South Cambs - Care,Residential Care
Cambridgeshire County Council,01-Mar-23,51301943296,"-1,897.53",DONEC (ELIZABETH FITROY SUPPORT),CARE ESTABLISHMENT,LD - South Locality - Cost of Care,LD - South Cambs - Care,Residential Care
Cambridgeshire County Council,01-Mar-23,51301943296,"-1,897.53",DONEC (ELIZABETH FITROY SUPPORT),CARE ESTABLISHMENT,LD - South Locality - Cost of Care,LD - South Cambs - Care,Residential Care
Cambridgeshire County Council,01-Mar-23,51301943296,"-1,897.53",DONEC (ELIZABETH FITROY SUPPORT),CARE ESTABLISHMENT,LD - South Locality - Cost of Care,LD - South Cambs - Care,Residential Care
Cambridgeshire County Council,01-Mar-23,51301943296,"-1,897.53",DONEC (ELIZABETH FITROY SUPPORT),CARE ESTABLISHMENT,LD - South Locality - Cost of Care,LD - South Cambs - Care,Residential Care
Cambridgeshire County Council,01-Mar-23,51301943296,"-1,897.53",DONEC (ELIZABETH FITROY SUPPORT),CARE ESTABLISHMENT,LD - South Locality - Cost of Care,LD - South Cambs - Care,Residential Care
Cambridgeshire County Council,01-Mar-23,51301943296,"-1,897.53",DONEC (ELIZABETH FITROY SUPPORT),CARE ESTABLISHMENT,LD - South Locality - Cost of Care,LD - South Cambs - Care,Residential Care
Cambridgeshire County Council,01-Mar-23,51301943296,"-1,897.53",DONEC (ELIZABETH FITROY SUPPORT),CARE ESTABLISHMENT,LD - South Locality - Cost of Care,LD - South Cambs - Care,Residential Care
Cambridgeshire County Council,01-Mar-23,51301943296,"-1,897.53",DONEC (ELIZABETH FITROY SUPPORT),CARE ESTABLISHMENT,LD - South Locality - Cost of Care,LD - South Cambs - Care,Residential Care
Cambridgeshire County Council,01-Mar-23,51301943296,"-1,897.53",DONEC (ELIZABETH FITROY SUPPORT),CARE ESTABLISHMENT,LD - South Locality - Cost of Care,LD - South Cambs - Care,Residential Care
Cambridgeshire County Council,01-Mar-23,51301943296,"-1,897.53",DONEC (ELIZABETH FITROY SUPPORT),CARE ESTABLISHMENT,LD - South Locality - Cost of Care,LD - South Cambs - Care,Residential Care
Cambridgeshire County Council,01-Mar-23,51301943296,"-1,897.53",DONEC (ELIZABETH FITROY SUPPORT),CARE ESTABLISHMENT,LD - South Locality - Cost of Care,LD - South Cambs - Care,Residential Care
Cambridgeshire County Council,01-Mar-23,51301943296,"-1,897.53",DONEC (ELIZABETH FITROY SUPPORT),CARE ESTABLISHMENT,LD - South Locality - Cost of Care,LD - South Cambs - Care,Residential Care
Cambridgeshire County Council,01-Mar-23,51301943296,"-1,897.53",DONEC (ELIZABETH FITROY SUPPORT),CARE ESTABLISHMENT,LD - South Locality - Cost of Care,LD - South Cambs - Care,Residential Care
Cambridgeshire County Council,01-Mar-23,51301943296,"-1,897.53",DONEC (ELIZABETH FITROY SUPPORT),CARE ESTABLISHMENT,LD - South Locality - Cost of Care,LD - South Cambs - Care,Residential Care
Cambridgeshire County Council,01-Mar-23,51301943296,"-1,897.53",DONEC (ELIZABETH FITROY SUPPORT),CARE ESTABLISHMENT,LD - South Locality - Cost of Care,LD - South Cambs - Care,Residential Care
Cambridgeshire County Council,01-Mar-23,51301943296,"-1,897.53",DONEC (ELIZABETH FITROY SUPPORT),CARE ESTABLISHMENT,LD - South Locality - Cost of Care,LD - South Cambs - Care,Residential Care
Cambridgeshire County Council,01-Mar-23,51301943296,"-1,897.53",DONEC (ELIZABETH FITROY SUPPORT),CARE ESTABLISHMENT,LD - South Locality - Cost of Care,LD - South Cambs - Care,Residential Care
Cambridgeshire County Council,01-Mar-23,51301943296,"-1,897.53",DONEC (ELIZABETH FITROY SUPPORT),CARE ESTABLISHMENT,LD - South Locality - Cost of Care,LD - South Cambs - Care,Residential Care
Cambridgeshire County Council,01-Mar-23,51301943296,"-1,897.53",DONEC (ELIZABETH FITROY SUPPORT),CARE ESTABLISHMENT,LD - South Locality - Cost of Care,LD - South Cambs - Care,Residential Care
Cambridgeshire County Council,01-Mar-23,51301943268,"-1,706.61",Accomplish Group Support Limited,CARE ESTABLISHMENT,LD - Young Adults Team,LD - Young Adults - Care,Residential Care
Cambridgeshire County Council,01-Mar-23,51301943296,"-1,626.45",DONEC (ELIZABETH FITROY SUPPORT),CARE ESTABLISHMENT,LD - South Locality - Cost of Care,LD - South Cambs - Care,Residential Care
Cambridgeshire County Council,01-Mar-23,51301943283,"-1,606.60",VOYAGE,CARE ESTABLISHMENT,LD - South Locality - Cost of Care,LD - South Cambs - Care,Residential Care
Cambridgeshire County Council,01-Mar-23,51301943283,"-1,606.60",VOYAGE,CARE ESTABLISHMENT,LD - South Locality - Cost of Care,LD - South Cambs - Care,Residential Care
Cambridgeshire County Council,01-Mar-23,51301943283,"-1,606.60",VOYAGE,CARE ESTABLISHMENT,LD - South Locality - Cost of Care,LD - South Cambs - Care,Residential Care
Cambridgeshire County Council,01-Mar-23,51301943283,"-1,606.60",VOYAGE,CARE ESTABLISHMENT,LD - South Locality - Cost of Care,LD - South Cambs - Care,Residential Care
Cambridgeshire County Council,01-Mar-23,51301943283,"-1,606.60",VOYAGE,CARE ESTABLISHMENT,LD - South Locality - Cost of Care,LD - South Cambs - Care,Residential Care
Cambridgeshire County Council,01-Mar-23,51301943283,"-1,606.60",VOYAGE,CARE ESTABLISHMENT,LD - South Locality - Cost of Care,LD - South Cambs - Care,Residential Care
Cambridgeshire County Council,01-Mar-23,51301943283,"-1,606.60",VOYAGE,CARE ESTABLISHMENT,LD - South Locality - Cost of Care,LD - South Cambs - Care,Residential Care
Cambridgeshire County Council,01-Mar-23,51301943283,"-1,606.60",VOYAGE,CARE ESTABLISHMENT,LD - South Locality - Cost of Care,LD - South Cambs - Care,Residential Care
Cambridgeshire County Council,01-Mar-23,51301943283,"-1,606.60",VOYAGE,CARE ESTABLISHMENT,LD - South Locality - Cost of Care,LD - South Cambs - Care,Residential Care
Cambridgeshire County Council,01-Mar-23,51301943283,"-1,606.60",VOYAGE,CARE ESTABLISHMENT,LD - South Locality - Cost of Care,LD - South Cambs - Care,Residential Care
Cambridgeshire County Council,01-Mar-23,51301943283,"-1,606.60",VOYAGE,CARE ESTABLISHMENT,LD - South Locality - Cost of Care,LD - South Cambs - Care,Residential Care
Cambridgeshire County Council,01-Mar-23,51301943283,"-1,606.60",VOYAGE,CARE ESTABLISHMENT,LD - South Locality - Cost of Care,LD - South Cambs - Care,Residential Care
Cambridgeshire County Council,01-Mar-23,51301943283,"-1,606.60",VOYAGE,CARE ESTABLISHMENT,LD - South Locality - Cost of Care,LD - South Cambs - Care,Residential Care
Cambridgeshire County Council,01-Mar-23,51301943283,"-1,606.60",VOYAGE,CARE ESTABLISHMENT,LD - South Locality - Cost of Care,LD - South Cambs - Care,Residential Care
Cambridgeshire County Council,01-Mar-23,51301943283,"-1,606.60",VOYAGE,CARE ESTABLISHMENT,LD - South Locality - Cost of Care,LD - South Cambs - Care,Residential Care
Cambridgeshire County Council,01-Mar-23,51301943283,"-1,606.60",VOYAGE,CARE ESTABLISHMENT,LD - South Locality - Cost of Care,LD - South Cambs - Care,Residential Care
Cambridgeshire County Council,01-Mar-23,51301943283,"-1,606.60",VOYAGE,CARE ESTABLISHMENT,LD - South Locality - Cost of Care,LD - South Cambs - Care,Residential Care
Cambridgeshire County Council,01-Mar-23,51301943283,"-1,606.60",VOYAGE,CARE ESTABLISHMENT,LD - South Locality - Cost of Care,LD - South Cambs - Care,Residential Care
Cambridgeshire County Council,01-Mar-23,51301943283,"-1,606.60",VOYAGE,CARE ESTABLISHMENT,LD - South Locality - Cost of Care,LD - South Cambs - Care,Residential Care
Cambridgeshire County Council,01-Mar-23,51301943283,"-1,606.60",VOYAGE,CARE ESTABLISHMENT,LD - South Locality - Cost of Care,LD - South Cambs - Care,Residential Care
Cambridgeshire County Council,01-Mar-23,51301943283,"-1,606.60",VOYAGE,CARE ESTABLISHMENT,LD - South Locality - Cost of Care,LD - South Cambs - Care,Residential Care
Cambridgeshire County Council,01-Mar-23,51301943283,"-1,606.60",VOYAGE,CARE ESTABLISHMENT,LD - South Locality - Cost of Care,LD - South Cambs - Care,Residential Care
Cambridgeshire County Council,01-Mar-23,51301943283,"-1,606.60",VOYAGE,CARE ESTABLISHMENT,LD - South Locality - Cost of Care,LD - South Cambs - Care,Residential Care
Cambridgeshire County Council,01-Mar-23,51301943283,"-1,606.60",VOYAGE,CARE ESTABLISHMENT,LD - South Locality - Cost of Care,LD - South Cambs - Care,Residential Care
Cambridgeshire County Council,01-Mar-23,51301943283,"-1,606.60",VOYAGE,CARE ESTABLISHMENT,LD - South Locality - Cost of Care,LD - South Cambs - Care,Residential Care
Cambridgeshire County Council,01-Mar-23,51301943283,"-1,606.60",VOYAGE,CARE ESTABLISHMENT,LD - South Locality - Cost of Care,LD - South Cambs - Care,Residential Care
Cambridgeshire County Council,01-Mar-23,51301943283,"-1,606.60",VOYAGE,CARE ESTABLISHMENT,LD - South Locality - Cost of Care,LD - South Cambs - Care,Residential Care
Cambridgeshire County Council,01-Mar-23,51301943283,"-1,606.60",VOYAGE,CARE ESTABLISHMENT,LD - South Locality - Cost of Care,LD - South Cambs - Care,Residential Care
Cambridgeshire County Council,01-Mar-23,51301943283,"-1,606.60",VOYAGE,CARE ESTABLISHMENT,LD - South Locality - Cost of Care,LD - South Cambs - Care,Residential Care
Cambridgeshire County Council,01-Mar-23,51301943283,"-1,606.60",VOYAGE,CARE ESTABLISHMENT,LD - South Locality - Cost of Care,LD - South Cambs - Care,Residential Care
Cambridgeshire County Council,01-Mar-23,51301943283,"-1,606.60",VOYAGE,CARE ESTABLISHMENT,LD - South Locality - Cost of Care,LD - South Cambs - Care,Residential Care
Cambridgeshire County Council,01-Mar-23,51301943283,"-1,606.60",VOYAGE,CARE ESTABLISHMENT,LD - South Locality - Cost of Care,LD - South Cambs - Care,Residential Care
Cambridgeshire County Council,01-Mar-23,51301943283,"-1,606.60",VOYAGE,CARE ESTABLISHMENT,LD - South Locality - Cost of Care,LD - South Cambs - Care,Residential Care
Cambridgeshire County Council,01-Mar-23,51301943283,"-1,606.60",VOYAGE,CARE ESTABLISHMENT,LD - South Locality - Cost of Care,LD - South Cambs - Care,Residential Care
Cambridgeshire County Council,01-Mar-23,51301943283,"-1,606.60",VOYAGE,CARE ESTABLISHMENT,LD - South Locality - Cost of Care,LD - South Cambs - Care,Residential Care
Cambridgeshire County Council,01-Mar-23,51301943283,"-1,606.60",VOYAGE,CARE ESTABLISHMENT,LD - South Locality - Cost of Care,LD - South Cambs - Care,Residential Care
Cambridgeshire County Council,01-Mar-23,51301943283,"-1,606.60",VOYAGE,CARE ESTABLISHMENT,LD - South Locality - Cost of Care,LD - South Cambs - Care,Residential Care
Cambridgeshire County Council,01-Mar-23,51301943283,"-1,606.60",VOYAGE,CARE ESTABLISHMENT,LD - South Locality - Cost of Care,LD - South Cambs - Care,Residential Care
Cambridgeshire County Council,01-Mar-23,51301943283,"-1,606.60",VOYAGE,CARE ESTABLISHMENT,LD - South Locality - Cost of Care,LD - South Cambs - Care,Residential Care
Cambridgeshire County Council,01-Mar-23,51301943283,"-1,606.60",VOYAGE,CARE ESTABLISHMENT,LD - South Locality - Cost of Care,LD - South Cambs - Care,Residential Care
Cambridgeshire County Council,01-Mar-23,51301943283,"-1,606.60",VOYAGE,CARE ESTABLISHMENT,LD - South Locality - Cost of Care,LD - South Cambs - Care,Residential Care
Cambridgeshire County Council,01-Mar-23,51301943283,"-1,606.60",VOYAGE,CARE ESTABLISHMENT,LD - South Locality - Cost of Care,LD - South Cambs - Care,Residential Care
Cambridgeshire County Council,01-Mar-23,51301943283,"-1,606.60",VOYAGE,CARE ESTABLISHMENT,LD - South Locality - Cost of Care,LD - South Cambs - Care,Residential Care
Cambridgeshire County Council,01-Mar-23,51301943283,"-1,606.60",VOYAGE,CARE ESTABLISHMENT,LD - South Locality - Cost of Care,LD - South Cambs - Care,Residential Care
Cambridgeshire County Council,01-Mar-23,51301943283,"-1,606.60",VOYAGE,CARE ESTABLISHMENT,LD - South Locality - Cost of Care,LD - South Cambs - Care,Residential Care
Cambridgeshire County Council,01-Mar-23,51301943283,"-1,606.60",VOYAGE,CARE ESTABLISHMENT,LD - South Locality - Cost of Care,LD - South Cambs - Care,Residential Care
Cambridgeshire County Council,01-Mar-23,51301943283,"-1,606.60",VOYAGE,CARE ESTABLISHMENT,LD - South Locality - Cost of Care,LD - South Cambs - Care,Residential Care
Cambridgeshire County Council,01-Mar-23,51301943283,"-1,606.60",VOYAGE,CARE ESTABLISHMENT,LD - South Locality - Cost of Care,LD - South Cambs - Care,Residential Care
Cambridgeshire County Council,01-Mar-23,51301943283,"-1,606.60",VOYAGE,CARE ESTABLISHMENT,LD - South Locality - Cost of Care,LD - South Cambs - Care,Residential Care
Cambridgeshire County Council,01-Mar-23,51301943283,"-1,606.60",VOYAGE,CARE ESTABLISHMENT,LD - South Locality - Cost of Care,LD - South Cambs - Care,Residential Care
Cambridgeshire County Council,01-Mar-23,51301943283,"-1,606.60",VOYAGE,CARE ESTABLISHMENT,LD - South Locality - Cost of Care,LD - South Cambs - Care,Residential Care
Cambridgeshire County Council,01-Mar-23,51301943283,"-1,606.60",VOYAGE,CARE ESTABLISHMENT,LD - South Locality - Cost of Care,LD - South Cambs - Care,Residential Care
Cambridgeshire County Council,01-Mar-23,51301943247,"-1,588.19",THE OAKLEAF GROUP,CARE ESTABLISHMENT,OPPD - Cost of Care - Huntingdon - Over 65,Hunts OP Team - Care,Residential Care
Cambridgeshire County Council,01-Mar-23,51301943247,"-1,588.19",THE OAKLEAF GROUP,CARE ESTABLISHMENT,OPPD - Cost of Care - Huntingdon - Over 65,Hunts OP Team - Care,Residential Care
Cambridgeshire County Council,01-Mar-23,51301943247,"-1,588.19",THE OAKLEAF GROUP,CARE ESTABLISHMENT,OPPD - Cost of Care - Huntingdon - Over 65,Hunts OP Team - Care,Residential Care
Cambridgeshire County Council,01-Mar-23,51301943247,"-1,588.19",THE OAKLEAF GROUP,CARE ESTABLISHMENT,OPPD - Cost of Care - Huntingdon - Over 65,Hunts OP Team - Care,Residential Care
Cambridgeshire County Council,01-Mar-23,51301943247,"-1,588.19",THE OAKLEAF GROUP,CARE ESTABLISHMENT,OPPD - Cost of Care - Huntingdon - Over 65,Hunts OP Team - Care,Residential Care
Cambridgeshire County Council,01-Mar-23,51301943247,"-1,588.19",THE OAKLEAF GROUP,CARE ESTABLISHMENT,OPPD - Cost of Care - Huntingdon - Over 65,Hunts OP Team - Care,Residential Care
Cambridgeshire County Council,01-Mar-23,51301943247,"-1,588.19",THE OAKLEAF GROUP,CARE ESTABLISHMENT,OPPD - Cost of Care - Huntingdon - Over 65,Hunts OP Team - Care,Residential Care
Cambridgeshire County Council,01-Mar-23,51301943247,"-1,588.19",THE OAKLEAF GROUP,CARE ESTABLISHMENT,OPPD - Cost of Care - Huntingdon - Over 65,Hunts OP Team - Care,Residential Care
Cambridgeshire County Council,01-Mar-23,51301943247,"-1,588.19",THE OAKLEAF GROUP,CARE ESTABLISHMENT,OPPD - Cost of Care - Huntingdon - Over 65,Hunts OP Team - Care,Residential Care
Cambridgeshire County Council,01-Mar-23,51301943247,"-1,588.19",THE OAKLEAF GROUP,CARE ESTABLISHMENT,OPPD - Cost of Care - Huntingdon - Over 65,Hunts OP Team - Care,Residential Care
Cambridgeshire County Council,01-Mar-23,51301943247,"-1,588.19",THE OAKLEAF GROUP,CARE ESTABLISHMENT,OPPD - Cost of Care - Huntingdon - Over 65,Hunts OP Team - Care,Residential Care
Cambridgeshire County Council,01-Mar-23,51301943247,"-1,588.19",THE OAKLEAF GROUP,CARE ESTABLISHMENT,OPPD - Cost of Care - Huntingdon - Over 65,Hunts OP Team - Care,Residential Care
Cambridgeshire County Council,01-Mar-23,51301943247,"-1,588.19",THE OAKLEAF GROUP,CARE ESTABLISHMENT,OPPD - Cost of Care - Huntingdon - Over 65,Hunts OP Team - Care,Residential Care
Cambridgeshire County Council,01-Mar-23,51301943247,"-1,588.19",THE OAKLEAF GROUP,CARE ESTABLISHMENT,OPPD - Cost of Care - Huntingdon - Over 65,Hunts OP Team - Care,Residential Care
Cambridgeshire County Council,01-Mar-23,51301943247,"-1,588.19",THE OAKLEAF GROUP,CARE ESTABLISHMENT,OPPD - Cost of Care - Huntingdon - Over 65,Hunts OP Team - Care,Residential Care
Cambridgeshire County Council,01-Mar-23,51301943247,"-1,588.19",THE OAKLEAF GROUP,CARE ESTABLISHMENT,OPPD - Cost of Care - Huntingdon - Over 65,Hunts OP Team - Care,Residential Care
Cambridgeshire County Council,01-Mar-23,51301943247,"-1,588.19",THE OAKLEAF GROUP,CARE ESTABLISHMENT,OPPD - Cost of Care - Huntingdon - Over 65,Hunts OP Team - Care,Residential Care
Cambridgeshire County Council,01-Mar-23,51301943247,"-1,588.19",THE OAKLEAF GROUP,CARE ESTABLISHMENT,OPPD - Cost of Care - Huntingdon - Over 65,Hunts OP Team - Care,Residential Care
Cambridgeshire County Council,01-Mar-23,51301943247,"-1,588.19",THE OAKLEAF GROUP,CARE ESTABLISHMENT,OPPD - Cost of Care - Huntingdon - Over 65,Hunts OP Team - Care,Residential Care
Cambridgeshire County Council,01-Mar-23,51301943247,"-1,588.19",THE OAKLEAF GROUP,CARE ESTABLISHMENT,OPPD - Cost of Care - Huntingdon - Over 65,Hunts OP Team - Care,Residential Care
Cambridgeshire County Council,01-Mar-23,51301943247,"-1,588.19",THE OAKLEAF GROUP,CARE ESTABLISHMENT,OPPD - Cost of Care - Huntingdon - Over 65,Hunts OP Team - Care,Residential Care
Cambridgeshire County Council,01-Mar-23,51301943247,"-1,588.19",THE OAKLEAF GROUP,CARE ESTABLISHMENT,OPPD - Cost of Care - Huntingdon - Over 65,Hunts OP Team - Care,Residential Care
Cambridgeshire County Council,01-Mar-23,51301943247,"-1,588.19",THE OAKLEAF GROUP,CARE ESTABLISHMENT,OPPD - Cost of Care - Huntingdon - Over 65,Hunts OP Team - Care,Residential Care
Cambridgeshire County Council,01-Mar-23,51301943247,"-1,588.19",THE OAKLEAF GROUP,CARE ESTABLISHMENT,OPPD - Cost of Care - Huntingdon - Over 65,Hunts OP Team - Care,Residential Care
Cambridgeshire County Council,01-Mar-23,51301943247,"-1,588.19",THE OAKLEAF GROUP,CARE ESTABLISHMENT,OPPD - Cost of Care - Huntingdon - Over 65,Hunts OP Team - Care,Residential Care
Cambridgeshire County Council,01-Mar-23,51301943247,"-1,588.19",THE OAKLEAF GROUP,CARE ESTABLISHMENT,OPPD - Cost of Care - Huntingdon - Over 65,Hunts OP Team - Care,Residential Care
Cambridgeshire County Council,01-Mar-23,51301943247,"-1,588.19",THE OAKLEAF GROUP,CARE ESTABLISHMENT,OPPD - Cost of Care - Huntingdon - Over 65,Hunts OP Team - Care,Residential Care
Cambridgeshire County Council,01-Mar-23,51301943247,"-1,588.19",THE OAKLEAF GROUP,CARE ESTABLISHMENT,OPPD - Cost of Care - Huntingdon - Over 65,Hunts OP Team - Care,Residential Care
Cambridgeshire County Council,01-Mar-23,51301943247,"-1,588.19",THE OAKLEAF GROUP,CARE ESTABLISHMENT,OPPD - Cost of Care - Huntingdon - Over 65,Hunts OP Team - Care,Residential Care
Cambridgeshire County Council,01-Mar-23,51301943247,"-1,588.19",THE OAKLEAF GROUP,CARE ESTABLISHMENT,OPPD - Cost of Care - Huntingdon - Over 65,Hunts OP Team - Care,Residential Care
Cambridgeshire County Council,01-Mar-23,51301943247,"-1,588.19",THE OAKLEAF GROUP,CARE ESTABLISHMENT,OPPD - Cost of Care - Huntingdon - Over 65,Hunts OP Team - Care,Residential Care
Cambridgeshire County Council,01-Mar-23,51301943247,"-1,588.19",THE OAKLEAF GROUP,CARE ESTABLISHMENT,OPPD - Cost of Care - Huntingdon - Over 65,Hunts OP Team - Care,Residential Care
Cambridgeshire County Council,01-Mar-23,51301943247,"-1,588.19",THE OAKLEAF GROUP,CARE ESTABLISHMENT,OPPD - Cost of Care - Huntingdon - Over 65,Hunts OP Team - Care,Residential Care
Cambridgeshire County Council,01-Mar-23,51301943247,"-1,588.19",THE OAKLEAF GROUP,CARE ESTABLISHMENT,OPPD - Cost of Care - Huntingdon - Over 65,Hunts OP Team - Care,Residential Care
Cambridgeshire County Council,01-Mar-23,51301943247,"-1,588.19",THE OAKLEAF GROUP,CARE ESTABLISHMENT,OPPD - Cost of Care - Huntingdon - Over 65,Hunts OP Team - Care,Residential Care
Cambridgeshire County Council,01-Mar-23,51301943247,"-1,588.19",THE OAKLEAF GROUP,CARE ESTABLISHMENT,OPPD - Cost of Care - Huntingdon - Over 65,Hunts OP Team - Care,Residential Care
Cambridgeshire County Council,01-Mar-23,51301943247,"-1,588.19",THE OAKLEAF GROUP,CARE ESTABLISHMENT,OPPD - Cost of Care - Huntingdon - Over 65,Hunts OP Team - Care,Residential Care
Cambridgeshire County Council,01-Mar-23,51301943247,"-1,588.19",THE OAKLEAF GROUP,CARE ESTABLISHMENT,OPPD - Cost of Care - Huntingdon - Over 65,Hunts OP Team - Care,Residential Care
Cambridgeshire County Council,01-Mar-23,51301943247,"-1,588.19",THE OAKLEAF GROUP,CARE ESTABLISHMENT,OPPD - Cost of Care - Huntingdon - Over 65,Hunts OP Team - Care,Residential Care
Cambridgeshire County Council,01-Mar-23,51301943247,"-1,588.19",THE OAKLEAF GROUP,CARE ESTABLISHMENT,OPPD - Cost of Care - Huntingdon - Over 65,Hunts OP Team - Care,Residential Care
Cambridgeshire County Council,01-Mar-23,51301943247,"-1,588.19",THE OAKLEAF GROUP,CARE ESTABLISHMENT,OPPD - Cost of Care - Huntingdon - Over 65,Hunts OP Team - Care,Residential Care
Cambridgeshire County Council,01-Mar-23,51301943247,"-1,588.19",THE OAKLEAF GROUP,CARE ESTABLISHMENT,OPPD - Cost of Care - Huntingdon - Over 65,Hunts OP Team - Care,Residential Care
Cambridgeshire County Council,01-Mar-23,51301943247,"-1,588.19",THE OAKLEAF GROUP,CARE ESTABLISHMENT,OPPD - Cost of Care - Huntingdon - Over 65,Hunts OP Team - Care,Residential Care
Cambridgeshire County Council,01-Mar-23,51301943247,"-1,588.19",THE OAKLEAF GROUP,CARE ESTABLISHMENT,OPPD - Cost of Care - Huntingdon - Over 65,Hunts OP Team - Care,Residential Care
Cambridgeshire County Council,01-Mar-23,51301943247,"-1,588.19",THE OAKLEAF GROUP,CARE ESTABLISHMENT,OPPD - Cost of Care - Huntingdon - Over 65,Hunts OP Team - Care,Residential Care
Cambridgeshire County Council,01-Mar-23,51301943247,"-1,588.19",THE OAKLEAF GROUP,CARE ESTABLISHMENT,OPPD - Cost of Care - Huntingdon - Over 65,Hunts OP Team - Care,Residential Care
Cambridgeshire County Council,01-Mar-23,51301943247,"-1,588.19",THE OAKLEAF GROUP,CARE ESTABLISHMENT,OPPD - Cost of Care - Huntingdon - Over 65,Hunts OP Team - Care,Residential Care
Cambridgeshire County Council,01-Mar-23,51301912946,"-1,520.00",Cambian Childcare Ltd / Home Tree School,EDUCATION,SEN Placements,SEND - Independent Placements - Education,Independent School Placements
Cambridgeshire County Council,01-Mar-23,51301943270,"-1,493.56",VOYAGE,CARE ESTABLISHMENT,LD - East Locality - Cost of Care,LD - East Cambs - Care,Residential Care
Cambridgeshire County Council,01-Mar-23,51301943270,"-1,493.56",VOYAGE,CARE ESTABLISHMENT,LD - East Locality - Cost of Care,LD - East Cambs - Care,Residential Care
Cambridgeshire County Council,01-Mar-23,51301943270,"-1,493.56",VOYAGE,CARE ESTABLISHMENT,LD - East Locality - Cost of Care,LD - East Cambs - Care,Residential Care
Cambridgeshire County Council,01-Mar-23,51301943270,"-1,493.56",VOYAGE,CARE ESTABLISHMENT,LD - East Locality - Cost of Care,LD - East Cambs - Care,Residential Care
Cambridgeshire County Council,01-Mar-23,51301943270,"-1,493.56",VOYAGE,CARE ESTABLISHMENT,LD - East Locality - Cost of Care,LD - East Cambs - Care,Residential Care
Cambridgeshire County Council,01-Mar-23,51301943270,"-1,493.56",VOYAGE,CARE ESTABLISHMENT,LD - East Locality - Cost of Care,LD - East Cambs - Care,Residential Care
Cambridgeshire County Council,01-Mar-23,51301943270,"-1,493.56",VOYAGE,CARE ESTABLISHMENT,LD - East Locality - Cost of Care,LD - East Cambs - Care,Residential Care
Cambridgeshire County Council,01-Mar-23,51301943270,"-1,493.56",VOYAGE,CARE ESTABLISHMENT,LD - East Locality - Cost of Care,LD - East Cambs - Care,Residential Care
Cambridgeshire County Council,01-Mar-23,51301943270,"-1,493.56",VOYAGE,CARE ESTABLISHMENT,LD - East Locality - Cost of Care,LD - East Cambs - Care,Residential Care
Cambridgeshire County Council,01-Mar-23,51301943270,"-1,493.56",VOYAGE,CARE ESTABLISHMENT,LD - East Locality - Cost of Care,LD - East Cambs - Care,Residential Care
Cambridgeshire County Council,01-Mar-23,51301943270,"-1,493.56",VOYAGE,CARE ESTABLISHMENT,LD - East Locality - Cost of Care,LD - East Cambs - Care,Residential Care
Cambridgeshire County Council,01-Mar-23,51301943270,"-1,493.56",VOYAGE,CARE ESTABLISHMENT,LD - East Locality - Cost of Care,LD - East Cambs - Care,Residential Care
Cambridgeshire County Council,01-Mar-23,51301943270,"-1,493.56",VOYAGE,CARE ESTABLISHMENT,LD - East Locality - Cost of Care,LD - East Cambs - Care,Residential Care
Cambridgeshire County Council,01-Mar-23,51301943270,"-1,493.56",VOYAGE,CARE ESTABLISHMENT,LD - East Locality - Cost of Care,LD - East Cambs - Care,Residential Care
Cambridgeshire County Council,01-Mar-23,51301943270,"-1,493.56",VOYAGE,CARE ESTABLISHMENT,LD - East Locality - Cost of Care,LD - East Cambs - Care,Residential Care
Cambridgeshire County Council,01-Mar-23,51301943270,"-1,493.56",VOYAGE,CARE ESTABLISHMENT,LD - East Locality - Cost of Care,LD - East Cambs - Care,Residential Care
Cambridgeshire County Council,01-Mar-23,51301943270,"-1,493.56",VOYAGE,CARE ESTABLISHMENT,LD - East Locality - Cost of Care,LD - East Cambs - Care,Residential Care
Cambridgeshire County Council,01-Mar-23,51301943270,"-1,493.56",VOYAGE,CARE ESTABLISHMENT,LD - East Locality - Cost of Care,LD - East Cambs - Care,Residential Care
Cambridgeshire County Council,01-Mar-23,51301943270,"-1,493.56",VOYAGE,CARE ESTABLISHMENT,LD - East Locality - Cost of Care,LD - East Cambs - Care,Residential Care
Cambridgeshire County Council,01-Mar-23,51301943270,"-1,493.56",VOYAGE,CARE ESTABLISHMENT,LD - East Locality - Cost of Care,LD - East Cambs - Care,Residential Care
Cambridgeshire County Council,01-Mar-23,51301943270,"-1,493.56",VOYAGE,CARE ESTABLISHMENT,LD - East Locality - Cost of Care,LD - East Cambs - Care,Residential Care
Cambridgeshire County Council,01-Mar-23,51301943270,"-1,493.56",VOYAGE,CARE ESTABLISHMENT,LD - East Locality - Cost of Care,LD - East Cambs - Care,Residential Care
Cambridgeshire County Council,01-Mar-23,51301943270,"-1,493.56",VOYAGE,CARE ESTABLISHMENT,LD - East Locality - Cost of Care,LD - East Cambs - Care,Residential Care
Cambridgeshire County Council,01-Mar-23,51301943270,"-1,493.56",VOYAGE,CARE ESTABLISHMENT,LD - East Locality - Cost of Care,LD - East Cambs - Care,Residential Care
Cambridgeshire County Council,01-Mar-23,51301943270,"-1,493.56",VOYAGE,CARE ESTABLISHMENT,LD - East Locality - Cost of Care,LD - East Cambs - Care,Residential Care
Cambridgeshire County Council,01-Mar-23,51301943270,"-1,493.56",VOYAGE,CARE ESTABLISHMENT,LD - East Locality - Cost of Care,LD - East Cambs - Care,Residential Care
Cambridgeshire County Council,01-Mar-23,51301943270,"-1,493.56",VOYAGE,CARE ESTABLISHMENT,LD - East Locality - Cost of Care,LD - East Cambs - Care,Residential Care
Cambridgeshire County Council,01-Mar-23,51301943270,"-1,493.56",VOYAGE,CARE ESTABLISHMENT,LD - East Locality - Cost of Care,LD - East Cambs - Care,Residential Care
Cambridgeshire County Council,01-Mar-23,51301943270,"-1,493.56",VOYAGE,CARE ESTABLISHMENT,LD - East Locality - Cost of Care,LD - East Cambs - Care,Residential Care
Cambridgeshire County Council,01-Mar-23,51301943270,"-1,493.56",VOYAGE,CARE ESTABLISHMENT,LD - East Locality - Cost of Care,LD - East Cambs - Care,Residential Care
Cambridgeshire County Council,01-Mar-23,51301943270,"-1,493.56",VOYAGE,CARE ESTABLISHMENT,LD - East Locality - Cost of Care,LD - East Cambs - Care,Residential Care
Cambridgeshire County Council,01-Mar-23,51301943270,"-1,493.56",VOYAGE,CARE ESTABLISHMENT,LD - East Locality - Cost of Care,LD - East Cambs - Care,Residential Care
Cambridgeshire County Council,01-Mar-23,51301943270,"-1,493.56",VOYAGE,CARE ESTABLISHMENT,LD - East Locality - Cost of Care,LD - East Cambs - Care,Residential Care
Cambridgeshire County Council,01-Mar-23,51301943270,"-1,493.56",VOYAGE,CARE ESTABLISHMENT,LD - East Locality - Cost of Care,LD - East Cambs - Care,Residential Care
Cambridgeshire County Council,01-Mar-23,51301943270,"-1,493.56",VOYAGE,CARE ESTABLISHMENT,LD - East Locality - Cost of Care,LD - East Cambs - Care,Residential Care
Cambridgeshire County Council,01-Mar-23,51301943270,"-1,493.56",VOYAGE,CARE ESTABLISHMENT,LD - East Locality - Cost of Care,LD - East Cambs - Care,Residential Care
Cambridgeshire County Council,01-Mar-23,51301943270,"-1,493.56",VOYAGE,CARE ESTABLISHMENT,LD - East Locality - Cost of Care,LD - East Cambs - Care,Residential Care
Cambridgeshire County Council,01-Mar-23,51301943270,"-1,493.56",VOYAGE,CARE ESTABLISHMENT,LD - East Locality - Cost of Care,LD - East Cambs - Care,Residential Care
Cambridgeshire County Council,01-Mar-23,51301943270,"-1,493.56",VOYAGE,CARE ESTABLISHMENT,LD - East Locality - Cost of Care,LD - East Cambs - Care,Residential Care
Cambridgeshire County Council,01-Mar-23,51301943270,"-1,493.56",VOYAGE,CARE ESTABLISHMENT,LD - East Locality - Cost of Care,LD - East Cambs - Care,Residential Care
Cambridgeshire County Council,01-Mar-23,51301943270,"-1,493.56",VOYAGE,CARE ESTABLISHMENT,LD - East Locality - Cost of Care,LD - East Cambs - Care,Residential Care
Cambridgeshire County Council,01-Mar-23,51301943270,"-1,493.56",VOYAGE,CARE ESTABLISHMENT,LD - East Locality - Cost of Care,LD - East Cambs - Care,Residential Care
Cambridgeshire County Council,01-Mar-23,51301943270,"-1,493.56",VOYAGE,CARE ESTABLISHMENT,LD - East Locality - Cost of Care,LD - East Cambs - Care,Residential Care
Cambridgeshire County Council,01-Mar-23,51301943270,"-1,493.56",VOYAGE,CARE ESTABLISHMENT,LD - East Locality - Cost of Care,LD - East Cambs - Care,Residential Care
Cambridgeshire County Council,01-Mar-23,51301943270,"-1,493.56",VOYAGE,CARE ESTABLISHMENT,LD - East Locality - Cost of Care,LD - East Cambs - Care,Residential Care
Cambridgeshire County Council,01-Mar-23,51301943270,"-1,493.56",VOYAGE,CARE ESTABLISHMENT,LD - East Locality - Cost of Care,LD - East Cambs - Care,Residential Care
Cambridgeshire County Council,01-Mar-23,51301943270,"-1,493.56",VOYAGE,CARE ESTABLISHMENT,LD - East Locality - Cost of Care,LD - East Cambs - Care,Residential Care
Cambridgeshire County Council,01-Mar-23,51301943294,"-1,484.74",VOYAGE,CARE ESTABLISHMENT,LD - South Locality - Cost of Care,LD - South Cambs - Care,Residential Care
Cambridgeshire County Council,01-Mar-23,51301943294,"-1,484.74",VOYAGE,CARE ESTABLISHMENT,LD - South Locality - Cost of Care,LD - South Cambs - Care,Residential Care
Cambridgeshire County Council,01-Mar-23,51301943294,"-1,484.74",VOYAGE,CARE ESTABLISHMENT,LD - South Locality - Cost of Care,LD - South Cambs - Care,Residential Care
Cambridgeshire County Council,01-Mar-23,51301943294,"-1,484.74",VOYAGE,CARE ESTABLISHMENT,LD - South Locality - Cost of Care,LD - South Cambs - Care,Residential Care
Cambridgeshire County Council,01-Mar-23,51301943294,"-1,484.74",VOYAGE,CARE ESTABLISHMENT,LD - South Locality - Cost of Care,LD - South Cambs - Care,Residential Care
Cambridgeshire County Council,01-Mar-23,51301943294,"-1,484.74",VOYAGE,CARE ESTABLISHMENT,LD - South Locality - Cost of Care,LD - South Cambs - Care,Residential Care
Cambridgeshire County Council,01-Mar-23,51301943294,"-1,484.74",VOYAGE,CARE ESTABLISHMENT,LD - South Locality - Cost of Care,LD - South Cambs - Care,Residential Care
Cambridgeshire County Council,01-Mar-23,51301943294,"-1,484.74",VOYAGE,CARE ESTABLISHMENT,LD - South Locality - Cost of Care,LD - South Cambs - Care,Residential Care
Cambridgeshire County Council,01-Mar-23,51301943294,"-1,484.74",VOYAGE,CARE ESTABLISHMENT,LD - South Locality - Cost of Care,LD - South Cambs - Care,Residential Care
Cambridgeshire County Council,01-Mar-23,51301943294,"-1,484.74",VOYAGE,CARE ESTABLISHMENT,LD - South Locality - Cost of Care,LD - South Cambs - Care,Residential Care
Cambridgeshire County Council,01-Mar-23,51301943294,"-1,484.74",VOYAGE,CARE ESTABLISHMENT,LD - South Locality - Cost of Care,LD - South Cambs - Care,Residential Care
Cambridgeshire County Council,01-Mar-23,51301943294,"-1,484.74",VOYAGE,CARE ESTABLISHMENT,LD - South Locality - Cost of Care,LD - South Cambs - Care,Residential Care
Cambridgeshire County Council,01-Mar-23,51301943294,"-1,484.74",VOYAGE,CARE ESTABLISHMENT,LD - South Locality - Cost of Care,LD - South Cambs - Care,Residential Care
Cambridgeshire County Council,01-Mar-23,51301943294,"-1,484.74",VOYAGE,CARE ESTABLISHMENT,LD - South Locality - Cost of Care,LD - South Cambs - Care,Residential Care
Cambridgeshire County Council,01-Mar-23,51301943294,"-1,484.74",VOYAGE,CARE ESTABLISHMENT,LD - South Locality - Cost of Care,LD - South Cambs - Care,Residential Care
Cambridgeshire County Council,01-Mar-23,51301943294,"-1,484.74",VOYAGE,CARE ESTABLISHMENT,LD - South Locality - Cost of Care,LD - South Cambs - Care,Residential Care
Cambridgeshire County Council,01-Mar-23,51301943294,"-1,484.74",VOYAGE,CARE ESTABLISHMENT,LD - South Locality - Cost of Care,LD - South Cambs - Care,Residential Care
Cambridgeshire County Council,01-Mar-23,51301943294,"-1,484.74",VOYAGE,CARE ESTABLISHMENT,LD - South Locality - Cost of Care,LD - South Cambs - Care,Residential Care
Cambridgeshire County Council,01-Mar-23,51301943294,"-1,484.74",VOYAGE,CARE ESTABLISHMENT,LD - South Locality - Cost of Care,LD - South Cambs - Care,Residential Care
Cambridgeshire County Council,01-Mar-23,51301943294,"-1,484.74",VOYAGE,CARE ESTABLISHMENT,LD - South Locality - Cost of Care,LD - South Cambs - Care,Residential Care
Cambridgeshire County Council,01-Mar-23,51301943294,"-1,484.74",VOYAGE,CARE ESTABLISHMENT,LD - South Locality - Cost of Care,LD - South Cambs - Care,Residential Care
Cambridgeshire County Council,01-Mar-23,51301943294,"-1,484.74",VOYAGE,CARE ESTABLISHMENT,LD - South Locality - Cost of Care,LD - South Cambs - Care,Residential Care
Cambridgeshire County Council,01-Mar-23,51301943294,"-1,484.74",VOYAGE,CARE ESTABLISHMENT,LD - South Locality - Cost of Care,LD - South Cambs - Care,Residential Care
Cambridgeshire County Council,01-Mar-23,51301943294,"-1,484.74",VOYAGE,CARE ESTABLISHMENT,LD - South Locality - Cost of Care,LD - South Cambs - Care,Residential Care
Cambridgeshire County Council,01-Mar-23,51301943294,"-1,484.74",VOYAGE,CARE ESTABLISHMENT,LD - South Locality - Cost of Care,LD - South Cambs - Care,Residential Care
Cambridgeshire County Council,01-Mar-23,51301943294,"-1,484.74",VOYAGE,CARE ESTABLISHMENT,LD - South Locality - Cost of Care,LD - South Cambs - Care,Residential Care
Cambridgeshire County Council,01-Mar-23,51301943294,"-1,484.74",VOYAGE,CARE ESTABLISHMENT,LD - South Locality - Cost of Care,LD - South Cambs - Care,Residential Care
Cambridgeshire County Council,01-Mar-23,51301943294,"-1,484.74",VOYAGE,CARE ESTABLISHMENT,LD - South Locality - Cost of Care,LD - South Cambs - Care,Residential Care
Cambridgeshire County Council,01-Mar-23,51301943294,"-1,484.74",VOYAGE,CARE ESTABLISHMENT,LD - South Locality - Cost of Care,LD - South Cambs - Care,Residential Care
Cambridgeshire County Council,01-Mar-23,51301943294,"-1,484.74",VOYAGE,CARE ESTABLISHMENT,LD - South Locality - Cost of Care,LD - South Cambs - Care,Residential Care
Cambridgeshire County Council,01-Mar-23,51301943294,"-1,484.74",VOYAGE,CARE ESTABLISHMENT,LD - South Locality - Cost of Care,LD - South Cambs - Care,Residential Care
Cambridgeshire County Council,01-Mar-23,51301943294,"-1,484.74",VOYAGE,CARE ESTABLISHMENT,LD - South Locality - Cost of Care,LD - South Cambs - Care,Residential Care
Cambridgeshire County Council,01-Mar-23,51301943294,"-1,484.74",VOYAGE,CARE ESTABLISHMENT,LD - South Locality - Cost of Care,LD - South Cambs - Care,Residential Care
Cambridgeshire County Council,01-Mar-23,51301943294,"-1,484.74",VOYAGE,CARE ESTABLISHMENT,LD - South Locality - Cost of Care,LD - South Cambs - Care,Residential Care
Cambridgeshire County Council,01-Mar-23,51301943294,"-1,484.74",VOYAGE,CARE ESTABLISHMENT,LD - South Locality - Cost of Care,LD - South Cambs - Care,Residential Care
Cambridgeshire County Council,01-Mar-23,51301943294,"-1,484.74",VOYAGE,CARE ESTABLISHMENT,LD - South Locality - Cost of Care,LD - South Cambs - Care,Residential Care
Cambridgeshire County Council,01-Mar-23,51301943294,"-1,484.74",VOYAGE,CARE ESTABLISHMENT,LD - South Locality - Cost of Care,LD - South Cambs - Care,Residential Care
Cambridgeshire County Council,01-Mar-23,51301943294,"-1,484.74",VOYAGE,CARE ESTABLISHMENT,LD - South Locality - Cost of Care,LD - South Cambs - Care,Residential Care
Cambridgeshire County Council,01-Mar-23,51301943294,"-1,484.74",VOYAGE,CARE ESTABLISHMENT,LD - South Locality - Cost of Care,LD - South Cambs - Care,Residential Care
Cambridgeshire County Council,01-Mar-23,51301943294,"-1,484.74",VOYAGE,CARE ESTABLISHMENT,LD - South Locality - Cost of Care,LD - South Cambs - Care,Residential Care
Cambridgeshire County Council,01-Mar-23,51301943294,"-1,484.74",VOYAGE,CARE ESTABLISHMENT,LD - South Locality - Cost of Care,LD - South Cambs - Care,Residential Care
Cambridgeshire County Council,01-Mar-23,51301943294,"-1,484.74",VOYAGE,CARE ESTABLISHMENT,LD - South Locality - Cost of Care,LD - South Cambs - Care,Residential Care
Cambridgeshire County Council,01-Mar-23,51301943294,"-1,484.74",VOYAGE,CARE ESTABLISHMENT,LD - South Locality - Cost of Care,LD - South Cambs - Care,Residential Care
Cambridgeshire County Council,01-Mar-23,51301943294,"-1,484.74",VOYAGE,CARE ESTABLISHMENT,LD - South Locality - Cost of Care,LD - South Cambs - Care,Residential Care
Cambridgeshire County Council,01-Mar-23,51301943294,"-1,484.74",VOYAGE,CARE ESTABLISHMENT,LD - South Locality - Cost of Care,LD - South Cambs - Care,Residential Care
Cambridgeshire County Council,01-Mar-23,51301943294,"-1,484.74",VOYAGE,CARE ESTABLISHMENT,LD - South Locality - Cost of Care,LD - South Cambs - Care,Residential Care
Cambridgeshire County Council,01-Mar-23,51301943294,"-1,484.74",VOYAGE,CARE ESTABLISHMENT,LD - South Locality - Cost of Care,LD - South Cambs - Care,Residential Care
Cambridgeshire County Council,01-Mar-23,51301943294,"-1,484.74",VOYAGE,CARE ESTABLISHMENT,LD - South Locality - Cost of Care,LD - South Cambs - Care,Residential Care
Cambridgeshire County Council,01-Mar-23,51301943294,"-1,484.74",VOYAGE,CARE ESTABLISHMENT,LD - South Locality - Cost of Care,LD - South Cambs - Care,Residential Care
Cambridgeshire County Council,01-Mar-23,51301943294,"-1,484.74",VOYAGE,CARE ESTABLISHMENT,LD - South Locality - Cost of Care,LD - South Cambs - Care,Residential Care
Cambridgeshire County Council,01-Mar-23,51301943294,"-1,484.74",VOYAGE,CARE ESTABLISHMENT,LD - South Locality - Cost of Care,LD - South Cambs - Care,Residential Care
Cambridgeshire County Council,01-Mar-23,51301943294,"-1,484.74",VOYAGE,CARE ESTABLISHMENT,LD - South Locality - Cost of Care,LD - South Cambs - Care,Residential Care
Cambridgeshire County Council,01-Mar-23,51301943295,"-1,484.74",VOYAGE,CARE ESTABLISHMENT,LD - South Locality - Cost of Care,LD - South Cambs - Care,Residential Care
Cambridgeshire County Council,01-Mar-23,51301943295,"-1,484.74",VOYAGE,CARE ESTABLISHMENT,LD - South Locality - Cost of Care,LD - South Cambs - Care,Residential Care
Cambridgeshire County Council,01-Mar-23,51301943295,"-1,484.74",VOYAGE,CARE ESTABLISHMENT,LD - South Locality - Cost of Care,LD - South Cambs - Care,Residential Care
Cambridgeshire County Council,01-Mar-23,51301943295,"-1,484.74",VOYAGE,CARE ESTABLISHMENT,LD - South Locality - Cost of Care,LD - South Cambs - Care,Residential Care
Cambridgeshire County Council,01-Mar-23,51301943295,"-1,484.74",VOYAGE,CARE ESTABLISHMENT,LD - South Locality - Cost of Care,LD - South Cambs - Care,Residential Care
Cambridgeshire County Council,01-Mar-23,51301943295,"-1,484.74",VOYAGE,CARE ESTABLISHMENT,LD - South Locality - Cost of Care,LD - South Cambs - Care,Residential Care
Cambridgeshire County Council,01-Mar-23,51301943295,"-1,484.74",VOYAGE,CARE ESTABLISHMENT,LD - South Locality - Cost of Care,LD - South Cambs - Care,Residential Care
Cambridgeshire County Council,01-Mar-23,51301943295,"-1,484.74",VOYAGE,CARE ESTABLISHMENT,LD - South Locality - Cost of Care,LD - South Cambs - Care,Residential Care
Cambridgeshire County Council,01-Mar-23,51301943295,"-1,484.74",VOYAGE,CARE ESTABLISHMENT,LD - South Locality - Cost of Care,LD - South Cambs - Care,Residential Care
Cambridgeshire County Council,01-Mar-23,51301943295,"-1,484.74",VOYAGE,CARE ESTABLISHMENT,LD - South Locality - Cost of Care,LD - South Cambs - Care,Residential Care
Cambridgeshire County Council,01-Mar-23,51301943295,"-1,484.74",VOYAGE,CARE ESTABLISHMENT,LD - South Locality - Cost of Care,LD - South Cambs - Care,Residential Care
Cambridgeshire County Council,01-Mar-23,51301943285,"-1,323.04",ALDERTON HOUSE,CARE ESTABLISHMENT,LD - East Locality - Cost of Care,LD - East Cambs - Care,Residential Care
Cambridgeshire County Council,01-Mar-23,51301943285,"-1,323.04",ALDERTON HOUSE,CARE ESTABLISHMENT,LD - East Locality - Cost of Care,LD - East Cambs - Care,Residential Care
Cambridgeshire County Council,01-Mar-23,51301943285,"-1,323.04",ALDERTON HOUSE,CARE ESTABLISHMENT,LD - East Locality - Cost of Care,LD - East Cambs - Care,Residential Care
Cambridgeshire County Council,01-Mar-23,51301943285,"-1,323.04",ALDERTON HOUSE,CARE ESTABLISHMENT,LD - East Locality - Cost of Care,LD - East Cambs - Care,Residential Care
Cambridgeshire County Council,01-Mar-23,51301943285,"-1,323.04",ALDERTON HOUSE,CARE ESTABLISHMENT,LD - East Locality - Cost of Care,LD - East Cambs - Care,Residential Care
Cambridgeshire County Council,01-Mar-23,51301943285,"-1,323.04",ALDERTON HOUSE,CARE ESTABLISHMENT,LD - East Locality - Cost of Care,LD - East Cambs - Care,Residential Care
Cambridgeshire County Council,01-Mar-23,51301943285,"-1,323.04",ALDERTON HOUSE,CARE ESTABLISHMENT,LD - East Locality - Cost of Care,LD - East Cambs - Care,Residential Care
Cambridgeshire County Council,01-Mar-23,51301943285,"-1,323.04",ALDERTON HOUSE,CARE ESTABLISHMENT,LD - East Locality - Cost of Care,LD - East Cambs - Care,Residential Care
Cambridgeshire County Council,01-Mar-23,51301943285,"-1,323.04",ALDERTON HOUSE,CARE ESTABLISHMENT,LD - East Locality - Cost of Care,LD - East Cambs - Care,Residential Care
Cambridgeshire County Council,01-Mar-23,51301943285,"-1,323.04",ALDERTON HOUSE,CARE ESTABLISHMENT,LD - East Locality - Cost of Care,LD - East Cambs - Care,Residential Care
Cambridgeshire County Council,01-Mar-23,51301943285,"-1,323.04",ALDERTON HOUSE,CARE ESTABLISHMENT,LD - East Locality - Cost of Care,LD - East Cambs - Care,Residential Care
Cambridgeshire County Council,01-Mar-23,51301943285,"-1,323.04",ALDERTON HOUSE,CARE ESTABLISHMENT,LD - East Locality - Cost of Care,LD - East Cambs - Care,Residential Care
Cambridgeshire County Council,01-Mar-23,51301943285,"-1,323.04",ALDERTON HOUSE,CARE ESTABLISHMENT,LD - East Locality - Cost of Care,LD - East Cambs - Care,Residential Care
Cambridgeshire County Council,01-Mar-23,51301943285,"-1,323.04",ALDERTON HOUSE,CARE ESTABLISHMENT,LD - East Locality - Cost of Care,LD - East Cambs - Care,Residential Care
Cambridgeshire County Council,01-Mar-23,51301943285,"-1,323.04",ALDERTON HOUSE,CARE ESTABLISHMENT,LD - East Locality - Cost of Care,LD - East Cambs - Care,Residential Care
Cambridgeshire County Council,01-Mar-23,51301943285,"-1,323.04",ALDERTON HOUSE,CARE ESTABLISHMENT,LD - East Locality - Cost of Care,LD - East Cambs - Care,Residential Care
Cambridgeshire County Council,01-Mar-23,51301943285,"-1,323.04",ALDERTON HOUSE,CARE ESTABLISHMENT,LD - East Locality - Cost of Care,LD - East Cambs - Care,Residential Care
Cambridgeshire County Council,01-Mar-23,51301943285,"-1,323.04",ALDERTON HOUSE,CARE ESTABLISHMENT,LD - East Locality - Cost of Care,LD - East Cambs - Care,Residential Care
Cambridgeshire County Council,01-Mar-23,51301943285,"-1,323.04",ALDERTON HOUSE,CARE ESTABLISHMENT,LD - East Locality - Cost of Care,LD - East Cambs - Care,Residential Care
Cambridgeshire County Council,01-Mar-23,51301943285,"-1,323.04",ALDERTON HOUSE,CARE ESTABLISHMENT,LD - East Locality - Cost of Care,LD - East Cambs - Care,Residential Care
Cambridgeshire County Council,01-Mar-23,51301943285,"-1,323.04",ALDERTON HOUSE,CARE ESTABLISHMENT,LD - East Locality - Cost of Care,LD - East Cambs - Care,Residential Care
Cambridgeshire County Council,01-Mar-23,51301943285,"-1,323.04",ALDERTON HOUSE,CARE ESTABLISHMENT,LD - East Locality - Cost of Care,LD - East Cambs - Care,Residential Care
Cambridgeshire County Council,01-Mar-23,51301943285,"-1,323.04",ALDERTON HOUSE,CARE ESTABLISHMENT,LD - East Locality - Cost of Care,LD - East Cambs - Care,Residential Care
Cambridgeshire County Council,01-Mar-23,51301943285,"-1,323.04",ALDERTON HOUSE,CARE ESTABLISHMENT,LD - East Locality - Cost of Care,LD - East Cambs - Care,Residential Care
Cambridgeshire County Council,01-Mar-23,51301943285,"-1,323.04",ALDERTON HOUSE,CARE ESTABLISHMENT,LD - East Locality - Cost of Care,LD - East Cambs - Care,Residential Care
Cambridgeshire County Council,01-Mar-23,51301943285,"-1,323.04",ALDERTON HOUSE,CARE ESTABLISHMENT,LD - East Locality - Cost of Care,LD - East Cambs - Care,Residential Care
Cambridgeshire County Council,01-Mar-23,51301943285,"-1,323.04",ALDERTON HOUSE,CARE ESTABLISHMENT,LD - East Locality - Cost of Care,LD - East Cambs - Care,Residential Care
Cambridgeshire County Council,01-Mar-23,51301943285,"-1,323.04",ALDERTON HOUSE,CARE ESTABLISHMENT,LD - East Locality - Cost of Care,LD - East Cambs - Care,Residential Care
Cambridgeshire County Council,01-Mar-23,51301943285,"-1,323.04",ALDERTON HOUSE,CARE ESTABLISHMENT,LD - East Locality - Cost of Care,LD - East Cambs - Care,Residential Care
Cambridgeshire County Council,01-Mar-23,51301943285,"-1,323.04",ALDERTON HOUSE,CARE ESTABLISHMENT,LD - East Locality - Cost of Care,LD - East Cambs - Care,Residential Care
Cambridgeshire County Council,01-Mar-23,51301943285,"-1,323.04",ALDERTON HOUSE,CARE ESTABLISHMENT,LD - East Locality - Cost of Care,LD - East Cambs - Care,Residential Care
Cambridgeshire County Council,01-Mar-23,51301943285,"-1,323.04",ALDERTON HOUSE,CARE ESTABLISHMENT,LD - East Locality - Cost of Care,LD - East Cambs - Care,Residential Care
Cambridgeshire County Council,01-Mar-23,51301943285,"-1,323.04",ALDERTON HOUSE,CARE ESTABLISHMENT,LD - East Locality - Cost of Care,LD - East Cambs - Care,Residential Care
Cambridgeshire County Council,01-Mar-23,51301943285,"-1,323.04",ALDERTON HOUSE,CARE ESTABLISHMENT,LD - East Locality - Cost of Care,LD - East Cambs - Care,Residential Care
Cambridgeshire County Council,01-Mar-23,51301943285,"-1,323.04",ALDERTON HOUSE,CARE ESTABLISHMENT,LD - East Locality - Cost of Care,LD - East Cambs - Care,Residential Care
Cambridgeshire County Council,01-Mar-23,51301943285,"-1,323.04",ALDERTON HOUSE,CARE ESTABLISHMENT,LD - East Locality - Cost of Care,LD - East Cambs - Care,Residential Care
Cambridgeshire County Council,01-Mar-23,51301943285,"-1,323.04",ALDERTON HOUSE,CARE ESTABLISHMENT,LD - East Locality - Cost of Care,LD - East Cambs - Care,Residential Care
Cambridgeshire County Council,01-Mar-23,51301943285,"-1,323.04",ALDERTON HOUSE,CARE ESTABLISHMENT,LD - East Locality - Cost of Care,LD - East Cambs - Care,Residential Care
Cambridgeshire County Council,01-Mar-23,51301943285,"-1,323.04",ALDERTON HOUSE,CARE ESTABLISHMENT,LD - East Locality - Cost of Care,LD - East Cambs - Care,Residential Care
Cambridgeshire County Council,01-Mar-23,51301943285,"-1,323.04",ALDERTON HOUSE,CARE ESTABLISHMENT,LD - East Locality - Cost of Care,LD - East Cambs - Care,Residential Care
Cambridgeshire County Council,01-Mar-23,51301943285,"-1,323.04",ALDERTON HOUSE,CARE ESTABLISHMENT,LD - East Locality - Cost of Care,LD - East Cambs - Care,Residential Care
Cambridgeshire County Council,01-Mar-23,51301943285,"-1,323.04",ALDERTON HOUSE,CARE ESTABLISHMENT,LD - East Locality - Cost of Care,LD - East Cambs - Care,Residential Care
Cambridgeshire County Council,01-Mar-23,51301943285,"-1,323.04",ALDERTON HOUSE,CARE ESTABLISHMENT,LD - East Locality - Cost of Care,LD - East Cambs - Care,Residential Care
Cambridgeshire County Council,01-Mar-23,51301943285,"-1,323.04",ALDERTON HOUSE,CARE ESTABLISHMENT,LD - East Locality - Cost of Care,LD - East Cambs - Care,Residential Care
Cambridgeshire County Council,01-Mar-23,51301943285,"-1,323.04",ALDERTON HOUSE,CARE ESTABLISHMENT,LD - East Locality - Cost of Care,LD - East Cambs - Care,Residential Care
Cambridgeshire County Council,01-Mar-23,51301943285,"-1,323.04",ALDERTON HOUSE,CARE ESTABLISHMENT,LD - East Locality - Cost of Care,LD - East Cambs - Care,Residential Care
Cambridgeshire County Council,01-Mar-23,51301943285,"-1,323.04",ALDERTON HOUSE,CARE ESTABLISHMENT,LD - East Locality - Cost of Care,LD - East Cambs - Care,Residential Care
Cambridgeshire County Council,01-Mar-23,51301943285,"-1,323.04",ALDERTON HOUSE,CARE ESTABLISHMENT,LD - East Locality - Cost of Care,LD - East Cambs - Care,Residential Care
Cambridgeshire County Council,01-Mar-23,51301943285,"-1,323.04",ALDERTON HOUSE,CARE ESTABLISHMENT,LD - East Locality - Cost of Care,LD - East Cambs - Care,Residential Care
Cambridgeshire County Council,01-Mar-23,51301943285,"-1,323.04",ALDERTON HOUSE,CARE ESTABLISHMENT,LD - East Locality - Cost of Care,LD - East Cambs - Care,Residential Care
Cambridgeshire County Council,01-Mar-23,51301943285,"-1,323.04",ALDERTON HOUSE,CARE ESTABLISHMENT,LD - East Locality - Cost of Care,LD - East Cambs - Care,Residential Care
Cambridgeshire County Council,01-Mar-23,51301943285,"-1,323.04",ALDERTON HOUSE,CARE ESTABLISHMENT,LD - East Locality - Cost of Care,LD - East Cambs - Care,Residential Care
Cambridgeshire County Council,01-Mar-23,51301943299,"-1,322.79",CHAMAREL HEALTHCARE LTD,TRADE SUPPLIER,LD - South Locality - Cost of Care,LD - South Cambs - Care,Residential Care
Cambridgeshire County Council,01-Mar-23,51301943299,"-1,322.79",CHAMAREL HEALTHCARE LTD,TRADE SUPPLIER,LD - South Locality - Cost of Care,LD - South Cambs - Care,Residential Care
Cambridgeshire County Council,01-Mar-23,51301943299,"-1,322.79",CHAMAREL HEALTHCARE LTD,TRADE SUPPLIER,LD - South Locality - Cost of Care,LD - South Cambs - Care,Residential Care
Cambridgeshire County Council,01-Mar-23,51301943299,"-1,322.79",CHAMAREL HEALTHCARE LTD,TRADE SUPPLIER,LD - South Locality - Cost of Care,LD - South Cambs - Care,Residential Care
Cambridgeshire County Council,01-Mar-23,51301943299,"-1,322.79",CHAMAREL HEALTHCARE LTD,TRADE SUPPLIER,LD - South Locality - Cost of Care,LD - South Cambs - Care,Residential Care
Cambridgeshire County Council,01-Mar-23,51301943299,"-1,322.79",CHAMAREL HEALTHCARE LTD,TRADE SUPPLIER,LD - South Locality - Cost of Care,LD - South Cambs - Care,Residential Care
Cambridgeshire County Council,01-Mar-23,51301943299,"-1,322.79",CHAMAREL HEALTHCARE LTD,TRADE SUPPLIER,LD - South Locality - Cost of Care,LD - South Cambs - Care,Residential Care
Cambridgeshire County Council,01-Mar-23,51301943299,"-1,322.79",CHAMAREL HEALTHCARE LTD,TRADE SUPPLIER,LD - South Locality - Cost of Care,LD - South Cambs - Care,Residential Care
Cambridgeshire County Council,01-Mar-23,51301943299,"-1,322.79",CHAMAREL HEALTHCARE LTD,TRADE SUPPLIER,LD - South Locality - Cost of Care,LD - South Cambs - Care,Residential Care
Cambridgeshire County Council,01-Mar-23,51301943299,"-1,322.79",CHAMAREL HEALTHCARE LTD,TRADE SUPPLIER,LD - South Locality - Cost of Care,LD - South Cambs - Care,Residential Care
Cambridgeshire County Council,01-Mar-23,51301943299,"-1,322.79",CHAMAREL HEALTHCARE LTD,TRADE SUPPLIER,LD - South Locality - Cost of Care,LD - South Cambs - Care,Residential Care
Cambridgeshire County Council,01-Mar-23,51301943299,"-1,322.79",CHAMAREL HEALTHCARE LTD,TRADE SUPPLIER,LD - South Locality - Cost of Care,LD - South Cambs - Care,Residential Care
Cambridgeshire County Council,01-Mar-23,51301943250,"-1,177.53",VOYAGE,CARE ESTABLISHMENT,LD - East Locality - Cost of Care,LD - East Cambs - Care,Residential Care
Cambridgeshire County Council,01-Mar-23,51301943250,"-1,177.53",VOYAGE,CARE ESTABLISHMENT,LD - East Locality - Cost of Care,LD - East Cambs - Care,Residential Care
Cambridgeshire County Council,01-Mar-23,51301943250,"-1,177.53",VOYAGE,CARE ESTABLISHMENT,LD - East Locality - Cost of Care,LD - East Cambs - Care,Residential Care
Cambridgeshire County Council,01-Mar-23,51301943250,"-1,177.53",VOYAGE,CARE ESTABLISHMENT,LD - East Locality - Cost of Care,LD - East Cambs - Care,Residential Care
Cambridgeshire County Council,01-Mar-23,51301943250,"-1,177.53",VOYAGE,CARE ESTABLISHMENT,LD - East Locality - Cost of Care,LD - East Cambs - Care,Residential Care
Cambridgeshire County Council,01-Mar-23,51301943250,"-1,177.53",VOYAGE,CARE ESTABLISHMENT,LD - East Locality - Cost of Care,LD - East Cambs - Care,Residential Care
Cambridgeshire County Council,01-Mar-23,51301943250,"-1,177.53",VOYAGE,CARE ESTABLISHMENT,LD - East Locality - Cost of Care,LD - East Cambs - Care,Residential Care
Cambridgeshire County Council,01-Mar-23,51301943250,"-1,177.53",VOYAGE,CARE ESTABLISHMENT,LD - East Locality - Cost of Care,LD - East Cambs - Care,Residential Care
Cambridgeshire County Council,01-Mar-23,51301943250,"-1,177.53",VOYAGE,CARE ESTABLISHMENT,LD - East Locality - Cost of Care,LD - East Cambs - Care,Residential Care
Cambridgeshire County Council,01-Mar-23,51301943250,"-1,177.53",VOYAGE,CARE ESTABLISHMENT,LD - East Locality - Cost of Care,LD - East Cambs - Care,Residential Care
Cambridgeshire County Council,01-Mar-23,51301943250,"-1,177.53",VOYAGE,CARE ESTABLISHMENT,LD - East Locality - Cost of Care,LD - East Cambs - Care,Residential Care
Cambridgeshire County Council,01-Mar-23,51301943250,"-1,177.53",VOYAGE,CARE ESTABLISHMENT,LD - East Locality - Cost of Care,LD - East Cambs - Care,Residential Care
Cambridgeshire County Council,01-Mar-23,51301943250,"-1,177.53",VOYAGE,CARE ESTABLISHMENT,LD - East Locality - Cost of Care,LD - East Cambs - Care,Residential Care
Cambridgeshire County Council,01-Mar-23,51301943250,"-1,177.53",VOYAGE,CARE ESTABLISHMENT,LD - East Locality - Cost of Care,LD - East Cambs - Care,Residential Care
Cambridgeshire County Council,01-Mar-23,51301943250,"-1,177.53",VOYAGE,CARE ESTABLISHMENT,LD - East Locality - Cost of Care,LD - East Cambs - Care,Residential Care
Cambridgeshire County Council,01-Mar-23,51301943250,"-1,177.53",VOYAGE,CARE ESTABLISHMENT,LD - East Locality - Cost of Care,LD - East Cambs - Care,Residential Care
Cambridgeshire County Council,01-Mar-23,51301943250,"-1,177.53",VOYAGE,CARE ESTABLISHMENT,LD - East Locality - Cost of Care,LD - East Cambs - Care,Residential Care
Cambridgeshire County Council,01-Mar-23,51301943250,"-1,177.53",VOYAGE,CARE ESTABLISHMENT,LD - East Locality - Cost of Care,LD - East Cambs - Care,Residential Care
Cambridgeshire County Council,01-Mar-23,51301943250,"-1,177.53",VOYAGE,CARE ESTABLISHMENT,LD - East Locality - Cost of Care,LD - East Cambs - Care,Residential Care
Cambridgeshire County Council,01-Mar-23,51301943250,"-1,177.53",VOYAGE,CARE ESTABLISHMENT,LD - East Locality - Cost of Care,LD - East Cambs - Care,Residential Care
Cambridgeshire County Council,01-Mar-23,51301943250,"-1,177.53",VOYAGE,CARE ESTABLISHMENT,LD - East Locality - Cost of Care,LD - East Cambs - Care,Residential Care
Cambridgeshire County Council,01-Mar-23,51301943250,"-1,177.53",VOYAGE,CARE ESTABLISHMENT,LD - East Locality - Cost of Care,LD - East Cambs - Care,Residential Care
Cambridgeshire County Council,01-Mar-23,51301943250,"-1,177.53",VOYAGE,CARE ESTABLISHMENT,LD - East Locality - Cost of Care,LD - East Cambs - Care,Residential Care
Cambridgeshire County Council,01-Mar-23,51301943250,"-1,177.53",VOYAGE,CARE ESTABLISHMENT,LD - East Locality - Cost of Care,LD - East Cambs - Care,Residential Care
Cambridgeshire County Council,01-Mar-23,51301943250,"-1,177.53",VOYAGE,CARE ESTABLISHMENT,LD - East Locality - Cost of Care,LD - East Cambs - Care,Residential Care
Cambridgeshire County Council,01-Mar-23,51301943250,"-1,177.53",VOYAGE,CARE ESTABLISHMENT,LD - East Locality - Cost of Care,LD - East Cambs - Care,Residential Care
Cambridgeshire County Council,01-Mar-23,51301943250,"-1,177.53",VOYAGE,CARE ESTABLISHMENT,LD - East Locality - Cost of Care,LD - East Cambs - Care,Residential Care
Cambridgeshire County Council,01-Mar-23,51301943250,"-1,177.53",VOYAGE,CARE ESTABLISHMENT,LD - East Locality - Cost of Care,LD - East Cambs - Care,Residential Care
Cambridgeshire County Council,01-Mar-23,51301943250,"-1,177.53",VOYAGE,CARE ESTABLISHMENT,LD - East Locality - Cost of Care,LD - East Cambs - Care,Residential Care
Cambridgeshire County Council,01-Mar-23,51301943250,"-1,177.53",VOYAGE,CARE ESTABLISHMENT,LD - East Locality - Cost of Care,LD - East Cambs - Care,Residential Care
Cambridgeshire County Council,01-Mar-23,51301943250,"-1,177.53",VOYAGE,CARE ESTABLISHMENT,LD - East Locality - Cost of Care,LD - East Cambs - Care,Residential Care
Cambridgeshire County Council,01-Mar-23,51301943250,"-1,177.53",VOYAGE,CARE ESTABLISHMENT,LD - East Locality - Cost of Care,LD - East Cambs - Care,Residential Care
Cambridgeshire County Council,01-Mar-23,51301943250,"-1,177.53",VOYAGE,CARE ESTABLISHMENT,LD - East Locality - Cost of Care,LD - East Cambs - Care,Residential Care
Cambridgeshire County Council,01-Mar-23,51301943250,"-1,177.53",VOYAGE,CARE ESTABLISHMENT,LD - East Locality - Cost of Care,LD - East Cambs - Care,Residential Care
Cambridgeshire County Council,01-Mar-23,51301943250,"-1,177.53",VOYAGE,CARE ESTABLISHMENT,LD - East Locality - Cost of Care,LD - East Cambs - Care,Residential Care
Cambridgeshire County Council,01-Mar-23,51301943250,"-1,177.53",VOYAGE,CARE ESTABLISHMENT,LD - East Locality - Cost of Care,LD - East Cambs - Care,Residential Care
Cambridgeshire County Council,01-Mar-23,51301943250,"-1,177.53",VOYAGE,CARE ESTABLISHMENT,LD - East Locality - Cost of Care,LD - East Cambs - Care,Residential Care
Cambridgeshire County Council,01-Mar-23,51301943250,"-1,177.53",VOYAGE,CARE ESTABLISHMENT,LD - East Locality - Cost of Care,LD - East Cambs - Care,Residential Care
Cambridgeshire County Council,01-Mar-23,51301943250,"-1,177.53",VOYAGE,CARE ESTABLISHMENT,LD - East Locality - Cost of Care,LD - East Cambs - Care,Residential Care
Cambridgeshire County Council,01-Mar-23,51301943250,"-1,177.53",VOYAGE,CARE ESTABLISHMENT,LD - East Locality - Cost of Care,LD - East Cambs - Care,Residential Care
Cambridgeshire County Council,01-Mar-23,51301943250,"-1,177.53",VOYAGE,CARE ESTABLISHMENT,LD - East Locality - Cost of Care,LD - East Cambs - Care,Residential Care
Cambridgeshire County Council,01-Mar-23,51301943250,"-1,177.53",VOYAGE,CARE ESTABLISHMENT,LD - East Locality - Cost of Care,LD - East Cambs - Care,Residential Care
Cambridgeshire County Council,01-Mar-23,51301943250,"-1,177.53",VOYAGE,CARE ESTABLISHMENT,LD - East Locality - Cost of Care,LD - East Cambs - Care,Residential Care
Cambridgeshire County Council,01-Mar-23,51301943250,"-1,177.53",VOYAGE,CARE ESTABLISHMENT,LD - East Locality - Cost of Care,LD - East Cambs - Care,Residential Care
Cambridgeshire County Council,01-Mar-23,51301943250,"-1,177.53",VOYAGE,CARE ESTABLISHMENT,LD - East Locality - Cost of Care,LD - East Cambs - Care,Residential Care
Cambridgeshire County Council,01-Mar-23,51301943250,"-1,177.53",VOYAGE,CARE ESTABLISHMENT,LD - East Locality - Cost of Care,LD - East Cambs - Care,Residential Care
Cambridgeshire County Council,01-Mar-23,51301943250,"-1,177.53",VOYAGE,CARE ESTABLISHMENT,LD - East Locality - Cost of Care,LD - East Cambs - Care,Residential Care
Cambridgeshire County Council,01-Mar-23,51301943298,"-1,139.97",VOYAGE,CARE ESTABLISHMENT,LD - South Locality - Cost of Care,LD - South Cambs - Care,Residential Care
Cambridgeshire County Council,01-Mar-23,51301943298,"-1,139.97",VOYAGE,CARE ESTABLISHMENT,LD - South Locality - Cost of Care,LD - South Cambs - Care,Residential Care
Cambridgeshire County Council,01-Mar-23,51301943298,"-1,139.97",VOYAGE,CARE ESTABLISHMENT,LD - South Locality - Cost of Care,LD - South Cambs - Care,Residential Care
Cambridgeshire County Council,01-Mar-23,51301943298,"-1,139.97",VOYAGE,CARE ESTABLISHMENT,LD - South Locality - Cost of Care,LD - South Cambs - Care,Residential Care
Cambridgeshire County Council,01-Mar-23,51301943298,"-1,139.97",VOYAGE,CARE ESTABLISHMENT,LD - South Locality - Cost of Care,LD - South Cambs - Care,Residential Care
Cambridgeshire County Council,01-Mar-23,51301943298,"-1,139.97",VOYAGE,CARE ESTABLISHMENT,LD - South Locality - Cost of Care,LD - South Cambs - Care,Residential Care
Cambridgeshire County Council,01-Mar-23,51301943298,"-1,139.97",VOYAGE,CARE ESTABLISHMENT,LD - South Locality - Cost of Care,LD - South Cambs - Care,Residential Care
Cambridgeshire County Council,01-Mar-23,51301943298,"-1,139.97",VOYAGE,CARE ESTABLISHMENT,LD - South Locality - Cost of Care,LD - South Cambs - Care,Residential Care
Cambridgeshire County Council,01-Mar-23,51301943298,"-1,139.97",VOYAGE,CARE ESTABLISHMENT,LD - South Locality - Cost of Care,LD - South Cambs - Care,Residential Care
Cambridgeshire County Council,01-Mar-23,51301943298,"-1,139.97",VOYAGE,CARE ESTABLISHMENT,LD - South Locality - Cost of Care,LD - South Cambs - Care,Residential Care
Cambridgeshire County Council,01-Mar-23,51301943298,"-1,139.97",VOYAGE,CARE ESTABLISHMENT,LD - South Locality - Cost of Care,LD - South Cambs - Care,Residential Care
Cambridgeshire County Council,01-Mar-23,51301943298,"-1,139.97",VOYAGE,CARE ESTABLISHMENT,LD - South Locality - Cost of Care,LD - South Cambs - Care,Residential Care
Cambridgeshire County Council,01-Mar-23,51301943298,"-1,139.97",VOYAGE,CARE ESTABLISHMENT,LD - South Locality - Cost of Care,LD - South Cambs - Care,Residential Care
Cambridgeshire County Council,01-Mar-23,51301943298,"-1,139.97",VOYAGE,CARE ESTABLISHMENT,LD - South Locality - Cost of Care,LD - South Cambs - Care,Residential Care
Cambridgeshire County Council,01-Mar-23,51301943298,"-1,139.97",VOYAGE,CARE ESTABLISHMENT,LD - South Locality - Cost of Care,LD - South Cambs - Care,Residential Care
Cambridgeshire County Council,01-Mar-23,51301943298,"-1,139.97",VOYAGE,CARE ESTABLISHMENT,LD - South Locality - Cost of Care,LD - South Cambs - Care,Residential Care
Cambridgeshire County Council,01-Mar-23,51301943298,"-1,139.97",VOYAGE,CARE ESTABLISHMENT,LD - South Locality - Cost of Care,LD - South Cambs - Care,Residential Care
Cambridgeshire County Council,01-Mar-23,51301943298,"-1,139.97",VOYAGE,CARE ESTABLISHMENT,LD - South Locality - Cost of Care,LD - South Cambs - Care,Residential Care
Cambridgeshire County Council,01-Mar-23,51301943298,"-1,139.97",VOYAGE,CARE ESTABLISHMENT,LD - South Locality - Cost of Care,LD - South Cambs - Care,Residential Care
Cambridgeshire County Council,01-Mar-23,51301943298,"-1,139.97",VOYAGE,CARE ESTABLISHMENT,LD - South Locality - Cost of Care,LD - South Cambs - Care,Residential Care
Cambridgeshire County Council,01-Mar-23,51301943298,"-1,139.97",VOYAGE,CARE ESTABLISHMENT,LD - South Locality - Cost of Care,LD - South Cambs - Care,Residential Care
Cambridgeshire County Council,01-Mar-23,51301943298,"-1,139.97",VOYAGE,CARE ESTABLISHMENT,LD - South Locality - Cost of Care,LD - South Cambs - Care,Residential Care
Cambridgeshire County Council,01-Mar-23,51301943298,"-1,139.97",VOYAGE,CARE ESTABLISHMENT,LD - South Locality - Cost of Care,LD - South Cambs - Care,Residential Care
Cambridgeshire County Council,01-Mar-23,51301943298,"-1,139.97",VOYAGE,CARE ESTABLISHMENT,LD - South Locality - Cost of Care,LD - South Cambs - Care,Residential Care
Cambridgeshire County Council,01-Mar-23,51301943298,"-1,139.97",VOYAGE,CARE ESTABLISHMENT,LD - South Locality - Cost of Care,LD - South Cambs - Care,Residential Care
Cambridgeshire County Council,01-Mar-23,51301943298,"-1,139.97",VOYAGE,CARE ESTABLISHMENT,LD - South Locality - Cost of Care,LD - South Cambs - Care,Residential Care
Cambridgeshire County Council,01-Mar-23,51301943298,"-1,139.97",VOYAGE,CARE ESTABLISHMENT,LD - South Locality - Cost of Care,LD - South Cambs - Care,Residential Care
Cambridgeshire County Council,01-Mar-23,51301943298,"-1,139.97",VOYAGE,CARE ESTABLISHMENT,LD - South Locality - Cost of Care,LD - South Cambs - Care,Residential Care
Cambridgeshire County Council,01-Mar-23,51301943298,"-1,139.97",VOYAGE,CARE ESTABLISHMENT,LD - South Locality - Cost of Care,LD - South Cambs - Care,Residential Care
Cambridgeshire County Council,01-Mar-23,51301943298,"-1,139.97",VOYAGE,CARE ESTABLISHMENT,LD - South Locality - Cost of Care,LD - South Cambs - Care,Residential Care
Cambridgeshire County Council,01-Mar-23,51301943298,"-1,139.97",VOYAGE,CARE ESTABLISHMENT,LD - South Locality - Cost of Care,LD - South Cambs - Care,Residential Care
Cambridgeshire County Council,01-Mar-23,51301943298,"-1,139.97",VOYAGE,CARE ESTABLISHMENT,LD - South Locality - Cost of Care,LD - South Cambs - Care,Residential Care
Cambridgeshire County Council,01-Mar-23,51301943298,"-1,139.97",VOYAGE,CARE ESTABLISHMENT,LD - South Locality - Cost of Care,LD - South Cambs - Care,Residential Care
Cambridgeshire County Council,01-Mar-23,51301943298,"-1,139.97",VOYAGE,CARE ESTABLISHMENT,LD - South Locality - Cost of Care,LD - South Cambs - Care,Residential Care
Cambridgeshire County Council,01-Mar-23,51301943298,"-1,139.97",VOYAGE,CARE ESTABLISHMENT,LD - South Locality - Cost of Care,LD - South Cambs - Care,Residential Care
Cambridgeshire County Council,01-Mar-23,51301943298,"-1,139.97",VOYAGE,CARE ESTABLISHMENT,LD - South Locality - Cost of Care,LD - South Cambs - Care,Residential Care
Cambridgeshire County Council,01-Mar-23,51301943298,"-1,139.97",VOYAGE,CARE ESTABLISHMENT,LD - South Locality - Cost of Care,LD - South Cambs - Care,Residential Care
Cambridgeshire County Council,01-Mar-23,51301943298,"-1,139.97",VOYAGE,CARE ESTABLISHMENT,LD - South Locality - Cost of Care,LD - South Cambs - Care,Residential Care
Cambridgeshire County Council,01-Mar-23,51301943298,"-1,139.97",VOYAGE,CARE ESTABLISHMENT,LD - South Locality - Cost of Care,LD - South Cambs - Care,Residential Care
Cambridgeshire County Council,01-Mar-23,51301943298,"-1,139.97",VOYAGE,CARE ESTABLISHMENT,LD - South Locality - Cost of Care,LD - South Cambs - Care,Residential Care
Cambridgeshire County Council,01-Mar-23,51301943298,"-1,139.97",VOYAGE,CARE ESTABLISHMENT,LD - South Locality - Cost of Care,LD - South Cambs - Care,Residential Care
Cambridgeshire County Council,01-Mar-23,51301943298,"-1,139.97",VOYAGE,CARE ESTABLISHMENT,LD - South Locality - Cost of Care,LD - South Cambs - Care,Residential Care
Cambridgeshire County Council,01-Mar-23,51301943298,"-1,139.97",VOYAGE,CARE ESTABLISHMENT,LD - South Locality - Cost of Care,LD - South Cambs - Care,Residential Care
Cambridgeshire County Council,01-Mar-23,51301943298,"-1,139.97",VOYAGE,CARE ESTABLISHMENT,LD - South Locality - Cost of Care,LD - South Cambs - Care,Residential Care
Cambridgeshire County Council,01-Mar-23,51301943298,"-1,139.97",VOYAGE,CARE ESTABLISHMENT,LD - South Locality - Cost of Care,LD - South Cambs - Care,Residential Care
Cambridgeshire County Council,01-Mar-23,51301943298,"-1,139.97",VOYAGE,CARE ESTABLISHMENT,LD - South Locality - Cost of Care,LD - South Cambs - Care,Residential Care
Cambridgeshire County Council,01-Mar-23,51301943298,"-1,139.97",VOYAGE,CARE ESTABLISHMENT,LD - South Locality - Cost of Care,LD - South Cambs - Care,Residential Care
Cambridgeshire County Council,01-Mar-23,51301943298,"-1,139.97",VOYAGE,CARE ESTABLISHMENT,LD - South Locality - Cost of Care,LD - South Cambs - Care,Residential Care
Cambridgeshire County Council,01-Mar-23,51301943298,"-1,139.97",VOYAGE,CARE ESTABLISHMENT,LD - South Locality - Cost of Care,LD - South Cambs - Care,Residential Care
Cambridgeshire County Council,01-Mar-23,51301943298,"-1,139.97",VOYAGE,CARE ESTABLISHMENT,LD - South Locality - Cost of Care,LD - South Cambs - Care,Residential Care
Cambridgeshire County Council,01-Mar-23,51301943298,"-1,139.97",VOYAGE,CARE ESTABLISHMENT,LD - South Locality - Cost of Care,LD - South Cambs - Care,Residential Care
Cambridgeshire County Council,01-Mar-23,51301943298,"-1,139.97",VOYAGE,CARE ESTABLISHMENT,LD - South Locality - Cost of Care,LD - South Cambs - Care,Residential Care
Cambridgeshire County Council,01-Mar-23,51301943297,"-1,103.41",VOYAGE (LICHFIELD),CARE ESTABLISHMENT,LD - Fenland Locality - Cost of Care,LD - Fenland  - Care,Residential Care
Cambridgeshire County Council,01-Mar-23,51301943297,"-1,103.41",VOYAGE (LICHFIELD),CARE ESTABLISHMENT,LD - Fenland Locality - Cost of Care,LD - Fenland  - Care,Residential Care
Cambridgeshire County Council,01-Mar-23,51301943297,"-1,103.41",VOYAGE (LICHFIELD),CARE ESTABLISHMENT,LD - Fenland Locality - Cost of Care,LD - Fenland  - Care,Residential Care
Cambridgeshire County Council,01-Mar-23,51301943297,"-1,103.41",VOYAGE (LICHFIELD),CARE ESTABLISHMENT,LD - Fenland Locality - Cost of Care,LD - Fenland  - Care,Residential Care
Cambridgeshire County Council,01-Mar-23,51301943297,"-1,103.41",VOYAGE (LICHFIELD),CARE ESTABLISHMENT,LD - Fenland Locality - Cost of Care,LD - Fenland  - Care,Residential Care
Cambridgeshire County Council,01-Mar-23,51301943297,"-1,103.41",VOYAGE (LICHFIELD),CARE ESTABLISHMENT,LD - Fenland Locality - Cost of Care,LD - Fenland  - Care,Residential Care
Cambridgeshire County Council,01-Mar-23,51301943297,"-1,103.41",VOYAGE (LICHFIELD),CARE ESTABLISHMENT,LD - Fenland Locality - Cost of Care,LD - Fenland  - Care,Residential Care
Cambridgeshire County Council,01-Mar-23,51301943297,"-1,103.41",VOYAGE (LICHFIELD),CARE ESTABLISHMENT,LD - Fenland Locality - Cost of Care,LD - Fenland  - Care,Residential Care
Cambridgeshire County Council,01-Mar-23,51301943297,"-1,103.41",VOYAGE (LICHFIELD),CARE ESTABLISHMENT,LD - Fenland Locality - Cost of Care,LD - Fenland  - Care,Residential Care
Cambridgeshire County Council,01-Mar-23,51301943297,"-1,103.41",VOYAGE (LICHFIELD),CARE ESTABLISHMENT,LD - Fenland Locality - Cost of Care,LD - Fenland  - Care,Residential Care
Cambridgeshire County Council,01-Mar-23,51301943297,"-1,103.41",VOYAGE (LICHFIELD),CARE ESTABLISHMENT,LD - Fenland Locality - Cost of Care,LD - Fenland  - Care,Residential Care
Cambridgeshire County Council,01-Mar-23,51301943297,"-1,103.41",VOYAGE (LICHFIELD),CARE ESTABLISHMENT,LD - Fenland Locality - Cost of Care,LD - Fenland  - Care,Residential Care
Cambridgeshire County Council,01-Mar-23,51301943297,"-1,103.41",VOYAGE (LICHFIELD),CARE ESTABLISHMENT,LD - Fenland Locality - Cost of Care,LD - Fenland  - Care,Residential Care
Cambridgeshire County Council,01-Mar-23,51301943297,"-1,103.41",VOYAGE (LICHFIELD),CARE ESTABLISHMENT,LD - Fenland Locality - Cost of Care,LD - Fenland  - Care,Residential Care
Cambridgeshire County Council,01-Mar-23,51301943297,"-1,103.41",VOYAGE (LICHFIELD),CARE ESTABLISHMENT,LD - Fenland Locality - Cost of Care,LD - Fenland  - Care,Residential Care
Cambridgeshire County Council,01-Mar-23,51301943297,"-1,103.41",VOYAGE (LICHFIELD),CARE ESTABLISHMENT,LD - Fenland Locality - Cost of Care,LD - Fenland  - Care,Residential Care
Cambridgeshire County Council,01-Mar-23,51301943297,"-1,103.41",VOYAGE (LICHFIELD),CARE ESTABLISHMENT,LD - Fenland Locality - Cost of Care,LD - Fenland  - Care,Residential Care
Cambridgeshire County Council,01-Mar-23,51301943297,"-1,103.41",VOYAGE (LICHFIELD),CARE ESTABLISHMENT,LD - Fenland Locality - Cost of Care,LD - Fenland  - Care,Residential Care
Cambridgeshire County Council,01-Mar-23,51301943297,"-1,103.41",VOYAGE (LICHFIELD),CARE ESTABLISHMENT,LD - Fenland Locality - Cost of Care,LD - Fenland  - Care,Residential Care
Cambridgeshire County Council,01-Mar-23,51301943297,"-1,103.41",VOYAGE (LICHFIELD),CARE ESTABLISHMENT,LD - Fenland Locality - Cost of Care,LD - Fenland  - Care,Residential Care
Cambridgeshire County Council,01-Mar-23,51301943297,"-1,103.41",VOYAGE (LICHFIELD),CARE ESTABLISHMENT,LD - Fenland Locality - Cost of Care,LD - Fenland  - Care,Residential Care
Cambridgeshire County Council,01-Mar-23,51301943297,"-1,103.41",VOYAGE (LICHFIELD),CARE ESTABLISHMENT,LD - Fenland Locality - Cost of Care,LD - Fenland  - Care,Residential Care
Cambridgeshire County Council,01-Mar-23,51301943297,"-1,103.41",VOYAGE (LICHFIELD),CARE ESTABLISHMENT,LD - Fenland Locality - Cost of Care,LD - Fenland  - Care,Residential Care
Cambridgeshire County Council,01-Mar-23,51301943297,"-1,103.41",VOYAGE (LICHFIELD),CARE ESTABLISHMENT,LD - Fenland Locality - Cost of Care,LD - Fenland  - Care,Residential Care
Cambridgeshire County Council,01-Mar-23,51301943297,"-1,103.41",VOYAGE (LICHFIELD),CARE ESTABLISHMENT,LD - Fenland Locality - Cost of Care,LD - Fenland  - Care,Residential Care
Cambridgeshire County Council,01-Mar-23,51301943297,"-1,103.41",VOYAGE (LICHFIELD),CARE ESTABLISHMENT,LD - Fenland Locality - Cost of Care,LD - Fenland  - Care,Residential Care
Cambridgeshire County Council,01-Mar-23,51301943297,"-1,103.41",VOYAGE (LICHFIELD),CARE ESTABLISHMENT,LD - Fenland Locality - Cost of Care,LD - Fenland  - Care,Residential Care
Cambridgeshire County Council,01-Mar-23,51301943297,"-1,103.41",VOYAGE (LICHFIELD),CARE ESTABLISHMENT,LD - Fenland Locality - Cost of Care,LD - Fenland  - Care,Residential Care
Cambridgeshire County Council,01-Mar-23,51301943297,"-1,103.41",VOYAGE (LICHFIELD),CARE ESTABLISHMENT,LD - Fenland Locality - Cost of Care,LD - Fenland  - Care,Residential Care
Cambridgeshire County Council,01-Mar-23,51301943297,"-1,103.41",VOYAGE (LICHFIELD),CARE ESTABLISHMENT,LD - Fenland Locality - Cost of Care,LD - Fenland  - Care,Residential Care
Cambridgeshire County Council,01-Mar-23,51301943297,"-1,103.41",VOYAGE (LICHFIELD),CARE ESTABLISHMENT,LD - Fenland Locality - Cost of Care,LD - Fenland  - Care,Residential Care
Cambridgeshire County Council,01-Mar-23,51301943297,"-1,103.41",VOYAGE (LICHFIELD),CARE ESTABLISHMENT,LD - Fenland Locality - Cost of Care,LD - Fenland  - Care,Residential Care
Cambridgeshire County Council,01-Mar-23,51301943297,"-1,103.41",VOYAGE (LICHFIELD),CARE ESTABLISHMENT,LD - Fenland Locality - Cost of Care,LD - Fenland  - Care,Residential Care
Cambridgeshire County Council,01-Mar-23,51301943297,"-1,103.41",VOYAGE (LICHFIELD),CARE ESTABLISHMENT,LD - Fenland Locality - Cost of Care,LD - Fenland  - Care,Residential Care
Cambridgeshire County Council,01-Mar-23,51301943297,"-1,103.41",VOYAGE (LICHFIELD),CARE ESTABLISHMENT,LD - Fenland Locality - Cost of Care,LD - Fenland  - Care,Residential Care
Cambridgeshire County Council,01-Mar-23,51301943297,"-1,103.41",VOYAGE (LICHFIELD),CARE ESTABLISHMENT,LD - Fenland Locality - Cost of Care,LD - Fenland  - Care,Residential Care
Cambridgeshire County Council,01-Mar-23,51301943297,"-1,103.41",VOYAGE (LICHFIELD),CARE ESTABLISHMENT,LD - Fenland Locality - Cost of Care,LD - Fenland  - Care,Residential Care
Cambridgeshire County Council,01-Mar-23,51301943297,"-1,103.41",VOYAGE (LICHFIELD),CARE ESTABLISHMENT,LD - Fenland Locality - Cost of Care,LD - Fenland  - Care,Residential Care
Cambridgeshire County Council,01-Mar-23,51301943297,"-1,103.41",VOYAGE (LICHFIELD),CARE ESTABLISHMENT,LD - Fenland Locality - Cost of Care,LD - Fenland  - Care,Residential Care
Cambridgeshire County Council,01-Mar-23,51301943297,"-1,103.41",VOYAGE (LICHFIELD),CARE ESTABLISHMENT,LD - Fenland Locality - Cost of Care,LD - Fenland  - Care,Residential Care
Cambridgeshire County Council,01-Mar-23,51301943297,"-1,103.41",VOYAGE (LICHFIELD),CARE ESTABLISHMENT,LD - Fenland Locality - Cost of Care,LD - Fenland  - Care,Residential Care
Cambridgeshire County Council,01-Mar-23,51301943297,"-1,103.41",VOYAGE (LICHFIELD),CARE ESTABLISHMENT,LD - Fenland Locality - Cost of Care,LD - Fenland  - Care,Residential Care
Cambridgeshire County Council,01-Mar-23,51301943297,"-1,103.41",VOYAGE (LICHFIELD),CARE ESTABLISHMENT,LD - Fenland Locality - Cost of Care,LD - Fenland  - Care,Residential Care
Cambridgeshire County Council,01-Mar-23,51301943297,"-1,103.41",VOYAGE (LICHFIELD),CARE ESTABLISHMENT,LD - Fenland Locality - Cost of Care,LD - Fenland  - Care,Residential Care
Cambridgeshire County Council,01-Mar-23,51301943297,"-1,103.41",VOYAGE (LICHFIELD),CARE ESTABLISHMENT,LD - Fenland Locality - Cost of Care,LD - Fenland  - Care,Residential Care
Cambridgeshire County Council,01-Mar-23,51301943297,"-1,103.41",VOYAGE (LICHFIELD),CARE ESTABLISHMENT,LD - Fenland Locality - Cost of Care,LD - Fenland  - Care,Residential Care
Cambridgeshire County Council,01-Mar-23,51301943297,"-1,103.41",VOYAGE (LICHFIELD),CARE ESTABLISHMENT,LD - Fenland Locality - Cost of Care,LD - Fenland  - Care,Residential Care
Cambridgeshire County Council,01-Mar-23,51301943297,"-1,103.41",VOYAGE (LICHFIELD),CARE ESTABLISHMENT,LD - Fenland Locality - Cost of Care,LD - Fenland  - Care,Residential Care
Cambridgeshire County Council,01-Mar-23,51301943297,"-1,103.41",VOYAGE (LICHFIELD),CARE ESTABLISHMENT,LD - Fenland Locality - Cost of Care,LD - Fenland  - Care,Residential Care
Cambridgeshire County Council,01-Mar-23,51301943297,"-1,103.41",VOYAGE (LICHFIELD),CARE ESTABLISHMENT,LD - Fenland Locality - Cost of Care,LD - Fenland  - Care,Residential Care
Cambridgeshire County Council,01-Mar-23,51301943297,"-1,103.41",VOYAGE (LICHFIELD),CARE ESTABLISHMENT,LD - Fenland Locality - Cost of Care,LD - Fenland  - Care,Residential Care
Cambridgeshire County Council,01-Mar-23,51301943297,"-1,103.41",VOYAGE (LICHFIELD),CARE ESTABLISHMENT,LD - Fenland Locality - Cost of Care,LD - Fenland  - Care,Residential Care
Cambridgeshire County Council,01-Mar-23,51301943297,"-1,103.40",VOYAGE (LICHFIELD),CARE ESTABLISHMENT,LD - Fenland Locality - Cost of Care,LD - Fenland  - Care,Residential Care
Cambridgeshire County Council,01-Mar-23,51301943297,"-1,103.40",VOYAGE (LICHFIELD),CARE ESTABLISHMENT,LD - Fenland Locality - Cost of Care,LD - Fenland  - Care,Residential Care
Cambridgeshire County Council,01-Mar-23,51301943297,"-1,103.40",VOYAGE (LICHFIELD),CARE ESTABLISHMENT,LD - Fenland Locality - Cost of Care,LD - Fenland  - Care,Residential Care
Cambridgeshire County Council,01-Mar-23,51301943297,"-1,103.40",VOYAGE (LICHFIELD),CARE ESTABLISHMENT,LD - Fenland Locality - Cost of Care,LD - Fenland  - Care,Residential Care
Cambridgeshire County Council,01-Mar-23,51301943297,"-1,103.40",VOYAGE (LICHFIELD),CARE ESTABLISHMENT,LD - Fenland Locality - Cost of Care,LD - Fenland  - Care,Residential Care
Cambridgeshire County Council,01-Mar-23,51301943297,"-1,103.40",VOYAGE (LICHFIELD),CARE ESTABLISHMENT,LD - Fenland Locality - Cost of Care,LD - Fenland  - Care,Residential Care
Cambridgeshire County Council,01-Mar-23,51301943297,"-1,103.40",VOYAGE (LICHFIELD),CARE ESTABLISHMENT,LD - Fenland Locality - Cost of Care,LD - Fenland  - Care,Residential Care
Cambridgeshire County Council,01-Mar-23,51301943297,"-1,103.40",VOYAGE (LICHFIELD),CARE ESTABLISHMENT,LD - Fenland Locality - Cost of Care,LD - Fenland  - Care,Residential Care
Cambridgeshire County Council,01-Mar-23,51301943297,"-1,103.40",VOYAGE (LICHFIELD),CARE ESTABLISHMENT,LD - Fenland Locality - Cost of Care,LD - Fenland  - Care,Residential Care
Cambridgeshire County Council,01-Mar-23,51301943297,"-1,103.40",VOYAGE (LICHFIELD),CARE ESTABLISHMENT,LD - Fenland Locality - Cost of Care,LD - Fenland  - Care,Residential Care
Cambridgeshire County Council,01-Mar-23,51301943297,"-1,103.40",VOYAGE (LICHFIELD),CARE ESTABLISHMENT,LD - Fenland Locality - Cost of Care,LD - Fenland  - Care,Residential Care
Cambridgeshire County Council,01-Mar-23,51301943297,"-1,103.40",VOYAGE (LICHFIELD),CARE ESTABLISHMENT,LD - Fenland Locality - Cost of Care,LD - Fenland  - Care,Residential Care
Cambridgeshire County Council,01-Mar-23,51301943297,"-1,103.40",VOYAGE (LICHFIELD),CARE ESTABLISHMENT,LD - Fenland Locality - Cost of Care,LD - Fenland  - Care,Residential Care
Cambridgeshire County Council,01-Mar-23,51301943297,"-1,103.40",VOYAGE (LICHFIELD),CARE ESTABLISHMENT,LD - Fenland Locality - Cost of Care,LD - Fenland  - Care,Residential Care
Cambridgeshire County Council,01-Mar-23,51301943297,"-1,103.40",VOYAGE (LICHFIELD),CARE ESTABLISHMENT,LD - Fenland Locality - Cost of Care,LD - Fenland  - Care,Residential Care
Cambridgeshire County Council,01-Mar-23,51301943297,"-1,103.40",VOYAGE (LICHFIELD),CARE ESTABLISHMENT,LD - Fenland Locality - Cost of Care,LD - Fenland  - Care,Residential Care
Cambridgeshire County Council,01-Mar-23,51301943297,"-1,103.40",VOYAGE (LICHFIELD),CARE ESTABLISHMENT,LD - Fenland Locality - Cost of Care,LD - Fenland  - Care,Residential Care
Cambridgeshire County Council,01-Mar-23,51301943297,"-1,103.40",VOYAGE (LICHFIELD),CARE ESTABLISHMENT,LD - Fenland Locality - Cost of Care,LD - Fenland  - Care,Residential Care
Cambridgeshire County Council,01-Mar-23,51301943297,"-1,103.40",VOYAGE (LICHFIELD),CARE ESTABLISHMENT,LD - Fenland Locality - Cost of Care,LD - Fenland  - Care,Residential Care
Cambridgeshire County Council,01-Mar-23,51301943297,"-1,103.40",VOYAGE (LICHFIELD),CARE ESTABLISHMENT,LD - Fenland Locality - Cost of Care,LD - Fenland  - Care,Residential Care
Cambridgeshire County Council,01-Mar-23,51301943297,"-1,103.40",VOYAGE (LICHFIELD),CARE ESTABLISHMENT,LD - Fenland Locality - Cost of Care,LD - Fenland  - Care,Residential Care
Cambridgeshire County Council,01-Mar-23,51301943297,"-1,103.40",VOYAGE (LICHFIELD),CARE ESTABLISHMENT,LD - Fenland Locality - Cost of Care,LD - Fenland  - Care,Residential Care
Cambridgeshire County Council,01-Mar-23,51301943297,"-1,103.40",VOYAGE (LICHFIELD),CARE ESTABLISHMENT,LD - Fenland Locality - Cost of Care,LD - Fenland  - Care,Residential Care
Cambridgeshire County Council,01-Mar-23,51301943297,"-1,103.40",VOYAGE (LICHFIELD),CARE ESTABLISHMENT,LD - Fenland Locality - Cost of Care,LD - Fenland  - Care,Residential Care
Cambridgeshire County Council,01-Mar-23,51301943297,"-1,103.40",VOYAGE (LICHFIELD),CARE ESTABLISHMENT,LD - Fenland Locality - Cost of Care,LD - Fenland  - Care,Residential Care
Cambridgeshire County Council,01-Mar-23,51301943297,"-1,103.40",VOYAGE (LICHFIELD),CARE ESTABLISHMENT,LD - Fenland Locality - Cost of Care,LD - Fenland  - Care,Residential Care
Cambridgeshire County Council,01-Mar-23,51301943297,"-1,103.40",VOYAGE (LICHFIELD),CARE ESTABLISHMENT,LD - Fenland Locality - Cost of Care,LD - Fenland  - Care,Residential Care
Cambridgeshire County Council,01-Mar-23,51301943297,"-1,103.40",VOYAGE (LICHFIELD),CARE ESTABLISHMENT,LD - Fenland Locality - Cost of Care,LD - Fenland  - Care,Residential Care
Cambridgeshire County Council,01-Mar-23,51301943297,"-1,103.40",VOYAGE (LICHFIELD),CARE ESTABLISHMENT,LD - Fenland Locality - Cost of Care,LD - Fenland  - Care,Residential Care
Cambridgeshire County Council,01-Mar-23,51301943297,"-1,103.40",VOYAGE (LICHFIELD),CARE ESTABLISHMENT,LD - Fenland Locality - Cost of Care,LD - Fenland  - Care,Residential Care
Cambridgeshire County Council,01-Mar-23,51301943297,"-1,103.40",VOYAGE (LICHFIELD),CARE ESTABLISHMENT,LD - Fenland Locality - Cost of Care,LD - Fenland  - Care,Residential Care
Cambridgeshire County Council,01-Mar-23,51301943297,"-1,103.40",VOYAGE (LICHFIELD),CARE ESTABLISHMENT,LD - Fenland Locality - Cost of Care,LD - Fenland  - Care,Residential Care
Cambridgeshire County Council,01-Mar-23,51301943297,"-1,103.40",VOYAGE (LICHFIELD),CARE ESTABLISHMENT,LD - Fenland Locality - Cost of Care,LD - Fenland  - Care,Residential Care
Cambridgeshire County Council,01-Mar-23,51301943297,"-1,103.40",VOYAGE (LICHFIELD),CARE ESTABLISHMENT,LD - Fenland Locality - Cost of Care,LD - Fenland  - Care,Residential Care
Cambridgeshire County Council,01-Mar-23,51301943297,"-1,103.40",VOYAGE (LICHFIELD),CARE ESTABLISHMENT,LD - Fenland Locality - Cost of Care,LD - Fenland  - Care,Residential Care
Cambridgeshire County Council,01-Mar-23,51301943297,"-1,103.40",VOYAGE (LICHFIELD),CARE ESTABLISHMENT,LD - Fenland Locality - Cost of Care,LD - Fenland  - Care,Residential Care
Cambridgeshire County Council,01-Mar-23,51301943297,"-1,103.40",VOYAGE (LICHFIELD),CARE ESTABLISHMENT,LD - Fenland Locality - Cost of Care,LD - Fenland  - Care,Residential Care
Cambridgeshire County Council,01-Mar-23,51301943297,"-1,103.40",VOYAGE (LICHFIELD),CARE ESTABLISHMENT,LD - Fenland Locality - Cost of Care,LD - Fenland  - Care,Residential Care
Cambridgeshire County Council,01-Mar-23,51301943297,"-1,103.40",VOYAGE (LICHFIELD),CARE ESTABLISHMENT,LD - Fenland Locality - Cost of Care,LD - Fenland  - Care,Residential Care
Cambridgeshire County Council,01-Mar-23,51301943297,"-1,103.40",VOYAGE (LICHFIELD),CARE ESTABLISHMENT,LD - Fenland Locality - Cost of Care,LD - Fenland  - Care,Residential Care
Cambridgeshire County Council,01-Mar-23,51301943297,"-1,103.40",VOYAGE (LICHFIELD),CARE ESTABLISHMENT,LD - Fenland Locality - Cost of Care,LD - Fenland  - Care,Residential Care
Cambridgeshire County Council,01-Mar-23,51301943297,"-1,103.40",VOYAGE (LICHFIELD),CARE ESTABLISHMENT,LD - Fenland Locality - Cost of Care,LD - Fenland  - Care,Residential Care
Cambridgeshire County Council,01-Mar-23,51301943297,"-1,103.40",VOYAGE (LICHFIELD),CARE ESTABLISHMENT,LD - Fenland Locality - Cost of Care,LD - Fenland  - Care,Residential Care
Cambridgeshire County Council,01-Mar-23,51301943297,"-1,103.40",VOYAGE (LICHFIELD),CARE ESTABLISHMENT,LD - Fenland Locality - Cost of Care,LD - Fenland  - Care,Residential Care
Cambridgeshire County Council,01-Mar-23,51301943297,"-1,103.40",VOYAGE (LICHFIELD),CARE ESTABLISHMENT,LD - Fenland Locality - Cost of Care,LD - Fenland  - Care,Residential Care
Cambridgeshire County Council,01-Mar-23,51301943297,"-1,103.40",VOYAGE (LICHFIELD),CARE ESTABLISHMENT,LD - Fenland Locality - Cost of Care,LD - Fenland  - Care,Residential Care
Cambridgeshire County Council,01-Mar-23,51301943297,"-1,103.40",VOYAGE (LICHFIELD),CARE ESTABLISHMENT,LD - Fenland Locality - Cost of Care,LD - Fenland  - Care,Residential Care
Cambridgeshire County Council,01-Mar-23,51301943297,"-1,103.40",VOYAGE (LICHFIELD),CARE ESTABLISHMENT,LD - Fenland Locality - Cost of Care,LD - Fenland  - Care,Residential Care
Cambridgeshire County Council,01-Mar-23,51301943297,"-1,103.40",VOYAGE (LICHFIELD),CARE ESTABLISHMENT,LD - Fenland Locality - Cost of Care,LD - Fenland  - Care,Residential Care
Cambridgeshire County Council,01-Mar-23,51301943297,"-1,103.40",VOYAGE (LICHFIELD),CARE ESTABLISHMENT,LD - Fenland Locality - Cost of Care,LD - Fenland  - Care,Residential Care
Cambridgeshire County Council,01-Mar-23,51301943297,"-1,103.40",VOYAGE (LICHFIELD),CARE ESTABLISHMENT,LD - Fenland Locality - Cost of Care,LD - Fenland  - Care,Residential Care
Cambridgeshire County Council,01-Mar-23,51301943297,"-1,103.40",VOYAGE (LICHFIELD),CARE ESTABLISHMENT,LD - Fenland Locality - Cost of Care,LD - Fenland  - Care,Residential Care
Cambridgeshire County Council,01-Mar-23,51301943286,"-1,070.78",VOYAGE,CARE ESTABLISHMENT,LD - South Locality - Cost of Care,LD - South Cambs - Care,Residential Care
Cambridgeshire County Council,01-Mar-23,51301943286,"-1,070.78",VOYAGE,CARE ESTABLISHMENT,LD - South Locality - Cost of Care,LD - South Cambs - Care,Residential Care
Cambridgeshire County Council,01-Mar-23,51301943286,"-1,070.78",VOYAGE,CARE ESTABLISHMENT,LD - South Locality - Cost of Care,LD - South Cambs - Care,Residential Care
Cambridgeshire County Council,01-Mar-23,51301943286,"-1,070.78",VOYAGE,CARE ESTABLISHMENT,LD - South Locality - Cost of Care,LD - South Cambs - Care,Residential Care
Cambridgeshire County Council,01-Mar-23,51301943286,"-1,070.78",VOYAGE,CARE ESTABLISHMENT,LD - South Locality - Cost of Care,LD - South Cambs - Care,Residential Care
Cambridgeshire County Council,01-Mar-23,51301943286,"-1,070.78",VOYAGE,CARE ESTABLISHMENT,LD - South Locality - Cost of Care,LD - South Cambs - Care,Residential Care
Cambridgeshire County Council,01-Mar-23,51301943286,"-1,070.78",VOYAGE,CARE ESTABLISHMENT,LD - South Locality - Cost of Care,LD - South Cambs - Care,Residential Care
Cambridgeshire County Council,01-Mar-23,51301943286,"-1,070.78",VOYAGE,CARE ESTABLISHMENT,LD - South Locality - Cost of Care,LD - South Cambs - Care,Residential Care
Cambridgeshire County Council,01-Mar-23,51301943286,"-1,070.78",VOYAGE,CARE ESTABLISHMENT,LD - South Locality - Cost of Care,LD - South Cambs - Care,Residential Care
Cambridgeshire County Council,01-Mar-23,51301943286,"-1,070.78",VOYAGE,CARE ESTABLISHMENT,LD - South Locality - Cost of Care,LD - South Cambs - Care,Residential Care
Cambridgeshire County Council,01-Mar-23,51301943286,"-1,070.78",VOYAGE,CARE ESTABLISHMENT,LD - South Locality - Cost of Care,LD - South Cambs - Care,Residential Care
Cambridgeshire County Council,01-Mar-23,51301943286,"-1,070.78",VOYAGE,CARE ESTABLISHMENT,LD - South Locality - Cost of Care,LD - South Cambs - Care,Residential Care
Cambridgeshire County Council,01-Mar-23,51301943286,"-1,070.78",VOYAGE,CARE ESTABLISHMENT,LD - South Locality - Cost of Care,LD - South Cambs - Care,Residential Care
Cambridgeshire County Council,01-Mar-23,51301943286,"-1,070.78",VOYAGE,CARE ESTABLISHMENT,LD - South Locality - Cost of Care,LD - South Cambs - Care,Residential Care
Cambridgeshire County Council,01-Mar-23,51301943286,"-1,070.78",VOYAGE,CARE ESTABLISHMENT,LD - South Locality - Cost of Care,LD - South Cambs - Care,Residential Care
Cambridgeshire County Council,01-Mar-23,51301943286,"-1,070.78",VOYAGE,CARE ESTABLISHMENT,LD - South Locality - Cost of Care,LD - South Cambs - Care,Residential Care
Cambridgeshire County Council,01-Mar-23,51301943286,"-1,070.78",VOYAGE,CARE ESTABLISHMENT,LD - South Locality - Cost of Care,LD - South Cambs - Care,Residential Care
Cambridgeshire County Council,01-Mar-23,51301943286,"-1,070.78",VOYAGE,CARE ESTABLISHMENT,LD - South Locality - Cost of Care,LD - South Cambs - Care,Residential Care
Cambridgeshire County Council,01-Mar-23,51301943286,"-1,070.78",VOYAGE,CARE ESTABLISHMENT,LD - South Locality - Cost of Care,LD - South Cambs - Care,Residential Care
Cambridgeshire County Council,01-Mar-23,51301943286,"-1,070.78",VOYAGE,CARE ESTABLISHMENT,LD - South Locality - Cost of Care,LD - South Cambs - Care,Residential Care
Cambridgeshire County Council,01-Mar-23,51301943286,"-1,070.78",VOYAGE,CARE ESTABLISHMENT,LD - South Locality - Cost of Care,LD - South Cambs - Care,Residential Care
Cambridgeshire County Council,01-Mar-23,51301943286,"-1,070.78",VOYAGE,CARE ESTABLISHMENT,LD - South Locality - Cost of Care,LD - South Cambs - Care,Residential Care
Cambridgeshire County Council,01-Mar-23,51301943286,"-1,070.78",VOYAGE,CARE ESTABLISHMENT,LD - South Locality - Cost of Care,LD - South Cambs - Care,Residential Care
Cambridgeshire County Council,01-Mar-23,51301943286,"-1,070.78",VOYAGE,CARE ESTABLISHMENT,LD - South Locality - Cost of Care,LD - South Cambs - Care,Residential Care
Cambridgeshire County Council,01-Mar-23,51301943286,"-1,070.78",VOYAGE,CARE ESTABLISHMENT,LD - South Locality - Cost of Care,LD - South Cambs - Care,Residential Care
Cambridgeshire County Council,01-Mar-23,51301943286,"-1,070.78",VOYAGE,CARE ESTABLISHMENT,LD - South Locality - Cost of Care,LD - South Cambs - Care,Residential Care
Cambridgeshire County Council,01-Mar-23,51301943286,"-1,070.78",VOYAGE,CARE ESTABLISHMENT,LD - South Locality - Cost of Care,LD - South Cambs - Care,Residential Care
Cambridgeshire County Council,01-Mar-23,51301943286,"-1,070.78",VOYAGE,CARE ESTABLISHMENT,LD - South Locality - Cost of Care,LD - South Cambs - Care,Residential Care
Cambridgeshire County Council,01-Mar-23,51301943286,"-1,070.78",VOYAGE,CARE ESTABLISHMENT,LD - South Locality - Cost of Care,LD - South Cambs - Care,Residential Care
Cambridgeshire County Council,01-Mar-23,51301943286,"-1,070.78",VOYAGE,CARE ESTABLISHMENT,LD - South Locality - Cost of Care,LD - South Cambs - Care,Residential Care
Cambridgeshire County Council,01-Mar-23,51301943286,"-1,070.78",VOYAGE,CARE ESTABLISHMENT,LD - South Locality - Cost of Care,LD - South Cambs - Care,Residential Care
Cambridgeshire County Council,01-Mar-23,51301943286,"-1,070.78",VOYAGE,CARE ESTABLISHMENT,LD - South Locality - Cost of Care,LD - South Cambs - Care,Residential Care
Cambridgeshire County Council,01-Mar-23,51301943286,"-1,070.78",VOYAGE,CARE ESTABLISHMENT,LD - South Locality - Cost of Care,LD - South Cambs - Care,Residential Care
Cambridgeshire County Council,01-Mar-23,51301943286,"-1,070.78",VOYAGE,CARE ESTABLISHMENT,LD - South Locality - Cost of Care,LD - South Cambs - Care,Residential Care
Cambridgeshire County Council,01-Mar-23,51301943286,"-1,070.78",VOYAGE,CARE ESTABLISHMENT,LD - South Locality - Cost of Care,LD - South Cambs - Care,Residential Care
Cambridgeshire County Council,01-Mar-23,51301943286,"-1,070.78",VOYAGE,CARE ESTABLISHMENT,LD - South Locality - Cost of Care,LD - South Cambs - Care,Residential Care
Cambridgeshire County Council,01-Mar-23,51301943286,"-1,070.78",VOYAGE,CARE ESTABLISHMENT,LD - South Locality - Cost of Care,LD - South Cambs - Care,Residential Care
Cambridgeshire County Council,01-Mar-23,51301943286,"-1,070.78",VOYAGE,CARE ESTABLISHMENT,LD - South Locality - Cost of Care,LD - South Cambs - Care,Residential Care
Cambridgeshire County Council,01-Mar-23,51301943286,"-1,070.78",VOYAGE,CARE ESTABLISHMENT,LD - South Locality - Cost of Care,LD - South Cambs - Care,Residential Care
Cambridgeshire County Council,01-Mar-23,51301943286,"-1,070.78",VOYAGE,CARE ESTABLISHMENT,LD - South Locality - Cost of Care,LD - South Cambs - Care,Residential Care
Cambridgeshire County Council,01-Mar-23,51301943286,"-1,070.78",VOYAGE,CARE ESTABLISHMENT,LD - South Locality - Cost of Care,LD - South Cambs - Care,Residential Care
Cambridgeshire County Council,01-Mar-23,51301943286,"-1,070.78",VOYAGE,CARE ESTABLISHMENT,LD - South Locality - Cost of Care,LD - South Cambs - Care,Residential Care
Cambridgeshire County Council,01-Mar-23,51301943286,"-1,070.78",VOYAGE,CARE ESTABLISHMENT,LD - South Locality - Cost of Care,LD - South Cambs - Care,Residential Care
Cambridgeshire County Council,01-Mar-23,51301943286,"-1,070.78",VOYAGE,CARE ESTABLISHMENT,LD - South Locality - Cost of Care,LD - South Cambs - Care,Residential Care
Cambridgeshire County Council,01-Mar-23,51301943286,"-1,070.78",VOYAGE,CARE ESTABLISHMENT,LD - South Locality - Cost of Care,LD - South Cambs - Care,Residential Care
Cambridgeshire County Council,01-Mar-23,51301943286,"-1,070.78",VOYAGE,CARE ESTABLISHMENT,LD - South Locality - Cost of Care,LD - South Cambs - Care,Residential Care
Cambridgeshire County Council,01-Mar-23,51301943286,"-1,070.78",VOYAGE,CARE ESTABLISHMENT,LD - South Locality - Cost of Care,LD - South Cambs - Care,Residential Care
Cambridgeshire County Council,01-Mar-23,51301943286,"-1,070.78",VOYAGE,CARE ESTABLISHMENT,LD - South Locality - Cost of Care,LD - South Cambs - Care,Residential Care
Cambridgeshire County Council,01-Mar-23,51301943286,"-1,070.78",VOYAGE,CARE ESTABLISHMENT,LD - South Locality - Cost of Care,LD - South Cambs - Care,Residential Care
Cambridgeshire County Council,01-Mar-23,51301943286,"-1,070.78",VOYAGE,CARE ESTABLISHMENT,LD - South Locality - Cost of Care,LD - South Cambs - Care,Residential Care
Cambridgeshire County Council,01-Mar-23,51301943286,"-1,070.78",VOYAGE,CARE ESTABLISHMENT,LD - South Locality - Cost of Care,LD - South Cambs - Care,Residential Care
Cambridgeshire County Council,01-Mar-23,51301943286,"-1,070.78",VOYAGE,CARE ESTABLISHMENT,LD - South Locality - Cost of Care,LD - South Cambs - Care,Residential Care
Cambridgeshire County Council,01-Mar-23,51301673778,"-1,027.00",CRANWELL COURT (BROOKDALE CARE),CARE ESTABLISHMENT,LD - Young Adults Team,LD - Young Adults - Care,Residential Care
Cambridgeshire County Council,01-Mar-23,51301943284,"-1,006.91",ALDERTON HOUSE,CARE ESTABLISHMENT,LD - East Locality - Cost of Care,LD - East Cambs - Care,Residential Care
Cambridgeshire County Council,01-Mar-23,51301943284,"-1,006.91",ALDERTON HOUSE,CARE ESTABLISHMENT,LD - East Locality - Cost of Care,LD - East Cambs - Care,Residential Care
Cambridgeshire County Council,01-Mar-23,51301943284,"-1,006.91",ALDERTON HOUSE,CARE ESTABLISHMENT,LD - East Locality - Cost of Care,LD - East Cambs - Care,Residential Care
Cambridgeshire County Council,01-Mar-23,51301943284,"-1,006.91",ALDERTON HOUSE,CARE ESTABLISHMENT,LD - East Locality - Cost of Care,LD - East Cambs - Care,Residential Care
Cambridgeshire County Council,01-Mar-23,51301943284,"-1,006.91",ALDERTON HOUSE,CARE ESTABLISHMENT,LD - East Locality - Cost of Care,LD - East Cambs - Care,Residential Care
Cambridgeshire County Council,01-Mar-23,51301943284,"-1,006.91",ALDERTON HOUSE,CARE ESTABLISHMENT,LD - East Locality - Cost of Care,LD - East Cambs - Care,Residential Care
Cambridgeshire County Council,01-Mar-23,51301943284,"-1,006.91",ALDERTON HOUSE,CARE ESTABLISHMENT,LD - East Locality - Cost of Care,LD - East Cambs - Care,Residential Care
Cambridgeshire County Council,01-Mar-23,51301943284,"-1,006.91",ALDERTON HOUSE,CARE ESTABLISHMENT,LD - East Locality - Cost of Care,LD - East Cambs - Care,Residential Care
Cambridgeshire County Council,01-Mar-23,51301943284,"-1,006.91",ALDERTON HOUSE,CARE ESTABLISHMENT,LD - East Locality - Cost of Care,LD - East Cambs - Care,Residential Care
Cambridgeshire County Council,01-Mar-23,51301943284,"-1,006.91",ALDERTON HOUSE,CARE ESTABLISHMENT,LD - East Locality - Cost of Care,LD - East Cambs - Care,Residential Care
Cambridgeshire County Council,01-Mar-23,51301943284,"-1,006.91",ALDERTON HOUSE,CARE ESTABLISHMENT,LD - East Locality - Cost of Care,LD - East Cambs - Care,Residential Care
Cambridgeshire County Council,01-Mar-23,51301943284,"-1,006.91",ALDERTON HOUSE,CARE ESTABLISHMENT,LD - East Locality - Cost of Care,LD - East Cambs - Care,Residential Care
Cambridgeshire County Council,01-Mar-23,51301943284,"-1,006.91",ALDERTON HOUSE,CARE ESTABLISHMENT,LD - East Locality - Cost of Care,LD - East Cambs - Care,Residential Care
Cambridgeshire County Council,01-Mar-23,51301943284,"-1,006.91",ALDERTON HOUSE,CARE ESTABLISHMENT,LD - East Locality - Cost of Care,LD - East Cambs - Care,Residential Care
Cambridgeshire County Council,01-Mar-23,51301943284,"-1,006.91",ALDERTON HOUSE,CARE ESTABLISHMENT,LD - East Locality - Cost of Care,LD - East Cambs - Care,Residential Care
Cambridgeshire County Council,01-Mar-23,51301943284,"-1,006.91",ALDERTON HOUSE,CARE ESTABLISHMENT,LD - East Locality - Cost of Care,LD - East Cambs - Care,Residential Care
Cambridgeshire County Council,01-Mar-23,51301943284,"-1,006.91",ALDERTON HOUSE,CARE ESTABLISHMENT,LD - East Locality - Cost of Care,LD - East Cambs - Care,Residential Care
Cambridgeshire County Council,01-Mar-23,51301943284,"-1,006.91",ALDERTON HOUSE,CARE ESTABLISHMENT,LD - East Locality - Cost of Care,LD - East Cambs - Care,Residential Care
Cambridgeshire County Council,01-Mar-23,51301943284,"-1,006.91",ALDERTON HOUSE,CARE ESTABLISHMENT,LD - East Locality - Cost of Care,LD - East Cambs - Care,Residential Care
Cambridgeshire County Council,01-Mar-23,51301943284,"-1,006.91",ALDERTON HOUSE,CARE ESTABLISHMENT,LD - East Locality - Cost of Care,LD - East Cambs - Care,Residential Care
Cambridgeshire County Council,01-Mar-23,51301943284,"-1,006.91",ALDERTON HOUSE,CARE ESTABLISHMENT,LD - East Locality - Cost of Care,LD - East Cambs - Care,Residential Care
Cambridgeshire County Council,01-Mar-23,51301943284,"-1,006.91",ALDERTON HOUSE,CARE ESTABLISHMENT,LD - East Locality - Cost of Care,LD - East Cambs - Care,Residential Care
Cambridgeshire County Council,01-Mar-23,51301943284,"-1,006.91",ALDERTON HOUSE,CARE ESTABLISHMENT,LD - East Locality - Cost of Care,LD - East Cambs - Care,Residential Care
Cambridgeshire County Council,01-Mar-23,51301943284,"-1,006.91",ALDERTON HOUSE,CARE ESTABLISHMENT,LD - East Locality - Cost of Care,LD - East Cambs - Care,Residential Care
Cambridgeshire County Council,01-Mar-23,51301943284,"-1,006.91",ALDERTON HOUSE,CARE ESTABLISHMENT,LD - East Locality - Cost of Care,LD - East Cambs - Care,Residential Care
Cambridgeshire County Council,01-Mar-23,51301943284,"-1,006.91",ALDERTON HOUSE,CARE ESTABLISHMENT,LD - East Locality - Cost of Care,LD - East Cambs - Care,Residential Care
Cambridgeshire County Council,01-Mar-23,51301943284,"-1,006.91",ALDERTON HOUSE,CARE ESTABLISHMENT,LD - East Locality - Cost of Care,LD - East Cambs - Care,Residential Care
Cambridgeshire County Council,01-Mar-23,51301943284,"-1,006.91",ALDERTON HOUSE,CARE ESTABLISHMENT,LD - East Locality - Cost of Care,LD - East Cambs - Care,Residential Care
Cambridgeshire County Council,01-Mar-23,51301943284,"-1,006.91",ALDERTON HOUSE,CARE ESTABLISHMENT,LD - East Locality - Cost of Care,LD - East Cambs - Care,Residential Care
Cambridgeshire County Council,01-Mar-23,51301943284,"-1,006.91",ALDERTON HOUSE,CARE ESTABLISHMENT,LD - East Locality - Cost of Care,LD - East Cambs - Care,Residential Care
Cambridgeshire County Council,01-Mar-23,51301943284,"-1,006.91",ALDERTON HOUSE,CARE ESTABLISHMENT,LD - East Locality - Cost of Care,LD - East Cambs - Care,Residential Care
Cambridgeshire County Council,01-Mar-23,51301943284,"-1,006.91",ALDERTON HOUSE,CARE ESTABLISHMENT,LD - East Locality - Cost of Care,LD - East Cambs - Care,Residential Care
Cambridgeshire County Council,01-Mar-23,51301943284,"-1,006.91",ALDERTON HOUSE,CARE ESTABLISHMENT,LD - East Locality - Cost of Care,LD - East Cambs - Care,Residential Care
Cambridgeshire County Council,01-Mar-23,51301943284,"-1,006.91",ALDERTON HOUSE,CARE ESTABLISHMENT,LD - East Locality - Cost of Care,LD - East Cambs - Care,Residential Care
Cambridgeshire County Council,01-Mar-23,51301943284,"-1,006.91",ALDERTON HOUSE,CARE ESTABLISHMENT,LD - East Locality - Cost of Care,LD - East Cambs - Care,Residential Care
Cambridgeshire County Council,01-Mar-23,51301943284,"-1,006.91",ALDERTON HOUSE,CARE ESTABLISHMENT,LD - East Locality - Cost of Care,LD - East Cambs - Care,Residential Care
Cambridgeshire County Council,01-Mar-23,51301943284,"-1,006.91",ALDERTON HOUSE,CARE ESTABLISHMENT,LD - East Locality - Cost of Care,LD - East Cambs - Care,Residential Care
Cambridgeshire County Council,01-Mar-23,51301943284,"-1,006.91",ALDERTON HOUSE,CARE ESTABLISHMENT,LD - East Locality - Cost of Care,LD - East Cambs - Care,Residential Care
Cambridgeshire County Council,01-Mar-23,51301943284,"-1,006.91",ALDERTON HOUSE,CARE ESTABLISHMENT,LD - East Locality - Cost of Care,LD - East Cambs - Care,Residential Care
Cambridgeshire County Council,01-Mar-23,51301943284,"-1,006.91",ALDERTON HOUSE,CARE ESTABLISHMENT,LD - East Locality - Cost of Care,LD - East Cambs - Care,Residential Care
Cambridgeshire County Council,01-Mar-23,51301943284,"-1,006.91",ALDERTON HOUSE,CARE ESTABLISHMENT,LD - East Locality - Cost of Care,LD - East Cambs - Care,Residential Care
Cambridgeshire County Council,01-Mar-23,51301943284,"-1,006.91",ALDERTON HOUSE,CARE ESTABLISHMENT,LD - East Locality - Cost of Care,LD - East Cambs - Care,Residential Care
Cambridgeshire County Council,01-Mar-23,51301943284,"-1,006.91",ALDERTON HOUSE,CARE ESTABLISHMENT,LD - East Locality - Cost of Care,LD - East Cambs - Care,Residential Care
Cambridgeshire County Council,01-Mar-23,51301943284,"-1,006.91",ALDERTON HOUSE,CARE ESTABLISHMENT,LD - East Locality - Cost of Care,LD - East Cambs - Care,Residential Care
Cambridgeshire County Council,01-Mar-23,51301943284,"-1,006.91",ALDERTON HOUSE,CARE ESTABLISHMENT,LD - East Locality - Cost of Care,LD - East Cambs - Care,Residential Care
Cambridgeshire County Council,01-Mar-23,51301943284,"-1,006.91",ALDERTON HOUSE,CARE ESTABLISHMENT,LD - East Locality - Cost of Care,LD - East Cambs - Care,Residential Care
Cambridgeshire County Council,01-Mar-23,51301943284,"-1,006.91",ALDERTON HOUSE,CARE ESTABLISHMENT,LD - East Locality - Cost of Care,LD - East Cambs - Care,Residential Care
Cambridgeshire County Council,01-Mar-23,51301943284,"-1,006.91",ALDERTON HOUSE,CARE ESTABLISHMENT,LD - East Locality - Cost of Care,LD - East Cambs - Care,Residential Care
Cambridgeshire County Council,01-Mar-23,51301943284,"-1,006.91",ALDERTON HOUSE,CARE ESTABLISHMENT,LD - East Locality - Cost of Care,LD - East Cambs - Care,Residential Care
Cambridgeshire County Council,01-Mar-23,51301943284,"-1,006.91",ALDERTON HOUSE,CARE ESTABLISHMENT,LD - East Locality - Cost of Care,LD - East Cambs - Care,Residential Care
Cambridgeshire County Council,01-Mar-23,51301943284,"-1,006.91",ALDERTON HOUSE,CARE ESTABLISHMENT,LD - East Locality - Cost of Care,LD - East Cambs - Care,Residential Care
Cambridgeshire County Council,01-Mar-23,51301943284,"-1,006.91",ALDERTON HOUSE,CARE ESTABLISHMENT,LD - East Locality - Cost of Care,LD - East Cambs - Care,Residential Care
Cambridgeshire County Council,01-Mar-23,51301943294,-989.83,VOYAGE,CARE ESTABLISHMENT,LD - South Locality - Cost of Care,LD - South Cambs - Care,Residential Care
Cambridgeshire County Council,01-Mar-23,51301943294,-989.83,VOYAGE,CARE ESTABLISHMENT,LD - South Locality - Cost of Care,LD - South Cambs - Care,Residential Care
Cambridgeshire County Council,01-Mar-23,51301943294,-989.83,VOYAGE,CARE ESTABLISHMENT,LD - South Locality - Cost of Care,LD - South Cambs - Care,Residential Care
Cambridgeshire County Council,01-Mar-23,51301943294,-989.83,VOYAGE,CARE ESTABLISHMENT,LD - South Locality - Cost of Care,LD - South Cambs - Care,Residential Care
Cambridgeshire County Council,01-Mar-23,51301943294,-989.83,VOYAGE,CARE ESTABLISHMENT,LD - South Locality - Cost of Care,LD - South Cambs - Care,Residential Care
Cambridgeshire County Council,01-Mar-23,51301943295,-989.83,VOYAGE,CARE ESTABLISHMENT,LD - South Locality - Cost of Care,LD - South Cambs - Care,Residential Care
Cambridgeshire County Council,01-Mar-23,51301943295,-989.83,VOYAGE,CARE ESTABLISHMENT,LD - South Locality - Cost of Care,LD - South Cambs - Care,Residential Care
Cambridgeshire County Council,01-Mar-23,51301943295,-989.83,VOYAGE,CARE ESTABLISHMENT,LD - South Locality - Cost of Care,LD - South Cambs - Care,Residential Care
Cambridgeshire County Council,01-Mar-23,51301943295,-989.83,VOYAGE,CARE ESTABLISHMENT,LD - South Locality - Cost of Care,LD - South Cambs - Care,Residential Care
Cambridgeshire County Council,01-Mar-23,51301943295,-989.83,VOYAGE,CARE ESTABLISHMENT,LD - South Locality - Cost of Care,LD - South Cambs - Care,Residential Care
Cambridgeshire County Council,01-Mar-23,51301943295,-989.83,VOYAGE,CARE ESTABLISHMENT,LD - South Locality - Cost of Care,LD - South Cambs - Care,Residential Care
Cambridgeshire County Council,01-Mar-23,51301943295,-989.83,VOYAGE,CARE ESTABLISHMENT,LD - South Locality - Cost of Care,LD - South Cambs - Care,Residential Care
Cambridgeshire County Council,01-Mar-23,51301943295,-989.83,VOYAGE,CARE ESTABLISHMENT,LD - South Locality - Cost of Care,LD - South Cambs - Care,Residential Care
Cambridgeshire County Council,01-Mar-23,51301943294,-989.83,VOYAGE,CARE ESTABLISHMENT,LD - South Locality - Cost of Care,LD - South Cambs - Care,Residential Care
Cambridgeshire County Council,01-Mar-23,51301943294,-989.83,VOYAGE,CARE ESTABLISHMENT,LD - South Locality - Cost of Care,LD - South Cambs - Care,Residential Care
Cambridgeshire County Council,01-Mar-23,51301943294,-989.83,VOYAGE,CARE ESTABLISHMENT,LD - South Locality - Cost of Care,LD - South Cambs - Care,Residential Care
Cambridgeshire County Council,01-Mar-23,51301943294,-989.83,VOYAGE,CARE ESTABLISHMENT,LD - South Locality - Cost of Care,LD - South Cambs - Care,Residential Care
Cambridgeshire County Council,01-Mar-23,51301943294,-989.83,VOYAGE,CARE ESTABLISHMENT,LD - South Locality - Cost of Care,LD - South Cambs - Care,Residential Care
Cambridgeshire County Council,01-Mar-23,51301943294,-989.83,VOYAGE,CARE ESTABLISHMENT,LD - South Locality - Cost of Care,LD - South Cambs - Care,Residential Care
Cambridgeshire County Council,01-Mar-23,51301943294,-989.83,VOYAGE,CARE ESTABLISHMENT,LD - South Locality - Cost of Care,LD - South Cambs - Care,Residential Care
Cambridgeshire County Council,01-Mar-23,51301943294,-989.83,VOYAGE,CARE ESTABLISHMENT,LD - South Locality - Cost of Care,LD - South Cambs - Care,Residential Care
Cambridgeshire County Council,01-Mar-23,51301943294,-989.83,VOYAGE,CARE ESTABLISHMENT,LD - South Locality - Cost of Care,LD - South Cambs - Care,Residential Care
Cambridgeshire County Council,01-Mar-23,51301943294,-989.83,VOYAGE,CARE ESTABLISHMENT,LD - South Locality - Cost of Care,LD - South Cambs - Care,Residential Care
Cambridgeshire County Council,01-Mar-23,51301943294,-989.83,VOYAGE,CARE ESTABLISHMENT,LD - South Locality - Cost of Care,LD - South Cambs - Care,Residential Care
Cambridgeshire County Council,01-Mar-23,51301943294,-989.83,VOYAGE,CARE ESTABLISHMENT,LD - South Locality - Cost of Care,LD - South Cambs - Care,Residential Care
Cambridgeshire County Council,01-Mar-23,51301943294,-989.83,VOYAGE,CARE ESTABLISHMENT,LD - South Locality - Cost of Care,LD - South Cambs - Care,Residential Care
Cambridgeshire County Council,01-Mar-23,51301943294,-989.83,VOYAGE,CARE ESTABLISHMENT,LD - South Locality - Cost of Care,LD - South Cambs - Care,Residential Care
Cambridgeshire County Council,01-Mar-23,51301943294,-989.83,VOYAGE,CARE ESTABLISHMENT,LD - South Locality - Cost of Care,LD - South Cambs - Care,Residential Care
Cambridgeshire County Council,01-Mar-23,51301943294,-989.83,VOYAGE,CARE ESTABLISHMENT,LD - South Locality - Cost of Care,LD - South Cambs - Care,Residential Care
Cambridgeshire County Council,01-Mar-23,51301943294,-989.83,VOYAGE,CARE ESTABLISHMENT,LD - South Locality - Cost of Care,LD - South Cambs - Care,Residential Care
Cambridgeshire County Council,01-Mar-23,51301943294,-989.83,VOYAGE,CARE ESTABLISHMENT,LD - South Locality - Cost of Care,LD - South Cambs - Care,Residential Care
Cambridgeshire County Council,01-Mar-23,51301943294,-989.83,VOYAGE,CARE ESTABLISHMENT,LD - South Locality - Cost of Care,LD - South Cambs - Care,Residential Care
Cambridgeshire County Council,01-Mar-23,51301943294,-989.83,VOYAGE,CARE ESTABLISHMENT,LD - South Locality - Cost of Care,LD - South Cambs - Care,Residential Care
Cambridgeshire County Council,01-Mar-23,51301943294,-989.83,VOYAGE,CARE ESTABLISHMENT,LD - South Locality - Cost of Care,LD - South Cambs - Care,Residential Care
Cambridgeshire County Council,01-Mar-23,51301943294,-989.83,VOYAGE,CARE ESTABLISHMENT,LD - South Locality - Cost of Care,LD - South Cambs - Care,Residential Care
Cambridgeshire County Council,01-Mar-23,51301943294,-989.83,VOYAGE,CARE ESTABLISHMENT,LD - South Locality - Cost of Care,LD - South Cambs - Care,Residential Care
Cambridgeshire County Council,01-Mar-23,51301943295,-989.83,VOYAGE,CARE ESTABLISHMENT,LD - South Locality - Cost of Care,LD - South Cambs - Care,Residential Care
Cambridgeshire County Council,01-Mar-23,51301943295,-989.83,VOYAGE,CARE ESTABLISHMENT,LD - South Locality - Cost of Care,LD - South Cambs - Care,Residential Care
Cambridgeshire County Council,01-Mar-23,51301943295,-989.83,VOYAGE,CARE ESTABLISHMENT,LD - South Locality - Cost of Care,LD - South Cambs - Care,Residential Care
Cambridgeshire County Council,01-Mar-23,51301943294,-989.83,VOYAGE,CARE ESTABLISHMENT,LD - South Locality - Cost of Care,LD - South Cambs - Care,Residential Care
Cambridgeshire County Council,01-Mar-23,51301943294,-989.83,VOYAGE,CARE ESTABLISHMENT,LD - South Locality - Cost of Care,LD - South Cambs - Care,Residential Care
Cambridgeshire County Council,01-Mar-23,51301943294,-989.83,VOYAGE,CARE ESTABLISHMENT,LD - South Locality - Cost of Care,LD - South Cambs - Care,Residential Care
Cambridgeshire County Council,01-Mar-23,51301943294,-989.83,VOYAGE,CARE ESTABLISHMENT,LD - South Locality - Cost of Care,LD - South Cambs - Care,Residential Care
Cambridgeshire County Council,01-Mar-23,51301943294,-989.83,VOYAGE,CARE ESTABLISHMENT,LD - South Locality - Cost of Care,LD - South Cambs - Care,Residential Care
Cambridgeshire County Council,01-Mar-23,51301943294,-989.83,VOYAGE,CARE ESTABLISHMENT,LD - South Locality - Cost of Care,LD - South Cambs - Care,Residential Care
Cambridgeshire County Council,01-Mar-23,51301943294,-989.83,VOYAGE,CARE ESTABLISHMENT,LD - South Locality - Cost of Care,LD - South Cambs - Care,Residential Care
Cambridgeshire County Council,01-Mar-23,51301943294,-989.83,VOYAGE,CARE ESTABLISHMENT,LD - South Locality - Cost of Care,LD - South Cambs - Care,Residential Care
Cambridgeshire County Council,01-Mar-23,51301943294,-989.83,VOYAGE,CARE ESTABLISHMENT,LD - South Locality - Cost of Care,LD - South Cambs - Care,Residential Care
Cambridgeshire County Council,01-Mar-23,51301943294,-989.83,VOYAGE,CARE ESTABLISHMENT,LD - South Locality - Cost of Care,LD - South Cambs - Care,Residential Care
Cambridgeshire County Council,01-Mar-23,51301943294,-989.83,VOYAGE,CARE ESTABLISHMENT,LD - South Locality - Cost of Care,LD - South Cambs - Care,Residential Care
Cambridgeshire County Council,01-Mar-23,51301943294,-989.83,VOYAGE,CARE ESTABLISHMENT,LD - South Locality - Cost of Care,LD - South Cambs - Care,Residential Care
Cambridgeshire County Council,01-Mar-23,51301943294,-989.83,VOYAGE,CARE ESTABLISHMENT,LD - South Locality - Cost of Care,LD - South Cambs - Care,Residential Care
Cambridgeshire County Council,01-Mar-23,51301943294,-989.83,VOYAGE,CARE ESTABLISHMENT,LD - South Locality - Cost of Care,LD - South Cambs - Care,Residential Care
Cambridgeshire County Council,01-Mar-23,51301943294,-989.83,VOYAGE,CARE ESTABLISHMENT,LD - South Locality - Cost of Care,LD - South Cambs - Care,Residential Care
Cambridgeshire County Council,01-Mar-23,51301943294,-989.83,VOYAGE,CARE ESTABLISHMENT,LD - South Locality - Cost of Care,LD - South Cambs - Care,Residential Care
Cambridgeshire County Council,01-Mar-23,51301943294,-989.83,VOYAGE,CARE ESTABLISHMENT,LD - South Locality - Cost of Care,LD - South Cambs - Care,Residential Care
Cambridgeshire County Council,01-Mar-23,51301943294,-989.83,VOYAGE,CARE ESTABLISHMENT,LD - South Locality - Cost of Care,LD - South Cambs - Care,Residential Care
Cambridgeshire County Council,01-Mar-23,51301943294,-989.83,VOYAGE,CARE ESTABLISHMENT,LD - South Locality - Cost of Care,LD - South Cambs - Care,Residential Care
Cambridgeshire County Council,01-Mar-23,51301943294,-989.83,VOYAGE,CARE ESTABLISHMENT,LD - South Locality - Cost of Care,LD - South Cambs - Care,Residential Care
Cambridgeshire County Council,01-Mar-23,51301943294,-989.83,VOYAGE,CARE ESTABLISHMENT,LD - South Locality - Cost of Care,LD - South Cambs - Care,Residential Care
Cambridgeshire County Council,01-Mar-23,51301943294,-989.83,VOYAGE,CARE ESTABLISHMENT,LD - South Locality - Cost of Care,LD - South Cambs - Care,Residential Care
Cambridgeshire County Council,01-Mar-23,51301943294,-989.83,VOYAGE,CARE ESTABLISHMENT,LD - South Locality - Cost of Care,LD - South Cambs - Care,Residential Care
Cambridgeshire County Council,01-Mar-23,51301943294,-989.83,VOYAGE,CARE ESTABLISHMENT,LD - South Locality - Cost of Care,LD - South Cambs - Care,Residential Care
Cambridgeshire County Council,01-Mar-23,51301943285,-860.15,ALDERTON HOUSE,CARE ESTABLISHMENT,LD - East Locality - Cost of Care,LD - East Cambs - Care,Residential Care
Cambridgeshire County Council,01-Mar-23,51301943285,-860.15,ALDERTON HOUSE,CARE ESTABLISHMENT,LD - East Locality - Cost of Care,LD - East Cambs - Care,Residential Care
Cambridgeshire County Council,01-Mar-23,51301943285,-860.15,ALDERTON HOUSE,CARE ESTABLISHMENT,LD - East Locality - Cost of Care,LD - East Cambs - Care,Residential Care
Cambridgeshire County Council,01-Mar-23,51301943285,-860.15,ALDERTON HOUSE,CARE ESTABLISHMENT,LD - East Locality - Cost of Care,LD - East Cambs - Care,Residential Care
Cambridgeshire County Council,01-Mar-23,51301943285,-860.15,ALDERTON HOUSE,CARE ESTABLISHMENT,LD - East Locality - Cost of Care,LD - East Cambs - Care,Residential Care
Cambridgeshire County Council,01-Mar-23,51301943285,-860.15,ALDERTON HOUSE,CARE ESTABLISHMENT,LD - East Locality - Cost of Care,LD - East Cambs - Care,Residential Care
Cambridgeshire County Council,01-Mar-23,51301943285,-860.15,ALDERTON HOUSE,CARE ESTABLISHMENT,LD - East Locality - Cost of Care,LD - East Cambs - Care,Residential Care
Cambridgeshire County Council,01-Mar-23,51301943285,-860.15,ALDERTON HOUSE,CARE ESTABLISHMENT,LD - East Locality - Cost of Care,LD - East Cambs - Care,Residential Care
Cambridgeshire County Council,01-Mar-23,51301943285,-860.15,ALDERTON HOUSE,CARE ESTABLISHMENT,LD - East Locality - Cost of Care,LD - East Cambs - Care,Residential Care
Cambridgeshire County Council,01-Mar-23,51301943285,-860.15,ALDERTON HOUSE,CARE ESTABLISHMENT,LD - East Locality - Cost of Care,LD - East Cambs - Care,Residential Care
Cambridgeshire County Council,01-Mar-23,51301943285,-860.15,ALDERTON HOUSE,CARE ESTABLISHMENT,LD - East Locality - Cost of Care,LD - East Cambs - Care,Residential Care
Cambridgeshire County Council,01-Mar-23,51301943285,-860.15,ALDERTON HOUSE,CARE ESTABLISHMENT,LD - East Locality - Cost of Care,LD - East Cambs - Care,Residential Care
Cambridgeshire County Council,01-Mar-23,51301943285,-860.15,ALDERTON HOUSE,CARE ESTABLISHMENT,LD - East Locality - Cost of Care,LD - East Cambs - Care,Residential Care
Cambridgeshire County Council,01-Mar-23,51301943285,-860.15,ALDERTON HOUSE,CARE ESTABLISHMENT,LD - East Locality - Cost of Care,LD - East Cambs - Care,Residential Care
Cambridgeshire County Council,01-Mar-23,51301943285,-860.15,ALDERTON HOUSE,CARE ESTABLISHMENT,LD - East Locality - Cost of Care,LD - East Cambs - Care,Residential Care
Cambridgeshire County Council,01-Mar-23,51301943285,-860.15,ALDERTON HOUSE,CARE ESTABLISHMENT,LD - East Locality - Cost of Care,LD - East Cambs - Care,Residential Care
Cambridgeshire County Council,01-Mar-23,51301943285,-860.15,ALDERTON HOUSE,CARE ESTABLISHMENT,LD - East Locality - Cost of Care,LD - East Cambs - Care,Residential Care
Cambridgeshire County Council,01-Mar-23,51301943285,-860.15,ALDERTON HOUSE,CARE ESTABLISHMENT,LD - East Locality - Cost of Care,LD - East Cambs - Care,Residential Care
Cambridgeshire County Council,01-Mar-23,51301943285,-860.15,ALDERTON HOUSE,CARE ESTABLISHMENT,LD - East Locality - Cost of Care,LD - East Cambs - Care,Residential Care
Cambridgeshire County Council,01-Mar-23,51301943285,-860.15,ALDERTON HOUSE,CARE ESTABLISHMENT,LD - East Locality - Cost of Care,LD - East Cambs - Care,Residential Care
Cambridgeshire County Council,01-Mar-23,51301943285,-860.15,ALDERTON HOUSE,CARE ESTABLISHMENT,LD - East Locality - Cost of Care,LD - East Cambs - Care,Residential Care
Cambridgeshire County Council,01-Mar-23,51301943285,-860.15,ALDERTON HOUSE,CARE ESTABLISHMENT,LD - East Locality - Cost of Care,LD - East Cambs - Care,Residential Care
Cambridgeshire County Council,01-Mar-23,51301943285,-860.15,ALDERTON HOUSE,CARE ESTABLISHMENT,LD - East Locality - Cost of Care,LD - East Cambs - Care,Residential Care
Cambridgeshire County Council,01-Mar-23,51301943285,-860.15,ALDERTON HOUSE,CARE ESTABLISHMENT,LD - East Locality - Cost of Care,LD - East Cambs - Care,Residential Care
Cambridgeshire County Council,01-Mar-23,51301943285,-860.15,ALDERTON HOUSE,CARE ESTABLISHMENT,LD - East Locality - Cost of Care,LD - East Cambs - Care,Residential Care
Cambridgeshire County Council,01-Mar-23,51301943285,-860.15,ALDERTON HOUSE,CARE ESTABLISHMENT,LD - East Locality - Cost of Care,LD - East Cambs - Care,Residential Care
Cambridgeshire County Council,01-Mar-23,51301943285,-860.15,ALDERTON HOUSE,CARE ESTABLISHMENT,LD - East Locality - Cost of Care,LD - East Cambs - Care,Residential Care
Cambridgeshire County Council,01-Mar-23,51301943285,-860.15,ALDERTON HOUSE,CARE ESTABLISHMENT,LD - East Locality - Cost of Care,LD - East Cambs - Care,Residential Care
Cambridgeshire County Council,01-Mar-23,51301943285,-860.15,ALDERTON HOUSE,CARE ESTABLISHMENT,LD - East Locality - Cost of Care,LD - East Cambs - Care,Residential Care
Cambridgeshire County Council,01-Mar-23,51301943285,-860.15,ALDERTON HOUSE,CARE ESTABLISHMENT,LD - East Locality - Cost of Care,LD - East Cambs - Care,Residential Care
Cambridgeshire County Council,01-Mar-23,51301943285,-860.15,ALDERTON HOUSE,CARE ESTABLISHMENT,LD - East Locality - Cost of Care,LD - East Cambs - Care,Residential Care
Cambridgeshire County Council,01-Mar-23,51301943285,-860.15,ALDERTON HOUSE,CARE ESTABLISHMENT,LD - East Locality - Cost of Care,LD - East Cambs - Care,Residential Care
Cambridgeshire County Council,01-Mar-23,51301943285,-860.15,ALDERTON HOUSE,CARE ESTABLISHMENT,LD - East Locality - Cost of Care,LD - East Cambs - Care,Residential Care
Cambridgeshire County Council,01-Mar-23,51301943285,-860.15,ALDERTON HOUSE,CARE ESTABLISHMENT,LD - East Locality - Cost of Care,LD - East Cambs - Care,Residential Care
Cambridgeshire County Council,01-Mar-23,51301943285,-860.15,ALDERTON HOUSE,CARE ESTABLISHMENT,LD - East Locality - Cost of Care,LD - East Cambs - Care,Residential Care
Cambridgeshire County Council,01-Mar-23,51301943285,-860.15,ALDERTON HOUSE,CARE ESTABLISHMENT,LD - East Locality - Cost of Care,LD - East Cambs - Care,Residential Care
Cambridgeshire County Council,01-Mar-23,51301943285,-860.15,ALDERTON HOUSE,CARE ESTABLISHMENT,LD - East Locality - Cost of Care,LD - East Cambs - Care,Residential Care
Cambridgeshire County Council,01-Mar-23,51301943285,-860.15,ALDERTON HOUSE,CARE ESTABLISHMENT,LD - East Locality - Cost of Care,LD - East Cambs - Care,Residential Care
Cambridgeshire County Council,01-Mar-23,51301943285,-860.15,ALDERTON HOUSE,CARE ESTABLISHMENT,LD - East Locality - Cost of Care,LD - East Cambs - Care,Residential Care
Cambridgeshire County Council,01-Mar-23,51301943285,-860.15,ALDERTON HOUSE,CARE ESTABLISHMENT,LD - East Locality - Cost of Care,LD - East Cambs - Care,Residential Care
Cambridgeshire County Council,01-Mar-23,51301943285,-860.15,ALDERTON HOUSE,CARE ESTABLISHMENT,LD - East Locality - Cost of Care,LD - East Cambs - Care,Residential Care
Cambridgeshire County Council,01-Mar-23,51301943285,-860.15,ALDERTON HOUSE,CARE ESTABLISHMENT,LD - East Locality - Cost of Care,LD - East Cambs - Care,Residential Care
Cambridgeshire County Council,01-Mar-23,51301943285,-860.15,ALDERTON HOUSE,CARE ESTABLISHMENT,LD - East Locality - Cost of Care,LD - East Cambs - Care,Residential Care
Cambridgeshire County Council,01-Mar-23,51301943285,-860.15,ALDERTON HOUSE,CARE ESTABLISHMENT,LD - East Locality - Cost of Care,LD - East Cambs - Care,Residential Care
Cambridgeshire County Council,01-Mar-23,51301943285,-860.15,ALDERTON HOUSE,CARE ESTABLISHMENT,LD - East Locality - Cost of Care,LD - East Cambs - Care,Residential Care
Cambridgeshire County Council,01-Mar-23,51301943285,-860.15,ALDERTON HOUSE,CARE ESTABLISHMENT,LD - East Locality - Cost of Care,LD - East Cambs - Care,Residential Care
Cambridgeshire County Council,01-Mar-23,51301943285,-860.15,ALDERTON HOUSE,CARE ESTABLISHMENT,LD - East Locality - Cost of Care,LD - East Cambs - Care,Residential Care
Cambridgeshire County Council,01-Mar-23,51301943285,-860.15,ALDERTON HOUSE,CARE ESTABLISHMENT,LD - East Locality - Cost of Care,LD - East Cambs - Care,Residential Care
Cambridgeshire County Council,01-Mar-23,51301943285,-860.15,ALDERTON HOUSE,CARE ESTABLISHMENT,LD - East Locality - Cost of Care,LD - East Cambs - Care,Residential Care
Cambridgeshire County Council,01-Mar-23,51301943285,-860.15,ALDERTON HOUSE,CARE ESTABLISHMENT,LD - East Locality - Cost of Care,LD - East Cambs - Care,Residential Care
Cambridgeshire County Council,01-Mar-23,51301943285,-860.15,ALDERTON HOUSE,CARE ESTABLISHMENT,LD - East Locality - Cost of Care,LD - East Cambs - Care,Residential Care
Cambridgeshire County Council,01-Mar-23,51301943285,-860.15,ALDERTON HOUSE,CARE ESTABLISHMENT,LD - East Locality - Cost of Care,LD - East Cambs - Care,Residential Care
Cambridgeshire County Council,01-Mar-23,51301943284,-823.64,ALDERTON HOUSE,CARE ESTABLISHMENT,LD - East Locality - Cost of Care,LD - East Cambs - Care,Residential Care
Cambridgeshire County Council,01-Mar-23,51301943284,-823.64,ALDERTON HOUSE,CARE ESTABLISHMENT,LD - East Locality - Cost of Care,LD - East Cambs - Care,Residential Care
Cambridgeshire County Council,01-Mar-23,51301943284,-823.64,ALDERTON HOUSE,CARE ESTABLISHMENT,LD - East Locality - Cost of Care,LD - East Cambs - Care,Residential Care
Cambridgeshire County Council,01-Mar-23,51301943284,-823.64,ALDERTON HOUSE,CARE ESTABLISHMENT,LD - East Locality - Cost of Care,LD - East Cambs - Care,Residential Care
Cambridgeshire County Council,01-Mar-23,51301943284,-823.64,ALDERTON HOUSE,CARE ESTABLISHMENT,LD - East Locality - Cost of Care,LD - East Cambs - Care,Residential Care
Cambridgeshire County Council,01-Mar-23,51301943284,-823.64,ALDERTON HOUSE,CARE ESTABLISHMENT,LD - East Locality - Cost of Care,LD - East Cambs - Care,Residential Care
Cambridgeshire County Council,01-Mar-23,51301943284,-823.64,ALDERTON HOUSE,CARE ESTABLISHMENT,LD - East Locality - Cost of Care,LD - East Cambs - Care,Residential Care
Cambridgeshire County Council,01-Mar-23,51301943284,-823.64,ALDERTON HOUSE,CARE ESTABLISHMENT,LD - East Locality - Cost of Care,LD - East Cambs - Care,Residential Care
Cambridgeshire County Council,01-Mar-23,51301943284,-823.64,ALDERTON HOUSE,CARE ESTABLISHMENT,LD - East Locality - Cost of Care,LD - East Cambs - Care,Residential Care
Cambridgeshire County Council,01-Mar-23,51301943284,-823.64,ALDERTON HOUSE,CARE ESTABLISHMENT,LD - East Locality - Cost of Care,LD - East Cambs - Care,Residential Care
Cambridgeshire County Council,01-Mar-23,51301943284,-823.64,ALDERTON HOUSE,CARE ESTABLISHMENT,LD - East Locality - Cost of Care,LD - East Cambs - Care,Residential Care
Cambridgeshire County Council,01-Mar-23,51301943284,-823.64,ALDERTON HOUSE,CARE ESTABLISHMENT,LD - East Locality - Cost of Care,LD - East Cambs - Care,Residential Care
Cambridgeshire County Council,01-Mar-23,51301943284,-823.64,ALDERTON HOUSE,CARE ESTABLISHMENT,LD - East Locality - Cost of Care,LD - East Cambs - Care,Residential Care
Cambridgeshire County Council,01-Mar-23,51301943284,-823.64,ALDERTON HOUSE,CARE ESTABLISHMENT,LD - East Locality - Cost of Care,LD - East Cambs - Care,Residential Care
Cambridgeshire County Council,01-Mar-23,51301943284,-823.64,ALDERTON HOUSE,CARE ESTABLISHMENT,LD - East Locality - Cost of Care,LD - East Cambs - Care,Residential Care
Cambridgeshire County Council,01-Mar-23,51301943284,-823.64,ALDERTON HOUSE,CARE ESTABLISHMENT,LD - East Locality - Cost of Care,LD - East Cambs - Care,Residential Care
Cambridgeshire County Council,01-Mar-23,51301943284,-823.64,ALDERTON HOUSE,CARE ESTABLISHMENT,LD - East Locality - Cost of Care,LD - East Cambs - Care,Residential Care
Cambridgeshire County Council,01-Mar-23,51301943284,-823.64,ALDERTON HOUSE,CARE ESTABLISHMENT,LD - East Locality - Cost of Care,LD - East Cambs - Care,Residential Care
Cambridgeshire County Council,01-Mar-23,51301943284,-823.64,ALDERTON HOUSE,CARE ESTABLISHMENT,LD - East Locality - Cost of Care,LD - East Cambs - Care,Residential Care
Cambridgeshire County Council,01-Mar-23,51301943284,-823.64,ALDERTON HOUSE,CARE ESTABLISHMENT,LD - East Locality - Cost of Care,LD - East Cambs - Care,Residential Care
Cambridgeshire County Council,01-Mar-23,51301943284,-823.64,ALDERTON HOUSE,CARE ESTABLISHMENT,LD - East Locality - Cost of Care,LD - East Cambs - Care,Residential Care
Cambridgeshire County Council,01-Mar-23,51301943284,-823.64,ALDERTON HOUSE,CARE ESTABLISHMENT,LD - East Locality - Cost of Care,LD - East Cambs - Care,Residential Care
Cambridgeshire County Council,01-Mar-23,51301943284,-823.64,ALDERTON HOUSE,CARE ESTABLISHMENT,LD - East Locality - Cost of Care,LD - East Cambs - Care,Residential Care
Cambridgeshire County Council,01-Mar-23,51301943284,-823.64,ALDERTON HOUSE,CARE ESTABLISHMENT,LD - East Locality - Cost of Care,LD - East Cambs - Care,Residential Care
Cambridgeshire County Council,01-Mar-23,51301943284,-823.64,ALDERTON HOUSE,CARE ESTABLISHMENT,LD - East Locality - Cost of Care,LD - East Cambs - Care,Residential Care
Cambridgeshire County Council,01-Mar-23,51301943284,-823.64,ALDERTON HOUSE,CARE ESTABLISHMENT,LD - East Locality - Cost of Care,LD - East Cambs - Care,Residential Care
Cambridgeshire County Council,01-Mar-23,51301943284,-823.64,ALDERTON HOUSE,CARE ESTABLISHMENT,LD - East Locality - Cost of Care,LD - East Cambs - Care,Residential Care
Cambridgeshire County Council,01-Mar-23,51301943284,-823.64,ALDERTON HOUSE,CARE ESTABLISHMENT,LD - East Locality - Cost of Care,LD - East Cambs - Care,Residential Care
Cambridgeshire County Council,01-Mar-23,51301943284,-823.64,ALDERTON HOUSE,CARE ESTABLISHMENT,LD - East Locality - Cost of Care,LD - East Cambs - Care,Residential Care
Cambridgeshire County Council,01-Mar-23,51301943284,-823.64,ALDERTON HOUSE,CARE ESTABLISHMENT,LD - East Locality - Cost of Care,LD - East Cambs - Care,Residential Care
Cambridgeshire County Council,01-Mar-23,51301943284,-823.64,ALDERTON HOUSE,CARE ESTABLISHMENT,LD - East Locality - Cost of Care,LD - East Cambs - Care,Residential Care
Cambridgeshire County Council,01-Mar-23,51301943284,-823.64,ALDERTON HOUSE,CARE ESTABLISHMENT,LD - East Locality - Cost of Care,LD - East Cambs - Care,Residential Care
Cambridgeshire County Council,01-Mar-23,51301943284,-823.64,ALDERTON HOUSE,CARE ESTABLISHMENT,LD - East Locality - Cost of Care,LD - East Cambs - Care,Residential Care
Cambridgeshire County Council,01-Mar-23,51301943284,-823.64,ALDERTON HOUSE,CARE ESTABLISHMENT,LD - East Locality - Cost of Care,LD - East Cambs - Care,Residential Care
Cambridgeshire County Council,01-Mar-23,51301943284,-823.64,ALDERTON HOUSE,CARE ESTABLISHMENT,LD - East Locality - Cost of Care,LD - East Cambs - Care,Residential Care
Cambridgeshire County Council,01-Mar-23,51301943284,-823.64,ALDERTON HOUSE,CARE ESTABLISHMENT,LD - East Locality - Cost of Care,LD - East Cambs - Care,Residential Care
Cambridgeshire County Council,01-Mar-23,51301943284,-823.64,ALDERTON HOUSE,CARE ESTABLISHMENT,LD - East Locality - Cost of Care,LD - East Cambs - Care,Residential Care
Cambridgeshire County Council,01-Mar-23,51301943284,-823.64,ALDERTON HOUSE,CARE ESTABLISHMENT,LD - East Locality - Cost of Care,LD - East Cambs - Care,Residential Care
Cambridgeshire County Council,01-Mar-23,51301943284,-823.64,ALDERTON HOUSE,CARE ESTABLISHMENT,LD - East Locality - Cost of Care,LD - East Cambs - Care,Residential Care
Cambridgeshire County Council,01-Mar-23,51301943284,-823.64,ALDERTON HOUSE,CARE ESTABLISHMENT,LD - East Locality - Cost of Care,LD - East Cambs - Care,Residential Care
Cambridgeshire County Council,01-Mar-23,51301943284,-823.64,ALDERTON HOUSE,CARE ESTABLISHMENT,LD - East Locality - Cost of Care,LD - East Cambs - Care,Residential Care
Cambridgeshire County Council,01-Mar-23,51301943284,-823.64,ALDERTON HOUSE,CARE ESTABLISHMENT,LD - East Locality - Cost of Care,LD - East Cambs - Care,Residential Care
Cambridgeshire County Council,01-Mar-23,51301943284,-823.64,ALDERTON HOUSE,CARE ESTABLISHMENT,LD - East Locality - Cost of Care,LD - East Cambs - Care,Residential Care
Cambridgeshire County Council,01-Mar-23,51301943284,-823.64,ALDERTON HOUSE,CARE ESTABLISHMENT,LD - East Locality - Cost of Care,LD - East Cambs - Care,Residential Care
Cambridgeshire County Council,01-Mar-23,51301943284,-823.64,ALDERTON HOUSE,CARE ESTABLISHMENT,LD - East Locality - Cost of Care,LD - East Cambs - Care,Residential Care
Cambridgeshire County Council,01-Mar-23,51301943284,-823.64,ALDERTON HOUSE,CARE ESTABLISHMENT,LD - East Locality - Cost of Care,LD - East Cambs - Care,Residential Care
Cambridgeshire County Council,01-Mar-23,51301943284,-823.64,ALDERTON HOUSE,CARE ESTABLISHMENT,LD - East Locality - Cost of Care,LD - East Cambs - Care,Residential Care
Cambridgeshire County Council,01-Mar-23,51301943284,-823.64,ALDERTON HOUSE,CARE ESTABLISHMENT,LD - East Locality - Cost of Care,LD - East Cambs - Care,Residential Care
Cambridgeshire County Council,01-Mar-23,51301943284,-823.64,ALDERTON HOUSE,CARE ESTABLISHMENT,LD - East Locality - Cost of Care,LD - East Cambs - Care,Residential Care
Cambridgeshire County Council,01-Mar-23,51301943284,-823.64,ALDERTON HOUSE,CARE ESTABLISHMENT,LD - East Locality - Cost of Care,LD - East Cambs - Care,Residential Care
Cambridgeshire County Council,01-Mar-23,51301943284,-823.64,ALDERTON HOUSE,CARE ESTABLISHMENT,LD - East Locality - Cost of Care,LD - East Cambs - Care,Residential Care
Cambridgeshire County Council,01-Mar-23,51301943284,-823.64,ALDERTON HOUSE,CARE ESTABLISHMENT,LD - East Locality - Cost of Care,LD - East Cambs - Care,Residential Care
Cambridgeshire County Council,01-Mar-23,51301943250,-818.27,VOYAGE,CARE ESTABLISHMENT,LD - East Locality - Cost of Care,LD - East Cambs - Care,Residential Care
Cambridgeshire County Council,01-Mar-23,51301943250,-818.27,VOYAGE,CARE ESTABLISHMENT,LD - East Locality - Cost of Care,LD - East Cambs - Care,Residential Care
Cambridgeshire County Council,01-Mar-23,51301943250,-818.27,VOYAGE,CARE ESTABLISHMENT,LD - East Locality - Cost of Care,LD - East Cambs - Care,Residential Care
Cambridgeshire County Council,01-Mar-23,51301943250,-818.27,VOYAGE,CARE ESTABLISHMENT,LD - East Locality - Cost of Care,LD - East Cambs - Care,Residential Care
Cambridgeshire County Council,01-Mar-23,51301943250,-818.27,VOYAGE,CARE ESTABLISHMENT,LD - East Locality - Cost of Care,LD - East Cambs - Care,Residential Care
Cambridgeshire County Council,01-Mar-23,51301943250,-818.27,VOYAGE,CARE ESTABLISHMENT,LD - East Locality - Cost of Care,LD - East Cambs - Care,Residential Care
Cambridgeshire County Council,01-Mar-23,51301943250,-818.27,VOYAGE,CARE ESTABLISHMENT,LD - East Locality - Cost of Care,LD - East Cambs - Care,Residential Care
Cambridgeshire County Council,01-Mar-23,51301943250,-818.27,VOYAGE,CARE ESTABLISHMENT,LD - East Locality - Cost of Care,LD - East Cambs - Care,Residential Care
Cambridgeshire County Council,01-Mar-23,51301943250,-818.27,VOYAGE,CARE ESTABLISHMENT,LD - East Locality - Cost of Care,LD - East Cambs - Care,Residential Care
Cambridgeshire County Council,01-Mar-23,51301943250,-818.27,VOYAGE,CARE ESTABLISHMENT,LD - East Locality - Cost of Care,LD - East Cambs - Care,Residential Care
Cambridgeshire County Council,01-Mar-23,51301943250,-818.27,VOYAGE,CARE ESTABLISHMENT,LD - East Locality - Cost of Care,LD - East Cambs - Care,Residential Care
Cambridgeshire County Council,01-Mar-23,51301943250,-818.27,VOYAGE,CARE ESTABLISHMENT,LD - East Locality - Cost of Care,LD - East Cambs - Care,Residential Care
Cambridgeshire County Council,01-Mar-23,51301943250,-818.27,VOYAGE,CARE ESTABLISHMENT,LD - East Locality - Cost of Care,LD - East Cambs - Care,Residential Care
Cambridgeshire County Council,01-Mar-23,51301943250,-818.27,VOYAGE,CARE ESTABLISHMENT,LD - East Locality - Cost of Care,LD - East Cambs - Care,Residential Care
Cambridgeshire County Council,01-Mar-23,51301943250,-818.27,VOYAGE,CARE ESTABLISHMENT,LD - East Locality - Cost of Care,LD - East Cambs - Care,Residential Care
Cambridgeshire County Council,01-Mar-23,51301943250,-818.27,VOYAGE,CARE ESTABLISHMENT,LD - East Locality - Cost of Care,LD - East Cambs - Care,Residential Care
Cambridgeshire County Council,01-Mar-23,51301943250,-818.27,VOYAGE,CARE ESTABLISHMENT,LD - East Locality - Cost of Care,LD - East Cambs - Care,Residential Care
Cambridgeshire County Council,01-Mar-23,51301943250,-818.27,VOYAGE,CARE ESTABLISHMENT,LD - East Locality - Cost of Care,LD - East Cambs - Care,Residential Care
Cambridgeshire County Council,01-Mar-23,51301943250,-818.27,VOYAGE,CARE ESTABLISHMENT,LD - East Locality - Cost of Care,LD - East Cambs - Care,Residential Care
Cambridgeshire County Council,01-Mar-23,51301943250,-818.27,VOYAGE,CARE ESTABLISHMENT,LD - East Locality - Cost of Care,LD - East Cambs - Care,Residential Care
Cambridgeshire County Council,01-Mar-23,51301943250,-818.27,VOYAGE,CARE ESTABLISHMENT,LD - East Locality - Cost of Care,LD - East Cambs - Care,Residential Care
Cambridgeshire County Council,01-Mar-23,51301943250,-818.27,VOYAGE,CARE ESTABLISHMENT,LD - East Locality - Cost of Care,LD - East Cambs - Care,Residential Care
Cambridgeshire County Council,01-Mar-23,51301943250,-818.27,VOYAGE,CARE ESTABLISHMENT,LD - East Locality - Cost of Care,LD - East Cambs - Care,Residential Care
Cambridgeshire County Council,01-Mar-23,51301943250,-818.27,VOYAGE,CARE ESTABLISHMENT,LD - East Locality - Cost of Care,LD - East Cambs - Care,Residential Care
Cambridgeshire County Council,01-Mar-23,51301943250,-818.27,VOYAGE,CARE ESTABLISHMENT,LD - East Locality - Cost of Care,LD - East Cambs - Care,Residential Care
Cambridgeshire County Council,01-Mar-23,51301943250,-818.27,VOYAGE,CARE ESTABLISHMENT,LD - East Locality - Cost of Care,LD - East Cambs - Care,Residential Care
Cambridgeshire County Council,01-Mar-23,51301943250,-818.27,VOYAGE,CARE ESTABLISHMENT,LD - East Locality - Cost of Care,LD - East Cambs - Care,Residential Care
Cambridgeshire County Council,01-Mar-23,51301943250,-818.27,VOYAGE,CARE ESTABLISHMENT,LD - East Locality - Cost of Care,LD - East Cambs - Care,Residential Care
Cambridgeshire County Council,01-Mar-23,51301943250,-818.27,VOYAGE,CARE ESTABLISHMENT,LD - East Locality - Cost of Care,LD - East Cambs - Care,Residential Care
Cambridgeshire County Council,01-Mar-23,51301943250,-818.27,VOYAGE,CARE ESTABLISHMENT,LD - East Locality - Cost of Care,LD - East Cambs - Care,Residential Care
Cambridgeshire County Council,01-Mar-23,51301943250,-818.27,VOYAGE,CARE ESTABLISHMENT,LD - East Locality - Cost of Care,LD - East Cambs - Care,Residential Care
Cambridgeshire County Council,01-Mar-23,51301943250,-818.27,VOYAGE,CARE ESTABLISHMENT,LD - East Locality - Cost of Care,LD - East Cambs - Care,Residential Care
Cambridgeshire County Council,01-Mar-23,51301943250,-818.27,VOYAGE,CARE ESTABLISHMENT,LD - East Locality - Cost of Care,LD - East Cambs - Care,Residential Care
Cambridgeshire County Council,01-Mar-23,51301943250,-818.27,VOYAGE,CARE ESTABLISHMENT,LD - East Locality - Cost of Care,LD - East Cambs - Care,Residential Care
Cambridgeshire County Council,01-Mar-23,51301943250,-818.27,VOYAGE,CARE ESTABLISHMENT,LD - East Locality - Cost of Care,LD - East Cambs - Care,Residential Care
Cambridgeshire County Council,01-Mar-23,51301943250,-818.27,VOYAGE,CARE ESTABLISHMENT,LD - East Locality - Cost of Care,LD - East Cambs - Care,Residential Care
Cambridgeshire County Council,01-Mar-23,51301943250,-818.27,VOYAGE,CARE ESTABLISHMENT,LD - East Locality - Cost of Care,LD - East Cambs - Care,Residential Care
Cambridgeshire County Council,01-Mar-23,51301943250,-818.27,VOYAGE,CARE ESTABLISHMENT,LD - East Locality - Cost of Care,LD - East Cambs - Care,Residential Care
Cambridgeshire County Council,01-Mar-23,51301943250,-818.27,VOYAGE,CARE ESTABLISHMENT,LD - East Locality - Cost of Care,LD - East Cambs - Care,Residential Care
Cambridgeshire County Council,01-Mar-23,51301943250,-818.27,VOYAGE,CARE ESTABLISHMENT,LD - East Locality - Cost of Care,LD - East Cambs - Care,Residential Care
Cambridgeshire County Council,01-Mar-23,51301943250,-818.27,VOYAGE,CARE ESTABLISHMENT,LD - East Locality - Cost of Care,LD - East Cambs - Care,Residential Care
Cambridgeshire County Council,01-Mar-23,51301943250,-818.27,VOYAGE,CARE ESTABLISHMENT,LD - East Locality - Cost of Care,LD - East Cambs - Care,Residential Care
Cambridgeshire County Council,01-Mar-23,51301943250,-818.27,VOYAGE,CARE ESTABLISHMENT,LD - East Locality - Cost of Care,LD - East Cambs - Care,Residential Care
Cambridgeshire County Council,01-Mar-23,51301943250,-818.27,VOYAGE,CARE ESTABLISHMENT,LD - East Locality - Cost of Care,LD - East Cambs - Care,Residential Care
Cambridgeshire County Council,01-Mar-23,51301943250,-818.27,VOYAGE,CARE ESTABLISHMENT,LD - East Locality - Cost of Care,LD - East Cambs - Care,Residential Care
Cambridgeshire County Council,01-Mar-23,51301943250,-818.27,VOYAGE,CARE ESTABLISHMENT,LD - East Locality - Cost of Care,LD - East Cambs - Care,Residential Care
Cambridgeshire County Council,01-Mar-23,51301943250,-818.27,VOYAGE,CARE ESTABLISHMENT,LD - East Locality - Cost of Care,LD - East Cambs - Care,Residential Care
Cambridgeshire County Council,01-Mar-23,51301938751,-745.00,SYMONDS HOUSE NURSING HOME,CARE ESTABLISHMENT,OPPD - Under 65 - City South,OPPD - Under 65 - City South,Short Term Other
Cambridgeshire County Council,01-Mar-23,51301943301,-740.21,WERRINGTON LODGE CARE HOME,CARE ESTABLISHMENT,OPPD - Cost of Care - Huntingdon - Over 65,Hunts OP Team - Care,Nursing Care
Cambridgeshire County Council,01-Mar-23,51301943301,-740.21,WERRINGTON LODGE CARE HOME,CARE ESTABLISHMENT,OPPD - Cost of Care - Huntingdon - Over 65,Hunts OP Team - Care,Nursing Care
Cambridgeshire County Council,01-Mar-23,51301943301,-740.21,WERRINGTON LODGE CARE HOME,CARE ESTABLISHMENT,OPPD - Cost of Care - Huntingdon - Over 65,Hunts OP Team - Care,Nursing Care
Cambridgeshire County Council,01-Mar-23,51301943301,-740.21,WERRINGTON LODGE CARE HOME,CARE ESTABLISHMENT,OPPD - Cost of Care - Huntingdon - Over 65,Hunts OP Team - Care,Nursing Care
Cambridgeshire County Council,01-Mar-23,51301943301,-740.21,WERRINGTON LODGE CARE HOME,CARE ESTABLISHMENT,OPPD - Cost of Care - Huntingdon - Over 65,Hunts OP Team - Care,Nursing Care
Cambridgeshire County Council,01-Mar-23,51301943301,-740.21,WERRINGTON LODGE CARE HOME,CARE ESTABLISHMENT,OPPD - Cost of Care - Huntingdon - Over 65,Hunts OP Team - Care,Nursing Care
Cambridgeshire County Council,01-Mar-23,51301943301,-740.21,WERRINGTON LODGE CARE HOME,CARE ESTABLISHMENT,OPPD - Cost of Care - Huntingdon - Over 65,Hunts OP Team - Care,Nursing Care
Cambridgeshire County Council,01-Mar-23,51301943301,-740.21,WERRINGTON LODGE CARE HOME,CARE ESTABLISHMENT,OPPD - Cost of Care - Huntingdon - Over 65,Hunts OP Team - Care,Nursing Care
Cambridgeshire County Council,01-Mar-23,51301943301,-740.21,WERRINGTON LODGE CARE HOME,CARE ESTABLISHMENT,OPPD - Cost of Care - Huntingdon - Over 65,Hunts OP Team - Care,Nursing Care
Cambridgeshire County Council,01-Mar-23,51301943301,-740.21,WERRINGTON LODGE CARE HOME,CARE ESTABLISHMENT,OPPD - Cost of Care - Huntingdon - Over 65,Hunts OP Team - Care,Nursing Care
Cambridgeshire County Council,01-Mar-23,51301943301,-740.21,WERRINGTON LODGE CARE HOME,CARE ESTABLISHMENT,OPPD - Cost of Care - Huntingdon - Over 65,Hunts OP Team - Care,Nursing Care
Cambridgeshire County Council,01-Mar-23,51301943301,-740.21,WERRINGTON LODGE CARE HOME,CARE ESTABLISHMENT,OPPD - Cost of Care - Huntingdon - Over 65,Hunts OP Team - Care,Nursing Care
Cambridgeshire County Council,01-Mar-23,51301943301,-740.21,WERRINGTON LODGE CARE HOME,CARE ESTABLISHMENT,OPPD - Cost of Care - Huntingdon - Over 65,Hunts OP Team - Care,Nursing Care
Cambridgeshire County Council,01-Mar-23,51301943301,-740.21,WERRINGTON LODGE CARE HOME,CARE ESTABLISHMENT,OPPD - Cost of Care - Huntingdon - Over 65,Hunts OP Team - Care,Nursing Care
Cambridgeshire County Council,01-Mar-23,51301943301,-740.21,WERRINGTON LODGE CARE HOME,CARE ESTABLISHMENT,OPPD - Cost of Care - Huntingdon - Over 65,Hunts OP Team - Care,Nursing Care
Cambridgeshire County Council,01-Mar-23,51301943301,-740.21,WERRINGTON LODGE CARE HOME,CARE ESTABLISHMENT,OPPD - Cost of Care - Huntingdon - Over 65,Hunts OP Team - Care,Nursing Care
Cambridgeshire County Council,01-Mar-23,51301943283,-729.99,VOYAGE,CARE ESTABLISHMENT,LD - South Locality - Cost of Care,LD - South Cambs - Care,Residential Care
Cambridgeshire County Council,01-Mar-23,51301943283,-729.99,VOYAGE,CARE ESTABLISHMENT,LD - South Locality - Cost of Care,LD - South Cambs - Care,Residential Care
Cambridgeshire County Council,01-Mar-23,51301943283,-729.99,VOYAGE,CARE ESTABLISHMENT,LD - South Locality - Cost of Care,LD - South Cambs - Care,Residential Care
Cambridgeshire County Council,01-Mar-23,51301943283,-729.99,VOYAGE,CARE ESTABLISHMENT,LD - South Locality - Cost of Care,LD - South Cambs - Care,Residential Care
Cambridgeshire County Council,01-Mar-23,51301943283,-729.99,VOYAGE,CARE ESTABLISHMENT,LD - South Locality - Cost of Care,LD - South Cambs - Care,Residential Care
Cambridgeshire County Council,01-Mar-23,51301943283,-729.99,VOYAGE,CARE ESTABLISHMENT,LD - South Locality - Cost of Care,LD - South Cambs - Care,Residential Care
Cambridgeshire County Council,01-Mar-23,51301943283,-729.99,VOYAGE,CARE ESTABLISHMENT,LD - South Locality - Cost of Care,LD - South Cambs - Care,Residential Care
Cambridgeshire County Council,01-Mar-23,51301943283,-729.99,VOYAGE,CARE ESTABLISHMENT,LD - South Locality - Cost of Care,LD - South Cambs - Care,Residential Care
Cambridgeshire County Council,01-Mar-23,51301943283,-729.99,VOYAGE,CARE ESTABLISHMENT,LD - South Locality - Cost of Care,LD - South Cambs - Care,Residential Care
Cambridgeshire County Council,01-Mar-23,51301943283,-729.99,VOYAGE,CARE ESTABLISHMENT,LD - South Locality - Cost of Care,LD - South Cambs - Care,Residential Care
Cambridgeshire County Council,01-Mar-23,51301943283,-729.99,VOYAGE,CARE ESTABLISHMENT,LD - South Locality - Cost of Care,LD - South Cambs - Care,Residential Care
Cambridgeshire County Council,01-Mar-23,51301943283,-729.99,VOYAGE,CARE ESTABLISHMENT,LD - South Locality - Cost of Care,LD - South Cambs - Care,Residential Care
Cambridgeshire County Council,01-Mar-23,51301943283,-729.99,VOYAGE,CARE ESTABLISHMENT,LD - South Locality - Cost of Care,LD - South Cambs - Care,Residential Care
Cambridgeshire County Council,01-Mar-23,51301943283,-729.99,VOYAGE,CARE ESTABLISHMENT,LD - South Locality - Cost of Care,LD - South Cambs - Care,Residential Care
Cambridgeshire County Council,01-Mar-23,51301943283,-729.99,VOYAGE,CARE ESTABLISHMENT,LD - South Locality - Cost of Care,LD - South Cambs - Care,Residential Care
Cambridgeshire County Council,01-Mar-23,51301943283,-729.99,VOYAGE,CARE ESTABLISHMENT,LD - South Locality - Cost of Care,LD - South Cambs - Care,Residential Care
Cambridgeshire County Council,01-Mar-23,51301943283,-729.99,VOYAGE,CARE ESTABLISHMENT,LD - South Locality - Cost of Care,LD - South Cambs - Care,Residential Care
Cambridgeshire County Council,01-Mar-23,51301943283,-729.99,VOYAGE,CARE ESTABLISHMENT,LD - South Locality - Cost of Care,LD - South Cambs - Care,Residential Care
Cambridgeshire County Council,01-Mar-23,51301943283,-729.99,VOYAGE,CARE ESTABLISHMENT,LD - South Locality - Cost of Care,LD - South Cambs - Care,Residential Care
Cambridgeshire County Council,01-Mar-23,51301943283,-729.99,VOYAGE,CARE ESTABLISHMENT,LD - South Locality - Cost of Care,LD - South Cambs - Care,Residential Care
Cambridgeshire County Council,01-Mar-23,51301943283,-729.99,VOYAGE,CARE ESTABLISHMENT,LD - South Locality - Cost of Care,LD - South Cambs - Care,Residential Care
Cambridgeshire County Council,01-Mar-23,51301943283,-729.99,VOYAGE,CARE ESTABLISHMENT,LD - South Locality - Cost of Care,LD - South Cambs - Care,Residential Care
Cambridgeshire County Council,01-Mar-23,51301943283,-729.99,VOYAGE,CARE ESTABLISHMENT,LD - South Locality - Cost of Care,LD - South Cambs - Care,Residential Care
Cambridgeshire County Council,01-Mar-23,51301943283,-729.99,VOYAGE,CARE ESTABLISHMENT,LD - South Locality - Cost of Care,LD - South Cambs - Care,Residential Care
Cambridgeshire County Council,01-Mar-23,51301943283,-729.99,VOYAGE,CARE ESTABLISHMENT,LD - South Locality - Cost of Care,LD - South Cambs - Care,Residential Care
Cambridgeshire County Council,01-Mar-23,51301943283,-729.99,VOYAGE,CARE ESTABLISHMENT,LD - South Locality - Cost of Care,LD - South Cambs - Care,Residential Care
Cambridgeshire County Council,01-Mar-23,51301943283,-729.99,VOYAGE,CARE ESTABLISHMENT,LD - South Locality - Cost of Care,LD - South Cambs - Care,Residential Care
Cambridgeshire County Council,01-Mar-23,51301943283,-729.99,VOYAGE,CARE ESTABLISHMENT,LD - South Locality - Cost of Care,LD - South Cambs - Care,Residential Care
Cambridgeshire County Council,01-Mar-23,51301943283,-729.99,VOYAGE,CARE ESTABLISHMENT,LD - South Locality - Cost of Care,LD - South Cambs - Care,Residential Care
Cambridgeshire County Council,01-Mar-23,51301943283,-729.99,VOYAGE,CARE ESTABLISHMENT,LD - South Locality - Cost of Care,LD - South Cambs - Care,Residential Care
Cambridgeshire County Council,01-Mar-23,51301943283,-729.99,VOYAGE,CARE ESTABLISHMENT,LD - South Locality - Cost of Care,LD - South Cambs - Care,Residential Care
Cambridgeshire County Council,01-Mar-23,51301943283,-729.99,VOYAGE,CARE ESTABLISHMENT,LD - South Locality - Cost of Care,LD - South Cambs - Care,Residential Care
Cambridgeshire County Council,01-Mar-23,51301943283,-729.99,VOYAGE,CARE ESTABLISHMENT,LD - South Locality - Cost of Care,LD - South Cambs - Care,Residential Care
Cambridgeshire County Council,01-Mar-23,51301943283,-729.99,VOYAGE,CARE ESTABLISHMENT,LD - South Locality - Cost of Care,LD - South Cambs - Care,Residential Care
Cambridgeshire County Council,01-Mar-23,51301943283,-729.99,VOYAGE,CARE ESTABLISHMENT,LD - South Locality - Cost of Care,LD - South Cambs - Care,Residential Care
Cambridgeshire County Council,01-Mar-23,51301943283,-729.99,VOYAGE,CARE ESTABLISHMENT,LD - South Locality - Cost of Care,LD - South Cambs - Care,Residential Care
Cambridgeshire County Council,01-Mar-23,51301943283,-729.99,VOYAGE,CARE ESTABLISHMENT,LD - South Locality - Cost of Care,LD - South Cambs - Care,Residential Care
Cambridgeshire County Council,01-Mar-23,51301943283,-729.99,VOYAGE,CARE ESTABLISHMENT,LD - South Locality - Cost of Care,LD - South Cambs - Care,Residential Care
Cambridgeshire County Council,01-Mar-23,51301943283,-729.99,VOYAGE,CARE ESTABLISHMENT,LD - South Locality - Cost of Care,LD - South Cambs - Care,Residential Care
Cambridgeshire County Council,01-Mar-23,51301943283,-729.99,VOYAGE,CARE ESTABLISHMENT,LD - South Locality - Cost of Care,LD - South Cambs - Care,Residential Care
Cambridgeshire County Council,01-Mar-23,51301943283,-729.99,VOYAGE,CARE ESTABLISHMENT,LD - South Locality - Cost of Care,LD - South Cambs - Care,Residential Care
Cambridgeshire County Council,01-Mar-23,51301943283,-729.99,VOYAGE,CARE ESTABLISHMENT,LD - South Locality - Cost of Care,LD - South Cambs - Care,Residential Care
Cambridgeshire County Council,01-Mar-23,51301943283,-729.99,VOYAGE,CARE ESTABLISHMENT,LD - South Locality - Cost of Care,LD - South Cambs - Care,Residential Care
Cambridgeshire County Council,01-Mar-23,51301943283,-729.99,VOYAGE,CARE ESTABLISHMENT,LD - South Locality - Cost of Care,LD - South Cambs - Care,Residential Care
Cambridgeshire County Council,01-Mar-23,51301943283,-729.99,VOYAGE,CARE ESTABLISHMENT,LD - South Locality - Cost of Care,LD - South Cambs - Care,Residential Care
Cambridgeshire County Council,01-Mar-23,51301943283,-729.99,VOYAGE,CARE ESTABLISHMENT,LD - South Locality - Cost of Care,LD - South Cambs - Care,Residential Care
Cambridgeshire County Council,01-Mar-23,51301943283,-729.99,VOYAGE,CARE ESTABLISHMENT,LD - South Locality - Cost of Care,LD - South Cambs - Care,Residential Care
Cambridgeshire County Council,01-Mar-23,51301943283,-729.99,VOYAGE,CARE ESTABLISHMENT,LD - South Locality - Cost of Care,LD - South Cambs - Care,Residential Care
Cambridgeshire County Council,01-Mar-23,51301943283,-729.99,VOYAGE,CARE ESTABLISHMENT,LD - South Locality - Cost of Care,LD - South Cambs - Care,Residential Care
Cambridgeshire County Council,01-Mar-23,51301943283,-729.99,VOYAGE,CARE ESTABLISHMENT,LD - South Locality - Cost of Care,LD - South Cambs - Care,Residential Care
Cambridgeshire County Council,01-Mar-23,51301943283,-729.99,VOYAGE,CARE ESTABLISHMENT,LD - South Locality - Cost of Care,LD - South Cambs - Care,Residential Care
Cambridgeshire County Council,01-Mar-23,51301943283,-729.99,VOYAGE,CARE ESTABLISHMENT,LD - South Locality - Cost of Care,LD - South Cambs - Care,Residential Care
Cambridgeshire County Council,01-Mar-23,51301943269,-700.00,HOME CLOSE LTD,CARE ESTABLISHMENT,OPMH - City & South,Older People Mental Health City & South,Residential Care
Cambridgeshire County Council,01-Mar-23,51301943269,-700.00,HOME CLOSE LTD,CARE ESTABLISHMENT,OPMH - City & South,Older People Mental Health City & South,Residential Care
Cambridgeshire County Council,01-Mar-23,51301943269,-700.00,HOME CLOSE LTD,CARE ESTABLISHMENT,OPMH - City & South,Older People Mental Health City & South,Residential Care
